Workbook

Sheet 1. Info
AB1: Alectra Utilities Corporation-Brampton Rate Zone | AC1: 2021 RTSR Workform for Electricity Distributors
AB2: Alectra Utilities Corporation-Enersource Rate Zone | AC2: v 1.0
AB3: Alectra Utilities Corporation-Horizon Utilities Rate Zone
AB4: Alectra Utilities Corporation-PowerStream Rate Zone
AB5: Alectra Utilities Corporation-Guelph Rate Zone
AB6: Algoma Power Inc.
AB7: Atikokan Hydro Inc.
AB8: Bluewater Power Distribution Corporation
AB9: Brantford Power Inc.
AB10: Burlington Hydro Inc.
AB11: Canadian Niagara Power Inc.
AB12: Centre Wellington Hydro Ltd.
A13: Drop-down lists are shaded blue; Input cells are shaded green. | AB13: Chapleau Public Utilities Corporation
AB14: Cooperative Hydro Embrun Inc.
C15: Utility Name | D15: Cooperative Hydro Embrun Inc. | AB15: E.L.K. Energy Inc.
AB16: Elexicon Energy Inc.-Whitby Rate Zone
C17: Assigned EB Number | AB17: Elexicon Energy Inc.-Veridian Rate Zone
AB18: Energy+ Inc.
C19: Name and Title of Contact | AB19: Entegrus Powerlines Inc.-For Entegrus-Main Rate Zone
AB20: Entegrus Powerlines Inc.-For Former St. Thomas Energy Rate Zone
C21: Phone Number | AB21: ENWIN Utilities Ltd.
AB22: EPCOR Electricity Distribution Ontario Inc.
C23: Email Address | AB23: ERTH Power Corporation - ERTH Power Main Rate Zone
AB24: ERTH POWER CORPORATION – GODERICH RATE ZONE
C25: Last COS Re-based Year | D25: 2018 | AB25: Essex Powerlines Corporation
AB26: Festival Hydro Inc.
AB27: Fort Frances Power Corporation
AB28: Greater Sudbury Hydro Inc.
AB29: Grimsby Power Incorporated
AB30: Halton Hills Hydro Inc.
AB31: Hearst Power Distribution Co. Ltd.
AB32: Hydro 2000 Inc.
AB33: Hydro Hawkesbury Inc.
AB34: Hydro One Networks Inc.
AB35: Hydro One Networks Inc.-Former Haldimand County Hydro Inc. Service Area
AB36: Hydro One Networks Inc.-Former Norfolk Power Distribution Inc. Service Area
AB37: Hydro One Networks Inc.-Former Woodstock Hydro Services Inc. Service Area
AB38: Hydro One Remote Communites Inc.
AB39: Hydro Ottawa Limited
AB40: InnPower Corporation
AB41: Kingston Hydro Corporation
AB42: Kitchener-Wilmot Hydro Inc.
AB43: Lakefront Utilities Inc.
AB44: Lakeland Power Distribution Ltd.
AB45: Lakeland Power Distribution Ltd.-Parry Sound Service Area
AB46: London Hydro Inc.
AB47: Milton Hydro Distribution Inc.
AB48: Newmarket-Tay Power Distribution Ltd.-For Former Midland Power Utility Rate Zone
AB49: Newmarket-Tay Power Distribution Ltd.-For Newmarket-Tay Power Main Rate Zone
AB50: Niagara Peninsula Energy Inc.
AB51: Niagara-on-the-Lake Hydro Inc.
AB52: North Bay Hydro Distribution Limited - Espanola service territory
AB53: North Bay Hydro Distribution Limited - North Bay service territory
AB54: Northern Ontario Wires Inc.
AB55: Oakville Hydro Electricity Distribution Inc.
AB56: Orangeville Hydro Limited
AB57: Orillia Power Distribution Corporation
AB58: Oshawa PUC Networks Inc.
AB59: Ottawa River Power Corporation
AB60: Peterborough Distribution Incorporated
AB61: PUC Distribution Inc.
AB62: Renfrew Hydro Inc.
AB63: Rideau St. Lawrence Distribution Inc.
AB64: Sioux Lookout Hydro Inc.
AB65: Synergy North Corporation-Kenora Rate Zone
AB66: Synergy North Corporation-Thunder Bay Rate Zone
AB67: Tillsonburg Hydro Inc.
AB68: Toronto Hydro-Electric System Limited
AB69: Wasaga Distribution Inc.
AB70: Waterloo North Hydro Inc.
AB71: Welland Hydro-Electric System Corp.
AB72: Wellington North Power Inc.
AB73: Westario Power Inc.

Sheet 2021 List (hidden)
A1: Alectra Utilities Corporation-Brampton Rate Zone | B1: HHPNS717
A2: Alectra Utilities Corporation-Enersource Rate Zone | B2: HHPNS717
A3: Alectra Utilities Corporation-Horizon Utilities Rate Zone | B3: HHPNS717
A4: Alectra Utilities Corporation-PowerStream Rate Zone | B4: HHPNS717
A5: Alectra Utilities Corporation-Guelph Rate Zone | B5: HHPNS717
A6: Algoma Power Inc. | B6: WKBSV849
A7: Atikokan Hydro Inc. | B7: NJYBW716
A8: Bluewater Power Distribution Corporation | B8: GQQHM388
A9: Brantford Power Inc. | B9: SFXZP935
A10: Burlington Hydro Inc. | B10: OARZC118
A11: Canadian Niagara Power Inc. | B11: HJHBH994
A12: Centre Wellington Hydro Ltd. | B12: KQEEH473
A13: Chapleau Public Utilities Corporation | B13: CPEFQ593
A14: Cooperative Hydro Embrun Inc. | B14: QXHJU641
A15: E.L.K. Energy Inc. | B15: AVXSO594
A16: Elexicon Energy Inc.-Whitby Rate Zone | B16: JMNNR431
A17: Elexicon Energy Inc.-Veridian Rate Zone | B17: JMNNR431
A18: Energy+ Inc. | B18: JKBZG525
A19: Entegrus Powerlines Inc.-For Entegrus-Main Rate Zone | B19: YEOQG654
A20: Entegrus Powerlines Inc.-For Former St. Thomas Energy Rate Zone | B20: YEOQG654
A21: ENWIN Utilities Ltd. | B21: PTLUC812
A22: EPCOR Electricity Distribution Ontario Inc. | B22: ADICB565
A23: ERTH Power Corporation - ERTH Power Main Rate Zone | B23: LRECV427
A24: ERTH POWER CORPORATION – GODERICH RATE ZONE | B24: KTCNY552
A25: Espanola Regional Hydro Distribution Corporation | B25: YEPCI143
A26: Essex Powerlines Corporation | B26: GRHTW113
A27: Festival Hydro Inc. | B27: GMGHU415
A28: Fort Frances Power Corporation | B28: YTPWF351
A29: Greater Sudbury Hydro Inc. | B29: YCYKQ642
A30: Grimsby Power Incorporated | B30: ADZFM459
A31: Halton Hills Hydro Inc. | B31: RVWKN794
A32: Hearst Power Distribution Co. Ltd. | B32: KESKM585
A33: Hydro 2000 Inc. | B33: MQFNL784
A34: Hydro Hawkesbury Inc. | B34: FNDHH648
A35: Hydro One Networks Inc. | B35: PTREM828
A36: Hydro One Networks Inc.-Former Haldimand County Hydro Inc. Service Area | B36: PTREM828
A37: Hydro One Networks Inc.-Former Norfolk Power Distribution Inc. Service Area | B37: PTREM828
A38: Hydro One Networks Inc.-Former Woodstock Hydro Services Inc. Service Area | B38: PTREM828
A39: Hydro One Remote Communites Inc. | B39: UBBYF452
A40: Hydro Ottawa Limited | B40: NSBED625
A41: InnPower Corporation | B41: TXKTT167
A42: Kingston Hydro Corporation | B42: ZHKLA874
A43: Kitchener-Wilmot Hydro Inc. | B43: YLJHT264
A44: Lakefront Utilities Inc. | B44: YLCEC559
A45: Lakeland Power Distribution Ltd. | B45: NHKJF259
A46: Lakeland Power Distribution Ltd.-Parry Sound Service Area | B46: NHKJF259
A47: London Hydro Inc. | B47: SLRXO177
A48: Milton Hydro Distribution Inc. | B48: UIFEM157
A49: Newmarket-Tay Power Distribution Ltd.-For Former Midland Power Utility Rate Zone | B49: RUZIU984
A50: Newmarket-Tay Power Distribution Ltd.-For Newmarket-Tay Power Main Rate Zone | B50: RUZIU984
A51: Niagara Peninsula Energy Inc. | B51: KSUYD122
A52: Niagara-on-the-Lake Hydro Inc. | B52: QHCKN852
A53: North Bay Hydro Distribution Limited | B53: FUIJX538
A54: Northern Ontario Wires Inc. | B54: PWKJP953
A55: Oakville Hydro Electricity Distribution Inc. | B55: JEGGW178
A56: Orangeville Hydro Limited | B56: TVKSH414
A57: Orillia Power Distribution Corporation | B57: DUISI693
A58: Oshawa PUC Networks Inc. | B58: PQZCY963
A59: Ottawa River Power Corporation | B59: GTLBW445
A60: Peterborough Distribution Incorporated | B60: XCFPH269
A61: PUC Distribution Inc. | B61: MLWYG784
A62: Renfrew Hydro Inc. | B62: QDKIF127
A63: Rideau St. Lawrence Distribution Inc. | B63: AMZEN437
A64: Sioux Lookout Hydro Inc. | B64: ACEVX242
A65: Synergy North Corporation-Kenora Rate Zone | B65: DSPWZ318
A66: Synergy North Corporation-Thunder Bay Rate Zone | B66: DSPWZ318
A67: Tillsonburg Hydro Inc. | B67: OLIUU862
A68: Toronto Hydro-Electric System Limited | B68: NIOJF461
A69: Wasaga Distribution Inc. | B69: ZYZFO848
A70: Waterloo North Hydro Inc. | B70: ASEGZ471
A71: Welland Hydro-Electric System Corp. | B71: IOKHC383
A72: Wellington North Power Inc. | B72: SKVKJ649
A73: Westario Power Inc. | B73: TPFNQ593

Sheet Sheet1 (hidden)
A5: 2. Table of Contents | B5: X
A6: 3. RRR Data | B6: X
A7: 4. UTRs and Sub-Transmission | B7: X
A8: 5. Historical Wholesale | B8: X
A9: 6. Current Wholesale | B9: X
A10: 7. Forecast Wholesale | B10: X
A11: 8. RTSR Rates to Forecast | B11: X

Sheet 2. Table of Contents
D20: 1. Info | I20: 5. Historical Wholesale
D22: 2. Table of Contents | I22: 6. Current Wholesale
D24: 3. RRR Data | I24: 7. Forecast Wholesale
D26: 4. UTRs and Sub-Transmission | I26: 8. RTSR Rates to Forecast

Sheet 3. RRR Data
AZ1: 1
B15: Rate Class | C15: Rate Description | D15: Unit | E15: Rate | F15: Non-Loss Adjusted Metered kWh | G15: Non-Loss Adjusted Metered kW | H15: Applicable Loss Factor eg: (1.0325) | I15: Loss Adjusted Billed kWh
B17: RESIDENTIAL SERVICE CLASSIFICATION | C17: Retail Transmission Rate - Network Service Rate | D17: $/kWh | E17: 0.0077 | F17: 21654999 | G17: 0 | H17: 1.0749 | I17: =F17*H17 -> 23276958.43
B18: RESIDENTIAL SERVICE CLASSIFICATION | C18: Retail Transmission Rate - Line and Transformation Connection Service Rate | D18: $/kWh | E18: 0.0065 | F18: 21654999 | G18: 0 | H18: 1.0749 | I18: 23276958.43
B19: GENERAL SERVICE LESS THAN 50 KW SERVICE CLASSIFICATION | C19: Retail Transmission Rate - Network Service Rate | D19: $/kWh | E19: 0.007 | F19: 4350730 | G19: 0 | H19: 1.0749 | I19: 4676599.677
B20: GENERAL SERVICE LESS THAN 50 KW SERVICE CLASSIFICATION | C20: Retail Transmission Rate - Line and Transformation Connection Service Rate | D20: $/kWh | E20: 0.0056 | F20: 4350730 | G20: 0 | H20: 1.0749 | I20: 4676599.677
B21: GENERAL SERVICE 50 to 4,999 kW SERVICE CLASSIFICATION | C21: Retail Transmission Rate - Network Service Rate | D21: $/kW | E21: 2.8324 | F21: 3959238 | G21: 9472 | H21: 1.0749 | I21: 4255784.926
B22: GENERAL SERVICE 50 to 4,999 kW SERVICE CLASSIFICATION | C22: Retail Transmission Rate - Line and Transformation Connection Service Rate | D22: $/kW | E22: 2.2699 | F22: 3959238 | G22: 9472 | H22: 1.0749 | I22: 4255784.926
B23: UNMETERED SCATTERED LOAD SERVICE CLASSIFICATION | C23: Retail Transmission Rate - Network Service Rate | D23: $/kWh | E23: 0.007 | F23: 93084 | G23: 0 | H23: 1.0749 | I23: 100055.9916
B24: UNMETERED SCATTERED LOAD SERVICE CLASSIFICATION | C24: Retail Transmission Rate - Line and Transformation Connection Service Rate | D24: $/kWh | E24: 0.0056 | F24: 93084 | G24: 0 | H24: 1.0749 | I24: 100055.9916
B25: STREET LIGHTING SERVICE CLASSIFICATION | C25: Retail Transmission Rate - Network Service Rate | D25: $/kW | E25: 2.1362 | F25: 214544 | G25: 592 | H25: 1.0749 | I25: 230613.3456
B26: STREET LIGHTING SERVICE CLASSIFICATION | C26: Retail Transmission Rate - Line and Transformation Connection Service Rate | D26: $/kW | E26: 1.7547 | F26: 214544 | G26: 592 | H26: 1.0749 | I26: 230613.3456

Sheet 4. UTRs and Sub-Transmission
B18: Uniform Transmission Rates | C18: Unit | E18: 2021 | H18: 2022 | J18: 2022 | L18: 2023
H19: Jan to Jun | J19: Jul to Dec
B21: Rate Description | E21: Rate | H21: Rate | J21: Rate | L21: Rate
B23: Network Service Rate | C23: kW | E23: 4.67 | H23: 4.67 | J23: 5.13 | L23: 5.46
B25: Line Connection Service Rate | C25: kW | E25: 0.77 | H25: 0.77 | J25: 0.8 | L25: 0.88
B27: Transformation Connection Service Rate | C27: kW | E27: 2.53 | H27: 2.53 | J27: 2.81 | L27: =J27 -> 2.81
B30: Hydro One Sub-Transmission Rates | C30: Unit | E30: 2021 | H30: 2022 | L30: 2023
B35: Rate Description | E35: Rate | H35: Rate | L35: Rate
B37: Network Service Rate | C37: kW | E37: 3.4778 | H37: 3.4778 | L37: 4.3473
B39: Line Connection Service Rate | C39: kW | E39: 0.8128 | H39: 0.8128 | L39: 0.6788
B41: Transformation Connection Service Rate | C41: kW | E41: 2.0458 | H41: 2.0458 | L41: 2.3267
B43: Both Line and Transformation Connection Service Rate | C43: kW | E43: =E41+E39 -> 2.8586 | H43: =SUM(H41,H39) -> 2.8586 | L43: =SUM(L41,L39) -> 3.0055
B46: If needed, add extra host here. (I) | C46: Unit | E46: 2021 | H46: 2022 | L46: 2023
B50: Rate Description | E50: Rate | H50: Rate | L50: Rate
B52: Network Service Rate | C52: kW
B54: Line Connection Service Rate | C54: kW
B56: Transformation Connection Service Rate | C56: kW
B58: Both Line and Transformation Connection Service Rate | C58: kW | E58: =SUM(E54,E56) -> 0 | H58: =SUM(H54,H56) -> 0 | L58: =L56+L54 -> 0
B61: If needed, add extra host here. (II) | C61: Unit | E61: 2021 | H61: 2022 | L61: 2023
B65: Rate Description | E65: Rate | H65: Rate | L65: Rate
B67: Network Service Rate | C67: kW
B69: Line Connection Service Rate | C69: kW
B71: Transformation Connection Service Rate | C71: kW
B73: Both Line and Transformation Connection Service Rate | C73: kW | E73: =SUM(E69,E71) -> 0 | H73: =SUM(H69,H71) -> 0 | L73: =L71+L69 -> 0
E75: 2021 | H75: Current 2022 | L75: Forecast 2023
B76: Low Voltage Switchgear Credit (if applicable, enter as a negative value) | C76: $

Sheet 5. Historical Wholesale
B21: IESO | D21: Network | H21: Line Connection | L21: Transformation Connection | P21: Total Connection
B22: Month | D22: Units Billed | E22: Rate | F22: Amount | H22: Units Billed | I22: Rate | J22: Amount | L22: Units Billed | M22: Rate | N22: Amount | P22: Amount
B24: January | E24: =IF(D24<>0,F24/D24,0) -> 0 | I24: =IF(H24<>0,J24/H24,0) -> 0 | M24: =IF(L24<>0,N24/L24,0) -> 0 | P24: =J24+N24 -> 0
B25: February | E25: 0 | I25: 0 | M25: 0 | P25: 0
B26: March | E26: 0 | I26: 0 | M26: 0 | P26: 0
B27: April | E27: 0 | I27: 0 | M27: 0 | P27: 0
B28: May | E28: 0 | I28: 0 | M28: 0 | P28: 0
B29: June | E29: 0 | I29: 0 | M29: 0 | P29: 0
B30: July | E30: 0 | I30: 0 | M30: 0 | P30: 0
B31: August | E31: 0 | I31: 0 | M31: 0 | P31: 0
B32: September | E32: 0 | I32: 0 | M32: 0 | P32: 0
B33: October | E33: 0 | I33: 0 | M33: 0 | P33: 0
B34: November | E34: 0 | I34: 0 | M34: 0 | P34: 0
B35: December | E35: 0 | I35: 0 | M35: 0 | P35: 0
B37: Total | D37: =SUM(D24:D35) -> 0 | E37: =IF(D37<>0,F37/D37,0) -> 0 | F37: =SUM(F24:F35) -> 0 | H37: =SUM(H24:H35) -> 0 | I37: =IF(H37<>0,J37/H37,0) -> 0 | J37: =SUM(J24:J35) -> 0 | L37: =SUM(L24:L35) -> 0 | M37: =IF(L37<>0,N37/L37,0) -> 0 | N37: =SUM(N24:N35) -> 0 | P37: =SUM(P24:P35) -> 0
B39: Hydro One | D39: Network | H39: Line Connection | L39: Transformation Connection | P39: Total Connection
B41: Month | D41: Units Billed | E41: Rate | F41: Amount | H41: Units Billed | I41: Rate | J41: Amount | L41: Units Billed | M41: Rate | N41: Amount | P41: Amount
B43: January | D43: 5572.02 | E43: =ROUND(IF(D43<>0,F43/D43,0),4) -> 3.4778 | F43: 19378.37 | H43: 5891.32 | I43: =ROUND(IF(H43<>0,J43/H43,0),4) -> 0.8128 | J43: 4788.46 | L43: 5891.32 | M43: =ROUND(IF(L43<>0,N43/L43,0),4) -> 2.0458 | N43: 12052.46 | P43: =J43+N43 -> 16840.92
B44: February | D44: 5509.15 | E44: =ROUND(IF(D44<>0,F44/D44,0),4) -> 3.4778 | F44: 19159.73 | H44: 5686.17 | I44: =ROUND(IF(H44<>0,J44/H44,0),4) -> 0.8128 | J44: 4621.72 | L44: 5686.17 | M44: =ROUND(IF(L44<>0,N44/L44,0),4) -> 2.0458 | N44: 11632.77 | P44: 16254.49
B45: March | D45: 5199.78 | E45: 3.4778 | F45: 18083.79 | H45: 5214.67 | I45: 0.8128 | J45: 4238.48 | L45: 5214.67 | M45: 2.0458 | N45: 10668.17 | P45: 14906.65
B46: April | D46: 4163.3 | E46: 3.4778 | F46: 14479.12 | H46: 4284.07 | I46: 0.8128 | J46: 3482.09 | L46: 4284.07 | M46: 2.0458 | N46: 8764.35 | P46: 12246.44
B47: May | D47: 5663.84 | E47: 3.4778 | F47: 19697.7 | H47: 5773.86 | I47: 0.8128 | J47: 4692.99 | L47: 5773.86 | M47: 2.0458 | N47: 11812.15 | P47: 16505.14
B48: June | D48: 6955.1 | E48: 3.4778 | F48: 24188.44 | H48: 6955.1 | I48: 0.8128 | J48: 5653.1 | L48: 6955.1 | M48: 2.0458 | N48: 14228.74 | P48: 19881.84
B49: July | D49: 6395.08 | E49: 3.4778 | F49: 22240.82 | H49: 6395.08 | I49: 0.8128 | J49: 5197.92 | L49: 6395.08 | M49: 2.0458 | N49: 13083.06 | P49: 18280.98
B50: August | D50: 7186.71 | E50: 3.4778 | F50: 24993.95 | H50: 7205.74 | I50: 0.8128 | J50: 5856.82 | L50: 7205.74 | M50: 2.0458 | N50: 14741.5 | P50: 20598.32
B51: September | D51: 4813.48 | E51: 3.4778 | F51: 16740.31 | H51: 4813.48 | I51: 0.8128 | J51: 3912.39 | L51: 4813.48 | M51: 2.0458 | N51: 9847.41 | P51: 13759.8
B52: October | D52: 4346.11 | E52: 3.4778 | F52: 15114.9 | H52: 4346 | I52: 0.8128 | J52: 3532.52 | L52: 4346.11 | M52: 2.0458 | N52: 8891.27 | P52: 12423.79
B53: November | D53: 5234.52 | E53: 3.4778 | F53: 18204.62 | H53: 5543.89 | I53: 0.8128 | J53: 4506.08 | L53: 5543.89 | M53: 2.0458 | N53: 11341.7 | P53: 15847.78
B54: December | D54: 5777.99 | E54: 3.4778 | F54: 20094.7 | H54: 5795.36 | I54: 0.8128 | J54: 4710.47 | L54: 5795.36 | M54: 2.0458 | N54: 11856.15 | P54: 16566.62
B56: Total | D56: =SUM(D43:D54) -> 66817.08 | E56: =IF(D56<>0,F56/D56,0) -> 3.477800137 | F56: =SUM(F43:F54) -> 232376.45 | H56: =SUM(H43:H54) -> 67904.74 | I56: =IF(H56<>0,J56/H56,0) -> 0.8128009915 | J56: =SUM(J43:J54) -> 55193.04 | L56: =SUM(L43:L54) -> 67904.85 | M56: =IF(L56<>0,N56/L56,0) -> 2.045799821 | N56: =SUM(N43:N54) -> 138919.73 | P56: =SUM(P43:P54) -> 194112.77
B58: Add Extra Host Here (I) | D58: Network | H58: Line Connection | L58: Transformation Connection | P58: Total Connection
B59: (if needed)
B60: Month | D60: Units Billed | E60: Rate | F60: Amount | H60: Units Billed | I60: Rate | J60: Amount | L60: Units Billed | M60: Rate | N60: Amount | P60: Amount
B62: January | E62: =IF(D62<>0,F62/D62,0) -> 0 | I62: =IF(H62<>0,J62/H62,0) -> 0 | M62: =IF(L62<>0,N62/L62,0) -> 0 | P62: =J62+N62 -> 0
B63: February | E63: 0 | I63: 0 | M63: 0 | P63: 0
B64: March | E64: 0 | I64: 0 | M64: 0 | P64: 0
B65: April | E65: 0 | I65: 0 | M65: 0 | P65: 0
B66: May | E66: 0 | I66: 0 | M66: 0 | P66: 0
B67: June | E67: 0 | I67: 0 | M67: 0 | P67: 0
B68: July | E68: 0 | I68: 0 | M68: 0 | P68: 0
B69: August | E69: 0 | I69: 0 | M69: 0 | P69: 0
B70: September | E70: 0 | I70: 0 | M70: 0 | P70: 0
B71: October | E71: 0 | I71: 0 | M71: 0 | P71: 0
B72: November | E72: 0 | I72: 0 | M72: 0 | P72: 0
B73: December | E73: 0 | I73: 0 | M73: 0 | P73: 0
B75: Total | D75: =SUM(D62:D73) -> 0 | E75: =IF(D75<>0,F75/D75,0) -> 0 | F75: =SUM(F62:F73) -> 0 | H75: =SUM(H62:H73) -> 0 | I75: =IF(H75<>0,J75/H75,0) -> 0 | J75: =SUM(J62:J73) -> 0 | L75: =SUM(L62:L73) -> 0 | M75: =IF(L75<>0,N75/L75,0) -> 0 | N75: =SUM(N62:N73) -> 0 | P75: =SUM(P62:P73) -> 0
B77: Add Extra Host Here (II) | D77: Network | H77: Line Connection | L77: Transformation Connection | P77: Total Connection
B78: (if needed)
B79: Month | D79: Units Billed | E79: Rate | F79: Amount | H79: Units Billed | I79: Rate | J79: Amount | L79: Units Billed | M79: Rate | N79: Amount | P79: Amount
B81: January | E81: =IF(D81<>0,F81/D81,0) -> 0 | I81: =IF(H81<>0,J81/H81,0) -> 0 | M81: =IF(L81<>0,N81/L81,0) -> 0 | P81: =J81+N81 -> 0
B82: February | E82: 0 | I82: 0 | M82: 0 | P82: 0
B83: March | E83: 0 | I83: 0 | M83: 0 | P83: 0
B84: April | E84: 0 | I84: 0 | M84: 0 | P84: 0
B85: May | E85: 0 | I85: 0 | M85: 0 | P85: 0
B86: June | E86: 0 | I86: 0 | M86: 0 | P86: 0
B87: July | E87: 0 | I87: 0 | M87: 0 | P87: 0
B88: August | E88: 0 | I88: 0 | M88: 0 | P88: 0
B89: September | E89: 0 | I89: 0 | M89: 0 | P89: 0
B90: October | E90: 0 | I90: 0 | M90: 0 | P90: 0
B91: November | E91: 0 | I91: 0 | M91: 0 | P91: 0
B92: December | E92: 0 | I92: 0 | M92: 0 | P92: 0
B94: Total | D94: =SUM(D81:D92) -> 0 | E94: =IF(D94<>0,F94/D94,0) -> 0 | F94: =SUM(F81:F92) -> 0 | H94: =SUM(H81:H92) -> 0 | I94: =IF(H94<>0,J94/H94,0) -> 0 | J94: =SUM(J81:J92) -> 0 | L94: =SUM(L81:L92) -> 0 | M94: =IF(L94<>0,N94/L94,0) -> 0 | N94: =SUM(N81:N92) -> 0 | P94: =SUM(P81:P92) -> 0
B96: Total | D96: Network | H96: Line Connection | L96: Transformation Connection | P96: Total Connection
B98: Month | D98: Units Billed | E98: Rate | F98: Amount | H98: Units Billed | I98: Rate | J98: Amount | L98: Units Billed | M98: Rate | N98: Amount | P98: Amount
B100: January | D100: =D24+D43+D62+D81 -> 5572.02 | E100: =IF(D100<>0,F100/D100,0) -> 3.477799793 | F100: =F24+F43+F62+F81 -> 19378.37 | H100: =H24+H43+H62+H81 -> 5891.32 | I100: =IF(H100<>0,J100/H100,0) -> 0.8127991689 | J100: =J24+J43+J62+J81 -> 4788.46 | L100: =L24+L43+L62+L81 -> 5891.32 | M100: =IF(L100<>0,N100/L100,0) -> 2.045799583 | N100: =N24+N43+N62+N81 -> 12052.46 | P100: =J100+N100 -> 16840.92
B101: February | D101: =D25+D44+D63+D82 -> 5509.15 | E101: 3.477801476 | F101: =F25+F44+F63+F82 -> 19159.73 | H101: =H25+H44+H63+H82 -> 5686.17 | I101: 0.8128001801 | J101: =J25+J44+J63+J82 -> 4621.72 | L101: =L25+L44+L63+L82 -> 5686.17 | M101: 2.0458006 | N101: =N25+N44+N63+N82 -> 11632.77 | P101: 16254.49
B102: March | D102: 5199.78 | E102: 3.477799061 | F102: 18083.79 | H102: 5214.67 | I102: 0.8127992759 | J102: 4238.48 | L102: 5214.67 | M102: 2.045799638 | N102: 10668.17 | P102: 14906.65
B103: April | D103: 4163.3 | E103: 3.477798861 | F103: 14479.12 | H103: 4284.07 | I103: 0.8127995107 | J103: 3482.09 | L103: 4284.07 | M103: 2.045799905 | N103: 8764.35 | P103: 12246.44
B104: May | D104: 5663.84 | E104: 3.477799514 | F104: 19697.7 | H104: 5773.86 | I104: 0.8127994098 | J104: 4692.99 | L104: 5773.86 | M104: 2.045797785 | N104: 11812.15 | P104: 16505.14
B105: June | D105: 6955.1 | E105: 3.477799025 | F105: 24188.44 | H105: 6955.1 | I105: 0.8127992408 | J105: 5653.1 | L105: 6955.1 | M105: 2.045799485 | N105: 14228.74 | P105: 19881.84
B106: July | D106: 6395.08 | E106: 3.477801685 | F106: 22240.82 | H106: 6395.08 | I106: 0.8127998399 | J106: 5197.92 | L106: 6395.08 | M106: 2.045800834 | N106: 13083.06 | P106: 18280.98
B107: August | D107: 7186.71 | E107: 3.477801386 | F107: 24993.95 | H107: 7205.74 | I107: 0.8127992406 | J107: 5856.82 | L107: 7205.74 | M107: 2.045799599 | N107: 14741.5 | P107: 20598.32
B108: September | D108: 4813.48 | E108: 3.477797768 | F108: 16740.31 | H108: 4813.48 | I108: 0.8127986405 | J108: 3912.39 | L108: 4813.48 | M108: 2.045798466 | N108: 9847.41 | P108: 13759.8
B109: October | D109: 4346.11 | E109: 3.477799688 | F109: 15114.9 | H109: 4346 | I109: 0.8128209848 | J109: 3532.52 | L109: 4346.11 | M109: 2.045799577 | N109: 8891.27 | P109: 12423.79
B110: November | D110: 5234.52 | E110: 3.477801212 | F110: 18204.62 | H110: 5543.89 | I110: 0.8128011198 | J110: 4506.08 | L110: 5543.89 | M110: 2.045801775 | N110: 11341.7 | P110: 15847.78
B111: December | D111: 5777.99 | E111: 3.477801104 | F111: 20094.7 | H111: 5795.36 | I111: 0.8128002402 | J111: 4710.47 | L111: 5795.36 | M111: 2.045800433 | N111: 11856.15 | P111: 16566.62
B113: Total | D113: =SUM(D100:D111) -> 66817.08 | E113: =IF(D113<>0,F113/D113,0) -> 3.477800137 | F113: =SUM(F100:F111) -> 232376.45 | H113: =SUM(H100:H111) -> 67904.74 | I113: =IF(H113<>0,J113/H113,0) -> 0.8128009915 | J113: =SUM(J100:J111) -> 55193.04 | L113: =SUM(L100:L111) -> 67904.85 | M113: =IF(L113<>0,N113/L113,0) -> 2.045799821 | N113: =SUM(N100:N111) -> 138919.73 | P113: =SUM(P100:P111) -> 194112.77
N115: Low Voltage Switchgear Credit (if applicable) | P115: ='4. UTRs and Sub-Transmission'!E76 -> 0
N117: Total including deduction for Low Voltage Switchgear Credit | P117: =P113+P115 -> 194112.77

Sheet 6. Current Wholesale
B13: The purpose of this sheet is to calculate the expected billing when current 2021 Uniform Transmission Rates and Hydro One Sub-transmission Rates are applied against historical 2020 transmission units.
B20: IESO | D20: Network | H20: Line Connection | L20: Transformation Connection | P20: Total Connection
B22: Month | D22: Units Billed | E22: Rate | F22: Amount | H22: Units Billed | I22: Rate | J22: Amount | L22: Units Billed | M22: Rate | N22: Amount | P22: Amount
B24: January | D24: ='5. Historical Wholesale'!D24 -> 0 | E24: ='4. UTRs and Sub-Transmission'!H23 -> 4.67 | F24: =D24*E24 -> 0 | H24: ='5. Historical Wholesale'!H24 -> 0 | I24: ='4. UTRs and Sub-Transmission'!H25 -> 0.77 | J24: =H24*I24 -> 0 | L24: ='5. Historical Wholesale'!L24 -> 0 | M24: ='4. UTRs and Sub-Transmission'!H27 -> 2.53 | N24: =L24*M24 -> 0 | P24: =J24+N24 -> 0
B25: February | D25: ='5. Historical Wholesale'!D25 -> 0 | E25: =E24 -> 4.67 | F25: =D25*E25 -> 0 | H25: ='5. Historical Wholesale'!H25 -> 0 | I25: =I24 -> 0.77 | J25: =H25*I25 -> 0 | L25: ='5. Historical Wholesale'!L25 -> 0 | M25: =M24 -> 2.53 | N25: =L25*M25 -> 0 | P25: 0
B26: March | D26: ='5. Historical Wholesale'!D26 -> 0 | E26: =E25 -> 4.67 | F26: 0 | H26: ='5. Historical Wholesale'!H26 -> 0 | I26: =I25 -> 0.77 | J26: 0 | L26: ='5. Historical Wholesale'!L26 -> 0 | M26: =M25 -> 2.53 | N26: 0 | P26: 0
B27: April | D27: ='5. Historical Wholesale'!D27 -> 0 | E27: 4.67 | F27: 0 | H27: ='5. Historical Wholesale'!H27 -> 0 | I27: 0.77 | J27: 0 | L27: ='5. Historical Wholesale'!L27 -> 0 | M27: 2.53 | N27: 0 | P27: 0
B28: May | D28: ='5. Historical Wholesale'!D28 -> 0 | E28: 4.67 | F28: 0 | H28: ='5. Historical Wholesale'!H28 -> 0 | I28: 0.77 | J28: 0 | L28: ='5. Historical Wholesale'!L28 -> 0 | M28: 2.53 | N28: 0 | P28: 0
B29: June | D29: ='5. Historical Wholesale'!D29 -> 0 | E29: 4.67 | F29: 0 | H29: ='5. Historical Wholesale'!H29 -> 0 | I29: 0.77 | J29: 0 | L29: ='5. Historical Wholesale'!L29 -> 0 | M29: 2.53 | N29: 0 | P29: 0
B30: July | D30: ='5. Historical Wholesale'!D30 -> 0 | E30: ='4. UTRs and Sub-Transmission'!J23 -> 5.13 | F30: 0 | H30: ='5. Historical Wholesale'!H30 -> 0 | I30: ='4. UTRs and Sub-Transmission'!J25 -> 0.8 | J30: 0 | L30: ='5. Historical Wholesale'!L30 -> 0 | M30: ='4. UTRs and Sub-Transmission'!J27 -> 2.81 | N30: 0 | P30: 0
B31: August | D31: ='5. Historical Wholesale'!D31 -> 0 | E31: 5.13 | F31: 0 | H31: ='5. Historical Wholesale'!H31 -> 0 | I31: 0.8 | J31: 0 | L31: ='5. Historical Wholesale'!L31 -> 0 | M31: 2.81 | N31: 0 | P31: 0
B32: September | D32: ='5. Historical Wholesale'!D32 -> 0 | E32: 5.13 | F32: 0 | H32: ='5. Historical Wholesale'!H32 -> 0 | I32: 0.8 | J32: 0 | L32: ='5. Historical Wholesale'!L32 -> 0 | M32: 2.81 | N32: 0 | P32: 0
B33: October | D33: ='5. Historical Wholesale'!D33 -> 0 | E33: 5.13 | F33: 0 | H33: ='5. Historical Wholesale'!H33 -> 0 | I33: 0.8 | J33: 0 | L33: ='5. Historical Wholesale'!L33 -> 0 | M33: 2.81 | N33: 0 | P33: 0
B34: November | D34: ='5. Historical Wholesale'!D34 -> 0 | E34: 5.13 | F34: 0 | H34: ='5. Historical Wholesale'!H34 -> 0 | I34: 0.8 | J34: 0 | L34: ='5. Historical Wholesale'!L34 -> 0 | M34: 2.81 | N34: 0 | P34: 0
B35: December | D35: ='5. Historical Wholesale'!D35 -> 0 | E35: 5.13 | F35: 0 | H35: ='5. Historical Wholesale'!H35 -> 0 | I35: 0.8 | J35: 0 | L35: ='5. Historical Wholesale'!L35 -> 0 | M35: 2.81 | N35: 0 | P35: 0
B37: Total | D37: =SUM(D24:D35) -> 0 | E37: =IF(D37<>0,F37/D37,0) -> 0 | F37: =SUM(F24:F35) -> 0 | H37: =SUM(H24:H35) -> 0 | I37: =IF(H37<>0,J37/H37,0) -> 0 | J37: =SUM(J24:J35) -> 0 | L37: =SUM(L24:L35) -> 0 | M37: =IF(L37<>0,N37/L37,0) -> 0 | N37: =SUM(N24:N35) -> 0 | P37: =SUM(P24:P35) -> 0
B39: Hydro One | D39: Network | H39: Line Connection | L39: Transformation Connection | P39: Total Connection
B41: Month | D41: Units Billed | E41: Rate | F41: Amount | H41: Units Billed | I41: Rate | J41: Amount | L41: Units Billed | M41: Rate | N41: Amount | P41: Amount
B43: January | D43: ='5. Historical Wholesale'!D43 -> 5572.02 | E43: ='4. UTRs and Sub-Transmission'!H37 -> 3.4778 | F43: =D43*E43 -> 19378.37116 | H43: ='5. Historical Wholesale'!H43 -> 5891.32 | I43: ='4. UTRs and Sub-Transmission'!H39 -> 0.8128 | J43: =H43*I43 -> 4788.464896 | L43: ='5. Historical Wholesale'!L43 -> 5891.32 | M43: ='4. UTRs and Sub-Transmission'!H41 -> 2.0458 | N43: =L43*M43 -> 12052.46246 | P43: =J43+N43 -> 16840.92735
B44: February | D44: ='5. Historical Wholesale'!D44 -> 5509.15 | E44: =E43 -> 3.4778 | F44: =D44*E44 -> 19159.72187 | H44: ='5. Historical Wholesale'!H44 -> 5686.17 | I44: =I43 -> 0.8128 | J44: =H44*I44 -> 4621.718976 | L44: ='5. Historical Wholesale'!L44 -> 5686.17 | M44: =M43 -> 2.0458 | N44: =L44*M44 -> 11632.76659 | P44: 16254.48556
B45: March | D45: ='5. Historical Wholesale'!D45 -> 5199.78 | E45: 3.4778 | F45: 18083.79488 | H45: ='5. Historical Wholesale'!H45 -> 5214.67 | I45: 0.8128 | J45: 4238.483776 | L45: ='5. Historical Wholesale'!L45 -> 5214.67 | M45: =M44 -> 2.0458 | N45: 10668.17189 | P45: 14906.65566
B46: April | D46: ='5. Historical Wholesale'!D46 -> 4163.3 | E46: 3.4778 | F46: 14479.12474 | H46: ='5. Historical Wholesale'!H46 -> 4284.07 | I46: 0.8128 | J46: 3482.092096 | L46: ='5. Historical Wholesale'!L46 -> 4284.07 | M46: =M45 -> 2.0458 | N46: 8764.350406 | P46: 12246.4425
B47: May | D47: ='5. Historical Wholesale'!D47 -> 5663.84 | E47: 3.4778 | F47: 19697.70275 | H47: ='5. Historical Wholesale'!H47 -> 5773.86 | I47: 0.8128 | J47: 4692.993408 | L47: ='5. Historical Wholesale'!L47 -> 5773.86 | M47: 2.0458 | N47: 11812.16279 | P47: 16505.1562
B48: June | D48: ='5. Historical Wholesale'!D48 -> 6955.1 | E48: 3.4778 | F48: 24188.44678 | H48: ='5. Historical Wholesale'!H48 -> 6955.1 | I48: 0.8128 | J48: 5653.10528 | L48: ='5. Historical Wholesale'!L48 -> 6955.1 | M48: 2.0458 | N48: 14228.74358 | P48: 19881.84886
B49: July | D49: ='5. Historical Wholesale'!D49 -> 6395.08 | E49: 3.4778 | F49: 22240.80922 | H49: ='5. Historical Wholesale'!H49 -> 6395.08 | I49: 0.8128 | J49: 5197.921024 | L49: ='5. Historical Wholesale'!L49 -> 6395.08 | M49: 2.0458 | N49: 13083.05466 | P49: 18280.97569
B50: August | D50: ='5. Historical Wholesale'!D50 -> 7186.71 | E50: 3.4778 | F50: 24993.94004 | H50: ='5. Historical Wholesale'!H50 -> 7205.74 | I50: 0.8128 | J50: 5856.825472 | L50: ='5. Historical Wholesale'!L50 -> 7205.74 | M50: 2.0458 | N50: 14741.50289 | P50: 20598.32836
B51: September | D51: ='5. Historical Wholesale'!D51 -> 4813.48 | E51: 3.4778 | F51: 16740.32074 | H51: ='5. Historical Wholesale'!H51 -> 4813.48 | I51: 0.8128 | J51: 3912.396544 | L51: ='5. Historical Wholesale'!L51 -> 4813.48 | M51: 2.0458 | N51: 9847.417384 | P51: 13759.81393
B52: October | D52: ='5. Historical Wholesale'!D52 -> 4346.11 | E52: 3.4778 | F52: 15114.90136 | H52: ='5. Historical Wholesale'!H52 -> 4346 | I52: 0.8128 | J52: 3532.4288 | L52: ='5. Historical Wholesale'!L52 -> 4346.11 | M52: 2.0458 | N52: 8891.271838 | P52: 12423.70064
B53: November | D53: ='5. Historical Wholesale'!D53 -> 5234.52 | E53: 3.4778 | F53: 18204.61366 | H53: ='5. Historical Wholesale'!H53 -> 5543.89 | I53: 0.8128 | J53: 4506.073792 | L53: ='5. Historical Wholesale'!L53 -> 5543.89 | M53: 2.0458 | N53: 11341.69016 | P53: 15847.76395
B54: December | D54: ='5. Historical Wholesale'!D54 -> 5777.99 | E54: 3.4778 | F54: 20094.69362 | H54: ='5. Historical Wholesale'!H54 -> 5795.36 | I54: 0.8128 | J54: 4710.468608 | L54: ='5. Historical Wholesale'!L54 -> 5795.36 | M54: 2.0458 | N54: 11856.14749 | P54: 16566.6161
B56: Total | D56: =SUM(D43:D54) -> 66817.08 | E56: =IF(D56<>0,F56/D56,0) -> 3.4778 | F56: =SUM(F43:F54) -> 232376.4408 | H56: =SUM(H43:H54) -> 67904.74 | I56: =IF(H56<>0,J56/H56,0) -> 0.8128 | J56: =SUM(J43:J54) -> 55192.97267 | L56: =SUM(L43:L54) -> 67904.85 | M56: =IF(L56<>0,N56/L56,0) -> 2.0458 | N56: =SUM(N43:N54) -> 138919.7421 | P56: =SUM(P43:P54) -> 194112.7148
B58: ='5. Historical Wholesale'!B58 -> Add Extra Host Here (I) | D58: Network | H58: Line Connection | L58: Transformation Connection | P58: Total Connection
B60: Month | D60: Units Billed | E60: Rate | F60: Amount | H60: Units Billed | I60: Rate | J60: Amount | L60: Units Billed | M60: Rate | N60: Amount | P60: Amount
B62: January | D62: ='5. Historical Wholesale'!D62 -> 0 | E62: ='4. UTRs and Sub-Transmission'!H52 -> 0 | F62: =D62*E62 -> 0 | H62: ='5. Historical Wholesale'!H62 -> 0 | I62: ='4. UTRs and Sub-Transmission'!H54 -> 0 | J62: =H62*I62 -> 0 | L62: ='5. Historical Wholesale'!L62 -> 0 | M62: ='4. UTRs and Sub-Transmission'!H56 -> 0 | N62: =L62*M62 -> 0 | P62: =J62+N62 -> 0
B63: February | D63: ='5. Historical Wholesale'!D63 -> 0 | E63: =E62 -> 0 | F63: =D63*E63 -> 0 | H63: ='5. Historical Wholesale'!H63 -> 0 | I63: =I62 -> 0 | J63: =H63*I63 -> 0 | L63: ='5. Historical Wholesale'!L63 -> 0 | M63: =M62 -> 0 | N63: =L63*M63 -> 0 | P63: 0
B64: March | D64: ='5. Historical Wholesale'!D64 -> 0 | E64: =E63 -> 0 | F64: 0 | H64: ='5. Historical Wholesale'!H64 -> 0 | I64: =I63 -> 0 | J64: 0 | L64: ='5. Historical Wholesale'!L64 -> 0 | M64: =M63 -> 0 | N64: 0 | P64: 0
B65: April | D65: ='5. Historical Wholesale'!D65 -> 0 | E65: 0 | F65: 0 | H65: ='5. Historical Wholesale'!H65 -> 0 | I65: 0 | J65: 0 | L65: ='5. Historical Wholesale'!L65 -> 0 | M65: =M64 -> 0 | N65: 0 | P65: 0
B66: May | D66: ='5. Historical Wholesale'!D66 -> 0 | E66: 0 | F66: 0 | H66: ='5. Historical Wholesale'!H66 -> 0 | I66: 0 | J66: 0 | L66: ='5. Historical Wholesale'!L66 -> 0 | M66: 0 | N66: 0 | P66: 0
B67: June | D67: ='5. Historical Wholesale'!D67 -> 0 | E67: 0 | F67: 0 | H67: ='5. Historical Wholesale'!H67 -> 0 | I67: 0 | J67: 0 | L67: ='5. Historical Wholesale'!L67 -> 0 | M67: 0 | N67: 0 | P67: 0
B68: July | D68: ='5. Historical Wholesale'!D68 -> 0 | E68: 0 | F68: 0 | H68: ='5. Historical Wholesale'!H68 -> 0 | I68: 0 | J68: 0 | L68: ='5. Historical Wholesale'!L68 -> 0 | M68: 0 | N68: 0 | P68: 0
B69: August | D69: ='5. Historical Wholesale'!D69 -> 0 | E69: 0 | F69: 0 | H69: ='5. Historical Wholesale'!H69 -> 0 | I69: 0 | J69: 0 | L69: ='5. Historical Wholesale'!L69 -> 0 | M69: 0 | N69: 0 | P69: 0
B70: September | D70: ='5. Historical Wholesale'!D70 -> 0 | E70: 0 | F70: 0 | H70: ='5. Historical Wholesale'!H70 -> 0 | I70: 0 | J70: 0 | L70: ='5. Historical Wholesale'!L70 -> 0 | M70: 0 | N70: 0 | P70: 0
B71: October | D71: ='5. Historical Wholesale'!D71 -> 0 | E71: 0 | F71: 0 | H71: ='5. Historical Wholesale'!H71 -> 0 | I71: 0 | J71: 0 | L71: ='5. Historical Wholesale'!L71 -> 0 | M71: 0 | N71: 0 | P71: 0
B72: November | D72: ='5. Historical Wholesale'!D72 -> 0 | E72: 0 | F72: 0 | H72: ='5. Historical Wholesale'!H72 -> 0 | I72: 0 | J72: 0 | L72: ='5. Historical Wholesale'!L72 -> 0 | M72: 0 | N72: 0 | P72: 0
B73: December | D73: ='5. Historical Wholesale'!D73 -> 0 | E73: 0 | F73: 0 | H73: ='5. Historical Wholesale'!H73 -> 0 | I73: 0 | J73: 0 | L73: ='5. Historical Wholesale'!L73 -> 0 | M73: 0 | N73: 0 | P73: 0
B75: Total | D75: =SUM(D62:D73) -> 0 | E75: =IF(D75<>0,F75/D75,0) -> 0 | F75: =SUM(F62:F73) -> 0 | H75: =SUM(H62:H73) -> 0 | I75: =IF(H75<>0,J75/H75,0) -> 0 | J75: =SUM(J62:J73) -> 0 | L75: =SUM(L62:L73) -> 0 | M75: =IF(L75<>0,N75/L75,0) -> 0 | N75: =SUM(N62:N73) -> 0 | P75: =SUM(P62:P73) -> 0
B77: ='5. Historical Wholesale'!B77 -> Add Extra Host Here (II) | D77: Network | H77: Line Connection | L77: Transformation Connection | P77: Total Connection
B79: Month | D79: Units Billed | E79: Rate | F79: Amount | H79: Units Billed | I79: Rate | J79: Amount | L79: Units Billed | M79: Rate | N79: Amount | P79: Amount
B81: January | D81: ='5. Historical Wholesale'!D81 -> 0 | E81: ='4. UTRs and Sub-Transmission'!H67 -> 0 | F81: =D81*E81 -> 0 | H81: ='5. Historical Wholesale'!H81 -> 0 | I81: ='4. UTRs and Sub-Transmission'!H69 -> 0 | J81: =H81*I81 -> 0 | L81: ='5. Historical Wholesale'!L81 -> 0 | M81: ='4. UTRs and Sub-Transmission'!H71 -> 0 | N81: =L81*M81 -> 0 | P81: =J81+N81 -> 0
B82: February | D82: ='5. Historical Wholesale'!D82 -> 0 | E82: =E81 -> 0 | F82: =D82*E82 -> 0 | H82: ='5. Historical Wholesale'!H82 -> 0 | I82: =I81 -> 0 | J82: =H82*I82 -> 0 | L82: ='5. Historical Wholesale'!L82 -> 0 | M82: =M81 -> 0 | N82: =L82*M82 -> 0 | P82: 0
B83: March | D83: ='5. Historical Wholesale'!D83 -> 0 | E83: =E82 -> 0 | F83: 0 | H83: ='5. Historical Wholesale'!H83 -> 0 | I83: =I82 -> 0 | J83: 0 | L83: ='5. Historical Wholesale'!L83 -> 0 | M83: =M82 -> 0 | N83: 0 | P83: 0
B84: April | D84: ='5. Historical Wholesale'!D84 -> 0 | E84: 0 | F84: 0 | H84: ='5. Historical Wholesale'!H84 -> 0 | I84: 0 | J84: 0 | L84: ='5. Historical Wholesale'!L84 -> 0 | M84: =M83 -> 0 | N84: 0 | P84: 0
B85: May | D85: ='5. Historical Wholesale'!D85 -> 0 | E85: 0 | F85: 0 | H85: ='5. Historical Wholesale'!H85 -> 0 | I85: 0 | J85: 0 | L85: ='5. Historical Wholesale'!L85 -> 0 | M85: 0 | N85: 0 | P85: 0
B86: June | D86: ='5. Historical Wholesale'!D86 -> 0 | E86: 0 | F86: 0 | H86: ='5. Historical Wholesale'!H86 -> 0 | I86: 0 | J86: 0 | L86: ='5. Historical Wholesale'!L86 -> 0 | M86: 0 | N86: 0 | P86: 0
B87: July | D87: ='5. Historical Wholesale'!D87 -> 0 | E87: 0 | F87: 0 | H87: ='5. Historical Wholesale'!H87 -> 0 | I87: 0 | J87: 0 | L87: ='5. Historical Wholesale'!L87 -> 0 | M87: 0 | N87: 0 | P87: 0
B88: August | D88: ='5. Historical Wholesale'!D88 -> 0 | E88: 0 | F88: 0 | H88: ='5. Historical Wholesale'!H88 -> 0 | I88: 0 | J88: 0 | L88: ='5. Historical Wholesale'!L88 -> 0 | M88: 0 | N88: 0 | P88: 0
B89: September | D89: ='5. Historical Wholesale'!D89 -> 0 | E89: 0 | F89: 0 | H89: ='5. Historical Wholesale'!H89 -> 0 | I89: 0 | J89: 0 | L89: ='5. Historical Wholesale'!L89 -> 0 | M89: 0 | N89: 0 | P89: 0
B90: October | D90: ='5. Historical Wholesale'!D90 -> 0 | E90: 0 | F90: 0 | H90: ='5. Historical Wholesale'!H90 -> 0 | I90: 0 | J90: 0 | L90: ='5. Historical Wholesale'!L90 -> 0 | M90: 0 | N90: 0 | P90: 0
B91: November | D91: ='5. Historical Wholesale'!D91 -> 0 | E91: 0 | F91: 0 | H91: ='5. Historical Wholesale'!H91 -> 0 | I91: 0 | J91: 0 | L91: ='5. Historical Wholesale'!L91 -> 0 | M91: 0 | N91: 0 | P91: 0
B92: December | D92: ='5. Historical Wholesale'!D92 -> 0 | E92: 0 | F92: 0 | H92: ='5. Historical Wholesale'!H92 -> 0 | I92: 0 | J92: 0 | L92: ='5. Historical Wholesale'!L92 -> 0 | M92: 0 | N92: 0 | P92: 0
B94: Total | D94: =SUM(D81:D92) -> 0 | E94: =IF(D94<>0,F94/D94,0) -> 0 | F94: =SUM(F81:F92) -> 0 | H94: =SUM(H81:H92) -> 0 | I94: =IF(H94<>0,J94/H94,0) -> 0 | J94: =SUM(J81:J92) -> 0 | L94: =SUM(L81:L92) -> 0 | M94: =IF(L94<>0,N94/L94,0) -> 0 | N94: =SUM(N81:N92) -> 0 | P94: =SUM(P81:P92) -> 0
B96: Total | D96: Network | H96: Line Connection | L96: Transformation Connection | P96: Total Connection
B98: Month | D98: Units Billed | E98: Rate | F98: Amount | H98: Units Billed | I98: Rate | J98: Amount | L98: Units Billed | M98: Rate | N98: Amount | P98: Amount
B100: January | D100: =D24+D43+D62+D81 -> 5572.02 | E100: =IF(D100<>0,F100/D100,0) -> 3.4778 | F100: =F24+F43+F62+F81 -> 19378.37116 | H100: =H24+H43+H62+H81 -> 5891.32 | I100: =IF(H100<>0,J100/H100,0) -> 0.8128 | J100: =J24+J43+J62+J81 -> 4788.464896 | L100: =L24+L43+L62+L81 -> 5891.32 | M100: =IF(L100<>0,N100/L100,0) -> 2.0458 | N100: =N24+N43+N62+N81 -> 12052.46246 | P100: =J100+N100 -> 16840.92735
B101: February | D101: =D25+D44+D63+D82 -> 5509.15 | E101: 3.4778 | F101: =F25+F44+F63+F82 -> 19159.72187 | H101: =H25+H44+H63+H82 -> 5686.17 | I101: 0.8128 | J101: =J25+J44+J63+J82 -> 4621.718976 | L101: =L25+L44+L63+L82 -> 5686.17 | M101: 2.0458 | N101: =N25+N44+N63+N82 -> 11632.76659 | P101: 16254.48556
B102: March | D102: 5199.78 | E102: 3.4778 | F102: 18083.79488 | H102: 5214.67 | I102: 0.8128 | J102: 4238.483776 | L102: 5214.67 | M102: 2.0458 | N102: 10668.17189 | P102: 14906.65566
B103: April | D103: 4163.3 | E103: 3.4778 | F103: 14479.12474 | H103: 4284.07 | I103: 0.8128 | J103: 3482.092096 | L103: 4284.07 | M103: 2.0458 | N103: 8764.350406 | P103: 12246.4425
B104: May | D104: 5663.84 | E104: 3.4778 | F104: 19697.70275 | H104: 5773.86 | I104: 0.8128 | J104: 4692.993408 | L104: 5773.86 | M104: 2.0458 | N104: 11812.16279 | P104: 16505.1562
B105: June | D105: 6955.1 | E105: 3.4778 | F105: 24188.44678 | H105: 6955.1 | I105: 0.8128 | J105: 5653.10528 | L105: 6955.1 | M105: 2.0458 | N105: 14228.74358 | P105: 19881.84886
B106: July | D106: 6395.08 | E106: 3.4778 | F106: 22240.80922 | H106: 6395.08 | I106: 0.8128 | J106: 5197.921024 | L106: 6395.08 | M106: 2.0458 | N106: 13083.05466 | P106: 18280.97569
B107: August | D107: 7186.71 | E107: 3.4778 | F107: 24993.94004 | H107: 7205.74 | I107: 0.8128 | J107: 5856.825472 | L107: 7205.74 | M107: 2.0458 | N107: 14741.50289 | P107: 20598.32836
B108: September | D108: 4813.48 | E108: 3.4778 | F108: 16740.32074 | H108: 4813.48 | I108: 0.8128 | J108: 3912.396544 | L108: 4813.48 | M108: 2.0458 | N108: 9847.417384 | P108: 13759.81393
B109: October | D109: 4346.11 | E109: 3.4778 | F109: 15114.90136 | H109: 4346 | I109: 0.8128 | J109: 3532.4288 | L109: 4346.11 | M109: 2.0458 | N109: 8891.271838 | P109: 12423.70064
B110: November | D110: 5234.52 | E110: 3.4778 | F110: 18204.61366 | H110: 5543.89 | I110: 0.8128 | J110: 4506.073792 | L110: 5543.89 | M110: 2.0458 | N110: 11341.69016 | P110: 15847.76395
B111: December | D111: 5777.99 | E111: 3.4778 | F111: 20094.69362 | H111: 5795.36 | I111: 0.8128 | J111: 4710.468608 | L111: 5795.36 | M111: 2.0458 | N111: 11856.14749 | P111: 16566.6161
B113: Total | D113: =SUM(D100:D111) -> 66817.08 | E113: =IF(D113<>0,F113/D113,0) -> 3.4778 | F113: =SUM(F100:F111) -> 232376.4408 | H113: =SUM(H100:H111) -> 67904.74 | I113: =IF(H113<>0,J113/H113,0) -> 0.8128 | J113: =SUM(J100:J111) -> 55192.97267 | L113: =SUM(L100:L111) -> 67904.85 | M113: =IF(L113<>0,N113/L113,0) -> 2.0458 | N113: =SUM(N100:N111) -> 138919.7421 | P113: =SUM(P100:P111) -> 194112.7148
N115: Low Voltage Switchgear Credit (if applicable) | P115: ='4. UTRs and Sub-Transmission'!H76 -> 0
N117: Total including deduction for Low Voltage Switchgear Credit | P117: =P113+P115 -> 194112.7148

Sheet 7. Forecast Wholesale
B13: The purpose of this sheet is to calculate the expected billing when forecasted 2022 Uniform Transmission Rates and Hydro One Sub-transmission Rates are applied against historical 2020 transmission units.
B20: IESO | D20: Network | H20: Line Connection | L20: Transformation Connection | P20: Total Connection
B22: Month | D22: Units Billed | E22: Rate | F22: Amount | H22: Units Billed | I22: Rate | J22: Amount | L22: Units Billed | M22: Rate | N22: Amount | P22: Amount
B24: January | D24: ='5. Historical Wholesale'!D24 -> 0 | E24: ='4. UTRs and Sub-Transmission'!L23 -> 5.46 | F24: =D24*E24 -> 0 | H24: ='5. Historical Wholesale'!H24 -> 0 | I24: ='4. UTRs and Sub-Transmission'!L25 -> 0.88 | J24: =H24*I24 -> 0 | L24: ='5. Historical Wholesale'!L24 -> 0 | M24: ='4. UTRs and Sub-Transmission'!L27 -> 2.81 | N24: =L24*M24 -> 0 | P24: =J24+N24 -> 0
B25: February | D25: ='5. Historical Wholesale'!D25 -> 0 | E25: =E24 -> 5.46 | F25: 0 | H25: ='5. Historical Wholesale'!H25 -> 0 | I25: =I24 -> 0.88 | J25: 0 | L25: ='5. Historical Wholesale'!L25 -> 0 | M25: =M24 -> 2.81 | N25: 0 | P25: 0
B26: March | D26: ='5. Historical Wholesale'!D26 -> 0 | E26: 5.46 | F26: 0 | H26: ='5. Historical Wholesale'!H26 -> 0 | I26: 0.88 | J26: 0 | L26: ='5. Historical Wholesale'!L26 -> 0 | M26: 2.81 | N26: 0 | P26: 0
B27: April | D27: ='5. Historical Wholesale'!D27 -> 0 | E27: 5.46 | F27: 0 | H27: ='5. Historical Wholesale'!H27 -> 0 | I27: 0.88 | J27: 0 | L27: ='5. Historical Wholesale'!L27 -> 0 | M27: 2.81 | N27: 0 | P27: 0
B28: May | D28: ='5. Historical Wholesale'!D28 -> 0 | E28: 5.46 | F28: 0 | H28: ='5. Historical Wholesale'!H28 -> 0 | I28: 0.88 | J28: 0 | L28: ='5. Historical Wholesale'!L28 -> 0 | M28: 2.81 | N28: 0 | P28: 0
B29: June | D29: ='5. Historical Wholesale'!D29 -> 0 | E29: 5.46 | F29: 0 | H29: ='5. Historical Wholesale'!H29 -> 0 | I29: 0.88 | J29: 0 | L29: ='5. Historical Wholesale'!L29 -> 0 | M29: 2.81 | N29: 0 | P29: 0
B30: July | D30: ='5. Historical Wholesale'!D30 -> 0 | E30: 5.46 | F30: 0 | H30: ='5. Historical Wholesale'!H30 -> 0 | I30: 0.88 | J30: 0 | L30: ='5. Historical Wholesale'!L30 -> 0 | M30: 2.81 | N30: 0 | P30: 0
B31: August | D31: ='5. Historical Wholesale'!D31 -> 0 | E31: 5.46 | F31: 0 | H31: ='5. Historical Wholesale'!H31 -> 0 | I31: 0.88 | J31: 0 | L31: ='5. Historical Wholesale'!L31 -> 0 | M31: 2.81 | N31: 0 | P31: 0
B32: September | D32: ='5. Historical Wholesale'!D32 -> 0 | E32: 5.46 | F32: 0 | H32: ='5. Historical Wholesale'!H32 -> 0 | I32: 0.88 | J32: 0 | L32: ='5. Historical Wholesale'!L32 -> 0 | M32: 2.81 | N32: 0 | P32: 0
B33: October | D33: ='5. Historical Wholesale'!D33 -> 0 | E33: 5.46 | F33: 0 | H33: ='5. Historical Wholesale'!H33 -> 0 | I33: 0.88 | J33: 0 | L33: ='5. Historical Wholesale'!L33 -> 0 | M33: 2.81 | N33: 0 | P33: 0
B34: November | D34: ='5. Historical Wholesale'!D34 -> 0 | E34: 5.46 | F34: 0 | H34: ='5. Historical Wholesale'!H34 -> 0 | I34: 0.88 | J34: 0 | L34: ='5. Historical Wholesale'!L34 -> 0 | M34: 2.81 | N34: 0 | P34: 0
B35: December | D35: ='5. Historical Wholesale'!D35 -> 0 | E35: 5.46 | F35: 0 | H35: ='5. Historical Wholesale'!H35 -> 0 | I35: 0.88 | J35: 0 | L35: ='5. Historical Wholesale'!L35 -> 0 | M35: 2.81 | N35: 0 | P35: 0
B37: Total | D37: =SUM(D24:D35) -> 0 | E37: =IF(D37<>0,F37/D37,0) -> 0 | F37: =SUM(F24:F35) -> 0 | H37: =SUM(H24:H35) -> 0 | I37: =IF(H37<>0,J37/H37,0) -> 0 | J37: =SUM(J24:J35) -> 0 | L37: =SUM(L24:L35) -> 0 | M37: =IF(L37<>0,N37/L37,0) -> 0 | N37: =SUM(N24:N35) -> 0 | P37: =SUM(P24:P35) -> 0
B39: Hydro One | D39: Network | H39: Line Connection | L39: Transformation Connection | P39: Total Connection
B41: Month | D41: Units Billed | E41: Rate | F41: Amount | H41: Units Billed | I41: Rate | J41: Amount | L41: Units Billed | M41: Rate | N41: Amount | P41: Amount
B43: January | D43: ='5. Historical Wholesale'!D43 -> 5572.02 | E43: ='4. UTRs and Sub-Transmission'!L37 -> 4.3473 | F43: =D43*E43 -> 24223.24255 | H43: ='5. Historical Wholesale'!H43 -> 5891.32 | I43: ='4. UTRs and Sub-Transmission'!L39 -> 0.6788 | J43: =H43*I43 -> 3999.028016 | L43: ='5. Historical Wholesale'!L43 -> 5891.32 | M43: ='4. UTRs and Sub-Transmission'!L41 -> 2.3267 | N43: =L43*M43 -> 13707.33424 | P43: =J43+N43 -> 17706.36226
B44: February | D44: ='5. Historical Wholesale'!D44 -> 5509.15 | E44: =E43 -> 4.3473 | F44: 23949.92779 | H44: ='5. Historical Wholesale'!H44 -> 5686.17 | I44: =I43 -> 0.6788 | J44: 3859.772196 | L44: ='5. Historical Wholesale'!L44 -> 5686.17 | M44: =M43 -> 2.3267 | N44: 13230.01174 | P44: 17089.78393
B45: March | D45: ='5. Historical Wholesale'!D45 -> 5199.78 | E45: 4.3473 | F45: 22605.00359 | H45: ='5. Historical Wholesale'!H45 -> 5214.67 | I45: 0.6788 | J45: 3539.717996 | L45: ='5. Historical Wholesale'!L45 -> 5214.67 | M45: 2.3267 | N45: 12132.97269 | P45: 15672.69069
B46: April | D46: ='5. Historical Wholesale'!D46 -> 4163.3 | E46: 4.3473 | F46: 18099.11409 | H46: ='5. Historical Wholesale'!H46 -> 4284.07 | I46: 0.6788 | J46: 2908.026716 | L46: ='5. Historical Wholesale'!L46 -> 4284.07 | M46: 2.3267 | N46: 9967.745669 | P46: 12875.77239
B47: May | D47: ='5. Historical Wholesale'!D47 -> 5663.84 | E47: 4.3473 | F47: 24622.41163 | H47: ='5. Historical Wholesale'!H47 -> 5773.86 | I47: 0.6788 | J47: 3919.296168 | L47: ='5. Historical Wholesale'!L47 -> 5773.86 | M47: 2.3267 | N47: 13434.04006 | P47: 17353.33623
B48: June | D48: ='5. Historical Wholesale'!D48 -> 6955.1 | E48: 4.3473 | F48: 30235.90623 | H48: ='5. Historical Wholesale'!H48 -> 6955.1 | I48: 0.6788 | J48: 4721.12188 | L48: ='5. Historical Wholesale'!L48 -> 6955.1 | M48: 2.3267 | N48: 16182.43117 | P48: 20903.55305
B49: July | D49: ='5. Historical Wholesale'!D49 -> 6395.08 | E49: 4.3473 | F49: 27801.33128 | H49: ='5. Historical Wholesale'!H49 -> 6395.08 | I49: 0.6788 | J49: 4340.980304 | L49: ='5. Historical Wholesale'!L49 -> 6395.08 | M49: 2.3267 | N49: 14879.43264 | P49: 19220.41294
B50: August | D50: ='5. Historical Wholesale'!D50 -> 7186.71 | E50: 4.3473 | F50: 31242.78438 | H50: ='5. Historical Wholesale'!H50 -> 7205.74 | I50: 0.6788 | J50: 4891.256312 | L50: ='5. Historical Wholesale'!L50 -> 7205.74 | M50: 2.3267 | N50: 16765.59526 | P50: 21656.85157
B51: September | D51: ='5. Historical Wholesale'!D51 -> 4813.48 | E51: 4.3473 | F51: 20925.6416 | H51: ='5. Historical Wholesale'!H51 -> 4813.48 | I51: 0.6788 | J51: 3267.390224 | L51: ='5. Historical Wholesale'!L51 -> 4813.48 | M51: 2.3267 | N51: 11199.52392 | P51: 14466.91414
B52: October | D52: ='5. Historical Wholesale'!D52 -> 4346.11 | E52: 4.3473 | F52: 18893.844 | H52: ='5. Historical Wholesale'!H52 -> 4346 | I52: 0.6788 | J52: 2950.0648 | L52: ='5. Historical Wholesale'!L52 -> 4346.11 | M52: 2.3267 | N52: 10112.09414 | P52: 13062.15894
B53: November | D53: ='5. Historical Wholesale'!D53 -> 5234.52 | E53: 4.3473 | F53: 22756.0288 | H53: ='5. Historical Wholesale'!H53 -> 5543.89 | I53: 0.6788 | J53: 3763.192532 | L53: ='5. Historical Wholesale'!L53 -> 5543.89 | M53: 2.3267 | N53: 12898.96886 | P53: 16662.1614
B54: December | D54: ='5. Historical Wholesale'!D54 -> 5777.99 | E54: 4.3473 | F54: 25118.65593 | H54: ='5. Historical Wholesale'!H54 -> 5795.36 | I54: 0.6788 | J54: 3933.890368 | L54: ='5. Historical Wholesale'!L54 -> 5795.36 | M54: 2.3267 | N54: 13484.06411 | P54: 17417.95448
B56: Total | D56: =SUM(D43:D54) -> 66817.08 | E56: =IF(D56<>0,F56/D56,0) -> 4.3473 | F56: =SUM(F43:F54) -> 290473.8919 | H56: =SUM(H43:H54) -> 67904.74 | I56: =IF(H56<>0,J56/H56,0) -> 0.6788 | J56: =SUM(J43:J54) -> 46093.73751 | L56: =SUM(L43:L54) -> 67904.85 | M56: =IF(L56<>0,N56/L56,0) -> 2.3267 | N56: =SUM(N43:N54) -> 157994.2145 | P56: =SUM(P43:P54) -> 204087.952
B58: ='5. Historical Wholesale'!B58 -> Add Extra Host Here (I) | D58: Network | H58: Line Connection | L58: Transformation Connection | P58: Total Connection
B60: Month | D60: Units Billed | E60: Rate | F60: Amount | H60: Units Billed | I60: Rate | J60: Amount | L60: Units Billed | M60: Rate | N60: Amount | P60: Amount
B62: January | D62: ='5. Historical Wholesale'!D62 -> 0 | E62: ='4. UTRs and Sub-Transmission'!L52 -> 0 | F62: =D62*E62 -> 0 | H62: ='5. Historical Wholesale'!H62 -> 0 | I62: ='4. UTRs and Sub-Transmission'!L54 -> 0 | J62: =H62*I62 -> 0 | L62: ='5. Historical Wholesale'!L62 -> 0 | M62: ='4. UTRs and Sub-Transmission'!L56 -> 0 | N62: =L62*M62 -> 0 | P62: =J62+N62 -> 0
B63: February | D63: ='5. Historical Wholesale'!D63 -> 0 | E63: =E62 -> 0 | F63: 0 | H63: ='5. Historical Wholesale'!H63 -> 0 | I63: =I62 -> 0 | J63: 0 | L63: ='5. Historical Wholesale'!L63 -> 0 | M63: =M62 -> 0 | N63: 0 | P63: 0
B64: March | D64: ='5. Historical Wholesale'!D64 -> 0 | E64: 0 | F64: 0 | H64: ='5. Historical Wholesale'!H64 -> 0 | I64: 0 | J64: 0 | L64: ='5. Historical Wholesale'!L64 -> 0 | M64: 0 | N64: 0 | P64: 0
B65: April | D65: ='5. Historical Wholesale'!D65 -> 0 | E65: 0 | F65: 0 | H65: ='5. Historical Wholesale'!H65 -> 0 | I65: 0 | J65: 0 | L65: ='5. Historical Wholesale'!L65 -> 0 | M65: 0 | N65: 0 | P65: 0
B66: May | D66: ='5. Historical Wholesale'!D66 -> 0 | E66: 0 | F66: 0 | H66: ='5. Historical Wholesale'!H66 -> 0 | I66: 0 | J66: 0 | L66: ='5. Historical Wholesale'!L66 -> 0 | M66: 0 | N66: 0 | P66: 0
B67: June | D67: ='5. Historical Wholesale'!D67 -> 0 | E67: 0 | F67: 0 | H67: ='5. Historical Wholesale'!H67 -> 0 | I67: 0 | J67: 0 | L67: ='5. Historical Wholesale'!L67 -> 0 | M67: 0 | N67: 0 | P67: 0
B68: July | D68: ='5. Historical Wholesale'!D68 -> 0 | E68: 0 | F68: 0 | H68: ='5. Historical Wholesale'!H68 -> 0 | I68: 0 | J68: 0 | L68: ='5. Historical Wholesale'!L68 -> 0 | M68: 0 | N68: 0 | P68: 0
B69: August | D69: ='5. Historical Wholesale'!D69 -> 0 | E69: 0 | F69: 0 | H69: ='5. Historical Wholesale'!H69 -> 0 | I69: 0 | J69: 0 | L69: ='5. Historical Wholesale'!L69 -> 0 | M69: 0 | N69: 0 | P69: 0
B70: September | D70: ='5. Historical Wholesale'!D70 -> 0 | E70: 0 | F70: 0 | H70: ='5. Historical Wholesale'!H70 -> 0 | I70: 0 | J70: 0 | L70: ='5. Historical Wholesale'!L70 -> 0 | M70: 0 | N70: 0 | P70: 0
B71: October | D71: ='5. Historical Wholesale'!D71 -> 0 | E71: 0 | F71: 0 | H71: ='5. Historical Wholesale'!H71 -> 0 | I71: 0 | J71: 0 | L71: ='5. Historical Wholesale'!L71 -> 0 | M71: 0 | N71: 0 | P71: 0
B72: November | D72: ='5. Historical Wholesale'!D72 -> 0 | E72: 0 | F72: 0 | H72: ='5. Historical Wholesale'!H72 -> 0 | I72: 0 | J72: 0 | L72: ='5. Historical Wholesale'!L72 -> 0 | M72: 0 | N72: 0 | P72: 0
B73: December | D73: ='5. Historical Wholesale'!D73 -> 0 | E73: 0 | F73: 0 | H73: ='5. Historical Wholesale'!H73 -> 0 | I73: 0 | J73: 0 | L73: ='5. Historical Wholesale'!L73 -> 0 | M73: 0 | N73: 0 | P73: 0
B75: Total | D75: =SUM(D62:D73) -> 0 | E75: =IF(D75<>0,F75/D75,0) -> 0 | F75: =SUM(F62:F73) -> 0 | H75: =SUM(H62:H73) -> 0 | I75: =IF(H75<>0,J75/H75,0) -> 0 | J75: =SUM(J62:J73) -> 0 | L75: =SUM(L62:L73) -> 0 | M75: =IF(L75<>0,N75/L75,0) -> 0 | N75: =SUM(N62:N73) -> 0 | P75: =SUM(P62:P73) -> 0
B77: ='5. Historical Wholesale'!B77 -> Add Extra Host Here (II) | D77: Network | H77: Line Connection | L77: Transformation Connection | P77: Total Connection
B79: Month | D79: Units Billed | E79: Rate | F79: Amount | H79: Units Billed | I79: Rate | J79: Amount | L79: Units Billed | M79: Rate | N79: Amount | P79: Amount
B81: January | D81: ='5. Historical Wholesale'!D81 -> 0 | E81: ='4. UTRs and Sub-Transmission'!L67 -> 0 | F81: =D81*E81 -> 0 | H81: ='5. Historical Wholesale'!H81 -> 0 | I81: ='4. UTRs and Sub-Transmission'!L69 -> 0 | J81: =H81*I81 -> 0 | L81: ='5. Historical Wholesale'!L81 -> 0 | M81: ='4. UTRs and Sub-Transmission'!L71 -> 0 | N81: =L81*M81 -> 0 | P81: =J81+N81 -> 0
B82: February | D82: ='5. Historical Wholesale'!D82 -> 0 | E82: =E81 -> 0 | F82: 0 | H82: ='5. Historical Wholesale'!H82 -> 0 | I82: =I81 -> 0 | J82: 0 | L82: ='5. Historical Wholesale'!L82 -> 0 | M82: =M81 -> 0 | N82: 0 | P82: 0
B83: March | D83: ='5. Historical Wholesale'!D83 -> 0 | E83: 0 | F83: 0 | H83: ='5. Historical Wholesale'!H83 -> 0 | I83: 0 | J83: 0 | L83: ='5. Historical Wholesale'!L83 -> 0 | M83: 0 | N83: 0 | P83: 0
B84: April | D84: ='5. Historical Wholesale'!D84 -> 0 | E84: 0 | F84: 0 | H84: ='5. Historical Wholesale'!H84 -> 0 | I84: 0 | J84: 0 | L84: ='5. Historical Wholesale'!L84 -> 0 | M84: 0 | N84: 0 | P84: 0
B85: May | D85: ='5. Historical Wholesale'!D85 -> 0 | E85: 0 | F85: 0 | H85: ='5. Historical Wholesale'!H85 -> 0 | I85: 0 | J85: 0 | L85: ='5. Historical Wholesale'!L85 -> 0 | M85: 0 | N85: 0 | P85: 0
B86: June | D86: ='5. Historical Wholesale'!D86 -> 0 | E86: 0 | F86: 0 | H86: ='5. Historical Wholesale'!H86 -> 0 | I86: 0 | J86: 0 | L86: ='5. Historical Wholesale'!L86 -> 0 | M86: 0 | N86: 0 | P86: 0
B87: July | D87: ='5. Historical Wholesale'!D87 -> 0 | E87: 0 | F87: 0 | H87: ='5. Historical Wholesale'!H87 -> 0 | I87: 0 | J87: 0 | L87: ='5. Historical Wholesale'!L87 -> 0 | M87: 0 | N87: 0 | P87: 0
B88: August | D88: ='5. Historical Wholesale'!D88 -> 0 | E88: 0 | F88: 0 | H88: ='5. Historical Wholesale'!H88 -> 0 | I88: 0 | J88: 0 | L88: ='5. Historical Wholesale'!L88 -> 0 | M88: 0 | N88: 0 | P88: 0
B89: September | D89: ='5. Historical Wholesale'!D89 -> 0 | E89: 0 | F89: 0 | H89: ='5. Historical Wholesale'!H89 -> 0 | I89: 0 | J89: 0 | L89: ='5. Historical Wholesale'!L89 -> 0 | M89: 0 | N89: 0 | P89: 0
B90: October | D90: ='5. Historical Wholesale'!D90 -> 0 | E90: 0 | F90: 0 | H90: ='5. Historical Wholesale'!H90 -> 0 | I90: 0 | J90: 0 | L90: ='5. Historical Wholesale'!L90 -> 0 | M90: 0 | N90: 0 | P90: 0
B91: November | D91: ='5. Historical Wholesale'!D91 -> 0 | E91: 0 | F91: 0 | H91: ='5. Historical Wholesale'!H91 -> 0 | I91: 0 | J91: 0 | L91: ='5. Historical Wholesale'!L91 -> 0 | M91: 0 | N91: 0 | P91: 0
B92: December | D92: ='5. Historical Wholesale'!D92 -> 0 | E92: 0 | F92: 0 | H92: ='5. Historical Wholesale'!H92 -> 0 | I92: 0 | J92: 0 | L92: ='5. Historical Wholesale'!L92 -> 0 | M92: 0 | N92: 0 | P92: 0
B94: Total | D94: =SUM(D81:D92) -> 0 | E94: =IF(D94<>0,F94/D94,0) -> 0 | F94: =SUM(F81:F92) -> 0 | H94: =SUM(H81:H92) -> 0 | I94: =IF(H94<>0,J94/H94,0) -> 0 | J94: =SUM(J81:J92) -> 0 | L94: =SUM(L81:L92) -> 0 | M94: =IF(L94<>0,N94/L94,0) -> 0 | N94: =SUM(N81:N92) -> 0 | P94: =SUM(P81:P92) -> 0
B96: Total | D96: Network | H96: Line Connection | L96: Transformation Connection | P96: Total Connection
B98: Month | D98: Units Billed | E98: Rate | F98: Amount | H98: Units Billed | I98: Rate | J98: Amount | L98: Units Billed | M98: Rate | N98: Amount | P98: Amount
B100: January | D100: =D24+D43+D62+D81 -> 5572.02 | E100: =IF(D100<>0,F100/D100,0) -> 4.3473 | F100: =F24+F43+F62+F81 -> 24223.24255 | H100: =H24+H43+H62+H81 -> 5891.32 | I100: =IF(H100<>0,J100/H100,0) -> 0.6788 | J100: =J24+J43+J62+J81 -> 3999.028016 | L100: =L24+L43+L62+L81 -> 5891.32 | M100: =IF(L100<>0,N100/L100,0) -> 2.3267 | N100: =N24+N43+N62+N81 -> 13707.33424 | P100: =J100+N100 -> 17706.36226
B101: February | D101: =D25+D44+D63+D82 -> 5509.15 | E101: 4.3473 | F101: 23949.92779 | H101: =H25+H44+H63+H82 -> 5686.17 | I101: 0.6788 | J101: =J25+J44+J63+J82 -> 3859.772196 | L101: =L25+L44+L63+L82 -> 5686.17 | M101: 2.3267 | N101: =N25+N44+N63+N82 -> 13230.01174 | P101: 17089.78393
B102: March | D102: 5199.78 | E102: 4.3473 | F102: 22605.00359 | H102: =H26+H45+H64+H83 -> 5214.67 | I102: 0.6788 | J102: =J26+J45+J64+J83 -> 3539.717996 | L102: =L26+L45+L64+L83 -> 5214.67 | M102: 2.3267 | N102: =N26+N45+N64+N83 -> 12132.97269 | P102: 15672.69069
B103: April | D103: 4163.3 | E103: 4.3473 | F103: 18099.11409 | H103: =H27+H46+H65+H84 -> 4284.07 | I103: 0.6788 | J103: =J27+J46+J65+J84 -> 2908.026716 | L103: =L27+L46+L65+L84 -> 4284.07 | M103: 2.3267 | N103: =N27+N46+N65+N84 -> 9967.745669 | P103: 12875.77239
B104: May | D104: 5663.84 | E104: 4.3473 | F104: 24622.41163 | H104: =H28+H47+H66+H85 -> 5773.86 | I104: 0.6788 | J104: =J28+J47+J66+J85 -> 3919.296168 | L104: =L28+L47+L66+L85 -> 5773.86 | M104: 2.3267 | N104: =N28+N47+N66+N85 -> 13434.04006 | P104: 17353.33623
B105: June | D105: 6955.1 | E105: 4.3473 | F105: 30235.90623 | H105: =H29+H48+H67+H86 -> 6955.1 | I105: 0.6788 | J105: =J29+J48+J67+J86 -> 4721.12188 | L105: =L29+L48+L67+L86 -> 6955.1 | M105: 2.3267 | N105: =N29+N48+N67+N86 -> 16182.43117 | P105: 20903.55305
B106: July | D106: 6395.08 | E106: 4.3473 | F106: 27801.33128 | H106: =H30+H49+H68+H87 -> 6395.08 | I106: 0.6788 | J106: =J30+J49+J68+J87 -> 4340.980304 | L106: =L30+L49+L68+L87 -> 6395.08 | M106: 2.3267 | N106: =N30+N49+N68+N87 -> 14879.43264 | P106: 19220.41294
B107: August | D107: 7186.71 | E107: 4.3473 | F107: 31242.78438 | H107: =H31+H50+H69+H88 -> 7205.74 | I107: 0.6788 | J107: =J31+J50+J69+J88 -> 4891.256312 | L107: =L31+L50+L69+L88 -> 7205.74 | M107: 2.3267 | N107: =N31+N50+N69+N88 -> 16765.59526 | P107: 21656.85157
B108: September | D108: 4813.48 | E108: 4.3473 | F108: 20925.6416 | H108: =H32+H51+H70+H89 -> 4813.48 | I108: 0.6788 | J108: =J32+J51+J70+J89 -> 3267.390224 | L108: =L32+L51+L70+L89 -> 4813.48 | M108: 2.3267 | N108: =N32+N51+N70+N89 -> 11199.52392 | P108: 14466.91414
B109: October | D109: 4346.11 | E109: 4.3473 | F109: 18893.844 | H109: =H33+H52+H71+H90 -> 4346 | I109: 0.6788 | J109: =J33+J52+J71+J90 -> 2950.0648 | L109: =L33+L52+L71+L90 -> 4346.11 | M109: 2.3267 | N109: =N33+N52+N71+N90 -> 10112.09414 | P109: 13062.15894
B110: November | D110: 5234.52 | E110: 4.3473 | F110: 22756.0288 | H110: =H34+H53+H72+H91 -> 5543.89 | I110: 0.6788 | J110: =J34+J53+J72+J91 -> 3763.192532 | L110: =L34+L53+L72+L91 -> 5543.89 | M110: 2.3267 | N110: =N34+N53+N72+N91 -> 12898.96886 | P110: 16662.1614
B111: December | D111: 5777.99 | E111: 4.3473 | F111: 25118.65593 | H111: =H35+H54+H73+H92 -> 5795.36 | I111: 0.6788 | J111: =J35+J54+J73+J92 -> 3933.890368 | L111: =L35+L54+L73+L92 -> 5795.36 | M111: 2.3267 | N111: =N35+N54+N73+N92 -> 13484.06411 | P111: 17417.95448
B113: Total | D113: =SUM(D100:D111) -> 66817.08 | E113: =IF(D113<>0,F113/D113,0) -> 4.3473 | F113: =SUM(F100:F111) -> 290473.8919 | H113: =SUM(H100:H111) -> 67904.74 | I113: =IF(H113<>0,J113/H113,0) -> 0.6788 | J113: =SUM(J100:J111) -> 46093.73751 | L113: =SUM(L100:L111) -> 67904.85 | M113: =IF(L113<>0,N113/L113,0) -> 2.3267 | N113: =SUM(N100:N111) -> 157994.2145 | P113: =SUM(P100:P111) -> 204087.952
N115: Low Voltage Switchgear Credit (if applicable) | P115: ='4. UTRs and Sub-Transmission'!L76 -> 0
N117: Total including deduction for Low Voltage Switchgear Credit | P117: =P113+P115 -> 204087.952

Sheet 8. RTSR Rates to Forecast
A13: The purpose of this sheet is to re-align the current RTS Network Rates to recover current wholesale network costs.
A15: Rate Class | B15: Rate Description | C15: Unit | D15: Current RTSR-Network | E15: Loss Adjusted Billed kWh | F15: Billed kW | G15: Billed Amount | H15: Billed Amount % | I15: Current Wholesale Billing | J15: Adjusted RTSR Network
A17: RESIDENTIAL SERVICE CLASSIFICATION | B17: Retail Transmission Rate - Network Service Rate | C17: $/kWh | D17: 0.0077 | E17: 23276958.43 | F17: 0 | G17: =ROUND(D17*E17, 2) -> 179232.58 | H17: =G17/240762.29 -> 0.7444379267 | I17: =H17*total_current_wholesale_network -> 172989.8358 | J17: =IF(ISERROR(I17/E17), 0, I17/E17) -> 0.007431805851
A18: GENERAL SERVICE LESS THAN 50 KW SERVICE CLASSIFICATION | B18: Retail Transmission Rate - Network Service Rate | C18: $/kWh | D18: 0.007 | E18: 4676599.677 | F18: 0 | G18: =ROUND(D18*E18, 2) -> 32736.2 | H18: =G18/240762.29 -> 0.1359689676 | I18: =H18*total_current_wholesale_network -> 31595.98475 | J18: =IF(ISERROR(I18/E18), 0, I18/E18) -> 0.006756187599
A19: GENERAL SERVICE 50 to 4,999 kW SERVICE CLASSIFICATION | B19: Retail Transmission Rate - Network Service Rate | C19: $/kW | D19: 2.8324 | E19: 4255784.926 | F19: 9472 | G19: =ROUND(D19*F19, 2) -> 26828.49 | H19: =G19/240762.29 -> 0.1114314455 | I19: =H19*total_current_wholesale_network -> 25894.0427 | J19: =IF(ISERROR(I19/F19), 0, I19/F19) -> 2.733746063
A20: UNMETERED SCATTERED LOAD SERVICE CLASSIFICATION | B20: Retail Transmission Rate - Network Service Rate | C20: $/kWh | D20: 0.007 | E20: 100055.9916 | F20: 0 | G20: =ROUND(D20*E20, 2) -> 700.39 | H20: =G20/240762.29 -> 0.002909051912 | I20: =H20*total_current_wholesale_network -> 675.9951294 | J20: =IF(ISERROR(I20/E20), 0, I20/E20) -> 0.006756168407
A21: STREET LIGHTING SERVICE CLASSIFICATION | B21: Retail Transmission Rate - Network Service Rate | C21: $/kW | D21: 2.1362 | E21: 230613.3456 | F21: 592 | G21: =ROUND(D21*F21, 2) -> 1264.63 | H21: =G21/240762.29 -> 0.005252608288 | I21: =H21*total_current_wholesale_network -> 1220.582419 | J21: =IF(ISERROR(I21/F21), 0, I21/F21) -> 2.061794627
A23: The purpose of this table is to re-align the current RTS Connection Rates to recover current wholesale connection costs.
A24: Rate Class | B24: Rate Description | C24: Unit | D24: Current RTSR-Connection | E24: Loss Adjusted Billed kWh | F24: Billed kW | G24: Billed Amount | H24: Billed Amount % | I24: Current Wholesale Billing | J24: Adjusted RTSR-Connection
A26: RESIDENTIAL SERVICE CLASSIFICATION | B26: Retail Transmission Rate - Line and Transformation Connection Service Rate | C26: $/kWh | D26: 0.0065 | E26: 23276958.43 | F26: 0 | G26: =ROUND(D26*E26, 2) -> 151300.23 | H26: =G26/200588.77 -> 0.7542806609 | I26: =H26*Total_Current_Wholesale_Lineplus -> 146415.4668 | J26: =IF(ISERROR(I26/E26), 0, I26/E26) -> 0.006290145995
A27: GENERAL SERVICE LESS THAN 50 KW SERVICE CLASSIFICATION | B27: Retail Transmission Rate - Line and Transformation Connection Service Rate | C27: $/kWh | D27: 0.0056 | E27: 4676599.677 | F27: 0 | G27: =ROUND(D27*E27, 2) -> 26188.96 | H27: =G27/200588.77 -> 0.1305604496 | I27: =H27*Total_Current_Wholesale_Lineplus -> 25343.44332 | J27: =IF(ISERROR(I27/E27), 0, I27/E27) -> 0.005419203069
A28: GENERAL SERVICE 50 to 4,999 kW SERVICE CLASSIFICATION | B28: Retail Transmission Rate - Line and Transformation Connection Service Rate | C28: $/kW | D28: 2.2699 | E28: 4255784.926 | F28: 9472 | G28: =ROUND(D28*F28, 2) -> 21500.49 | H28: =G28/200588.77 -> 0.1071869078 | I28: =H28*Total_Current_Wholesale_Lineplus -> 20806.34167 | J28: =IF(ISERROR(I28/F28), 0, I28/F28) -> 2.196615463
A29: UNMETERED SCATTERED LOAD SERVICE CLASSIFICATION | B29: Retail Transmission Rate - Line and Transformation Connection Service Rate | C29: $/kWh | D29: 0.0056 | E29: 100055.9916 | F29: 0 | G29: =ROUND(D29*E29, 2) -> 560.31 | H29: =G29/200588.77 -> 0.002793326865 | I29: =H29*Total_Current_Wholesale_Lineplus -> 542.220261 | J29: =IF(ISERROR(I29/E29), 0, I29/E29) -> 0.005419168331
A30: STREET LIGHTING SERVICE CLASSIFICATION | B30: Retail Transmission Rate - Line and Transformation Connection Service Rate | C30: $/kW | D30: 1.7547 | E30: 230613.3456 | F30: 592 | G30: =ROUND(D30*F30, 2) -> 1038.78 | H30: =G30/200588.77 -> 0.005178654817 | I30: =H30*Total_Current_Wholesale_Lineplus -> 1005.242746 | J30: =IF(ISERROR(I30/F30), 0, I30/F30) -> 1.698045178
A32: The purpose of this table is to update the re-aligned RTS Network Rates to recover future wholesale network costs.
A33: Rate Class | B33: Rate Description | C33: Unit | D33: Adjusted RTSR-Network | E33: Loss Adjusted Billed kWh | F33: Billed kW | G33: Billed Amount | H33: Billed Amount % | I33: Forecast Wholesale Billing | J33: Proposed RTSR-Network
A35: RESIDENTIAL SERVICE CLASSIFICATION | B35: Retail Transmission Rate - Network Service Rate | C35: $/kWh | D35: 0.007431805851 | E35: 23276958.43 | F35: 0 | G35: =IF(ISERROR(D35*E35), 0, ROUND(D35*E35, 2)) -> 172989.84 | H35: =G35/232376.44 -> 0.7444379473 | I35: =H35*forecast_wholesale_network -> 216239.7878 | J35: =IF(ISERROR(I35/E35), 0, I35/E35) -> 0.009289864418
A36: GENERAL SERVICE LESS THAN 50 KW SERVICE CLASSIFICATION | B36: Retail Transmission Rate - Network Service Rate | C36: $/kWh | D36: 0.006756187599 | E36: 4676599.677 | F36: 0 | G36: =IF(ISERROR(D36*E36), 0, ROUND(D36*E36, 2)) -> 31595.98 | H36: =G36/232376.44 -> 0.1359689476 | I36: =H36*forecast_wholesale_network -> 39495.42939 | J36: =IF(ISERROR(I36/E36), 0, I36/E36) -> 0.008445330394
A37: GENERAL SERVICE 50 to 4,999 kW SERVICE CLASSIFICATION | B37: Retail Transmission Rate - Network Service Rate | C37: $/kW | D37: 2.733746063 | E37: 4255784.926 | F37: 9472 | G37: =ROUND(D37*F37, 2) -> 25894.04 | H37: =G37/232376.44 -> 0.1114314343 | I37: =H37*forecast_wholesale_network -> 32367.92239 | J37: =IF(ISERROR(I37/F37), 0, I37/F37) -> 3.417221536
A38: UNMETERED SCATTERED LOAD SERVICE CLASSIFICATION | B38: Retail Transmission Rate - Network Service Rate | C38: $/kWh | D38: 0.006756168407 | E38: 100055.9916 | F38: 0 | G38: =IF(ISERROR(D38*E38), 0, ROUND(D38*E38, 2)) -> 676 | H38: =G38/232376.44 -> 0.002909072882 | I38: =H38*forecast_wholesale_network -> 845.0097218 | J38: =IF(ISERROR(I38/E38), 0, I38/E38) -> 0.008445368521
A39: STREET LIGHTING SERVICE CLASSIFICATION | B39: Retail Transmission Rate - Network Service Rate | C39: $/kW | D39: 2.061794627 | E39: 230613.3456 | F39: 592 | G39: =ROUND(D39*F39, 2) -> 1220.58 | H39: =G39/232376.44 -> 0.005252597897 | I39: =H39*forecast_wholesale_network -> 1525.742554 | J39: =IF(ISERROR(I39/F39), 0, I39/F39) -> 2.577267827
A41: The purpose of this table is to update the re-aligned RTS Connection Rates to recover future wholesale connection costs.
A42: Rate Class | B42: Rate Description | C42: Unit | D42: Adjusted RTSR-Connection | E42: Loss Adjusted Billed kWh | F42: Billed kW | G42: Billed Amount | H42: Billed Amount % | I42: Forecast Wholesale Billing | J42: Proposed RTSR-Connection
A44: RESIDENTIAL SERVICE CLASSIFICATION | B44: Retail Transmission Rate - Line and Transformation Connection Service Rate | C44: $/kWh | D44: 0.006290145995 | E44: 23276958.43 | F44: 0 | G44: =ROUND(D44*E44, 2) -> 146415.47 | H44: =G44/194112.71 -> 0.754280696 | I44: =H44*forecast_wholesale_lineplus -> 153939.6025 | J44: =IF(ISERROR(I44/E44), 0, I44/E44) -> 0.006613389931
A45: GENERAL SERVICE LESS THAN 50 KW SERVICE CLASSIFICATION | B45: Retail Transmission Rate - Line and Transformation Connection Service Rate | C45: $/kWh | D45: 0.005419203069 | E45: 4676599.677 | F45: 0 | G45: =ROUND(D45*E45, 2) -> 25343.44 | H45: =G45/194112.71 -> 0.1305604357 | I45: =H45*forecast_wholesale_lineplus -> 26645.81194 | J45: =IF(ISERROR(I45/E45), 0, I45/E45) -> 0.005697689301
A46: GENERAL SERVICE 50 to 4,999 kW SERVICE CLASSIFICATION | B46: Retail Transmission Rate - Line and Transformation Connection Service Rate | C46: $/kW | D46: 2.196615463 | E46: 4255784.926 | F46: 9472 | G46: =ROUND(D46*F46, 2) -> 20806.34 | H46: =G46/194112.71 -> 0.1071869019 | I46: =H46*forecast_wholesale_lineplus -> 21875.55529 | J46: =IF(ISERROR(I46/F46), 0, I46/F46) -> 2.309496969
A47: UNMETERED SCATTERED LOAD SERVICE CLASSIFICATION | B47: Retail Transmission Rate - Line and Transformation Connection Service Rate | C47: $/kWh | D47: 0.005419168331 | E47: 100055.9916 | F47: 0 | G47: =ROUND(D47*E47, 2) -> 542.22 | H47: =G47/194112.71 -> 0.002793325589 | I47: =H47*forecast_wholesale_lineplus -> 570.0840988 | J47: =IF(ISERROR(I47/E47), 0, I47/E47) -> 0.005697650782
A48: STREET LIGHTING SERVICE CLASSIFICATION | B48: Retail Transmission Rate - Line and Transformation Connection Service Rate | C48: $/kW | D48: 1.698045178 | E48: 230613.3456 | F48: 592 | G48: =ROUND(D48*F48, 2) -> 1005.24 | H48: =G48/194112.71 -> 0.005178640801 | I48: =H48*forecast_wholesale_lineplus -> 1056.898195 | J48: =IF(ISERROR(I48/F48), 0, I48/F48) -> 1.785301006

Sheet RateClasses (hidden)
A2: Alectra Utilities Corporation-Brampton Rate Zone | B2: RESIDENTIAL SERVICE CLASSIFICATION~Retail Transmission Rate - Network Service Rate | C2: RESIDENTIAL SERVICE CLASSIFICATION~Retail Transmission Rate - Line and Transformation Connection Service Rate | D2: GENERAL SERVICE LESS THAN 50 KW SERVICE CLASSIFICATION~Retail Transmission Rate - Network Service Rate | E2: GENERAL SERVICE LESS THAN 50 KW SERVICE CLASSIFICATION~Retail Transmission Rate - Line and Transformation Connection Service Rate | F2: GENERAL SERVICE 50 TO 699 KW SERVICE CLASSIFICATION~Retail Transmission Rate - Network Service Rate | G2: GENERAL SERVICE 50 TO 699 KW SERVICE CLASSIFICATION~Retail Transmission Rate - Line and Transformation Connection Service Rate | H2: GENERAL SERVICE 700 TO 4,999 KW SERVICE CLASSIFICATION~Retail Transmission Rate - Network Service Rate | I2: GENERAL SERVICE 700 TO 4,999 KW SERVICE CLASSIFICATION~Retail Transmission Rate - Line and Transformation Connection Service Rate | J2: LARGE USE SERVICE CLASSIFICATION~Retail Transmission Rate - Network Service Rate | K2: LARGE USE SERVICE CLASSIFICATION~Retail Transmission Rate - Line and Transformation Connection Service Rate | L2: UNMETERED SCATTERED LOAD SERVICE CLASSIFICATION~Retail Transmission Rate - Network Service Rate | M2: UNMETERED SCATTERED LOAD SERVICE CLASSIFICATION~Retail Transmission Rate - Line and Transformation Connection Service Rate | N2: STREET LIGHTING SERVICE CLASSIFICATION~Retail Transmission Rate - Network Service Rate | O2: STREET LIGHTING SERVICE CLASSIFICATION~Retail Transmission Rate - Line and Transformation Connection Service Rate | P2: EMBEDDED DISTRIBUTOR SERVICE CLASSIFICATION~Retail Transmission Rate - Network Service Rate | Q2: EMBEDDED DISTRIBUTOR SERVICE CLASSIFICATION~Retail Transmission Rate - Line and Transformation Connection Service Rate | R2: DISTRIBUTED GENERATION [DGEN] SERVICE CLASSIFICATION~Retail Transmission Rate - Network Service Rate | S2: DISTRIBUTED GENERATION [DGEN] SERVICE CLASSIFICATION~Retail Transmission Rate - Line and Transformation Connection Service Rate
A3: Alectra Utilities Corporation-Enersource Rate Zone | B3: RESIDENTIAL SERVICE CLASSIFICATION~Retail Transmission Rate - Network Service Rate | C3: RESIDENTIAL SERVICE CLASSIFICATION~Retail Transmission Rate - Line and Transformation Connection Service Rate | D3: GENERAL SERVICE LESS THAN 50 KW SERVICE CLASSIFICATION~Retail Transmission Rate - Network Service Rate | E3: GENERAL SERVICE LESS THAN 50 KW SERVICE CLASSIFICATION~Retail Transmission Rate - Line and Transformation Connection Service Rate | F3: GENERAL SERVICE 50 TO 499 KW SERVICE CLASSIFICATION~Retail Transmission Rate - Network Service Rate | G3: GENERAL SERVICE 50 TO 499 KW SERVICE CLASSIFICATION~Retail Transmission Rate - Line and Transformation Connection Service Rate | H3: GENERAL SERVICE 500 TO 4,999 KW SERVICE CLASSIFICATION~Retail Transmission Rate - Network Service Rate | I3: GENERAL SERVICE 500 TO 4,999 KW SERVICE CLASSIFICATION~Retail Transmission Rate - Line and Transformation Connection Service Rate | J3: LARGE USE SERVICE CLASSIFICATION~Retail Transmission Rate - Network Service Rate – Interval Metered | K3: LARGE USE SERVICE CLASSIFICATION~Retail Transmission Rate - Line and Transformation Connection Service Rate – Interval Metered | L3: UNMETERED SCATTERED LOAD SERVICE CLASSIFICATION~Retail Transmission Rate - Network Service Rate | M3: UNMETERED SCATTERED LOAD SERVICE CLASSIFICATION~Retail Transmission Rate - Line and Transformation Connection Service Rate | N3: STREET LIGHTING SERVICE CLASSIFICATION~Retail Transmission Rate - Network Service Rate | O3: STREET LIGHTING SERVICE CLASSIFICATION~Retail Transmission Rate - Line and Transformation Connection Service Rate
A4: Alectra Utilities Corporation-Horizon Utilities Rate Zone | B4: RESIDENTIAL SERVICE CLASSIFICATION~Retail Transmission Rate - Network Service Rate | C4: RESIDENTIAL SERVICE CLASSIFICATION~Retail Transmission Rate - Line and Transformation Connection Service Rate | D4: GENERAL SERVICE LESS THAN 50 KW SERVICE CLASSIFICATION~Retail Transmission Rate - Network Service Rate | E4: GENERAL SERVICE LESS THAN 50 KW SERVICE CLASSIFICATION~Retail Transmission Rate - Line and Transformation Connection Service Rate | F4: GENERAL SERVICE 50 to 4,999 kW SERVICE CLASSIFICATION~Retail Transmission Rate - Network Service Rate | G4: GENERAL SERVICE 50 to 4,999 kW SERVICE CLASSIFICATION~Retail Transmission Rate - Line and Transformation Connection Service Rate | H4: LARGE USE SERVICE CLASSIFICATION~Retail Transmission Rate - Network Service Rate | I4: LARGE USE SERVICE CLASSIFICATION~Retail Transmission Rate - Line and Transformation Connection Service Rate | J4: LARGE USE WITH DEDICATED ASSETS SERVICE CLASSIFICATION~Retail Transmission Rate - Network Service Rate | K4: LARGE USE WITH DEDICATED ASSETS SERVICE CLASSIFICATION~Retail Transmission Rate - Line and Transformation Connection Service Rate | L4: UNMETERED SCATTERED LOAD SERVICE CLASSIFICATION~Retail Transmission Rate - Network Service Rate | M4: UNMETERED SCATTERED LOAD SERVICE CLASSIFICATION~Retail Transmission Rate - Line and Transformation Connection Service Rate | N4: SENTINEL LIGHTING SERVICE CLASSIFICATION~Retail Transmission Rate - Network Service Rate | O4: SENTINEL LIGHTING SERVICE CLASSIFICATION~Retail Transmission Rate - Line and Transformation Connection Service Rate | P4: STREET LIGHTING SERVICE CLASSIFICATION~Retail Transmission Rate - Network Service Rate | Q4: STREET LIGHTING SERVICE CLASSIFICATION~Retail Transmission Rate - Line and Transformation Connection Service Rate
A5: Alectra Utilities Corporation-PowerStream Rate Zone | B5: RESIDENTIAL SERVICE CLASSIFICATION~Retail Transmission Rate - Network Service Rate | C5: RESIDENTIAL SERVICE CLASSIFICATION~Retail Transmission Rate - Line and Transformation Connection Service Rate | D5: GENERAL SERVICE LESS THAN 50 KW SERVICE CLASSIFICATION~Retail Transmission Rate - Network Service Rate | E5: GENERAL SERVICE LESS THAN 50 KW SERVICE CLASSIFICATION~Retail Transmission Rate - Line and Transformation Connection Service Rate | F5: GENERAL SERVICE 50 to 4,999 kW SERVICE CLASSIFICATION~Retail Transmission Rate - Network Service Rate | G5: GENERAL SERVICE 50 to 4,999 kW SERVICE CLASSIFICATION~Retail Transmission Rate - Line and Transformation Connection Service Rate | H5: GENERAL SERVICE 50 to 4,999 kW SERVICE CLASSIFICATION~Retail Transmission Rate - Network Service Rate – Interval Metered | I5: GENERAL SERVICE 50 to 4,999 kW SERVICE CLASSIFICATION~Retail Transmission Rate - Line and Transformation Connection Service Rate – Interval Metered | J5: LARGE USE SERVICE CLASSIFICATION~Retail Transmission Rate - Network Service Rate | K5: LARGE USE SERVICE CLASSIFICATION~Retail Transmission Rate - Line and Transformation Connection Service Rate | L5: UNMETERED SCATTERED LOAD SERVICE CLASSIFICATION~Retail Transmission Rate - Network Service Rate | M5: UNMETERED SCATTERED LOAD SERVICE CLASSIFICATION~Retail Transmission Rate - Line and Transformation Connection Service Rate | N5: SENTINEL LIGHTING SERVICE CLASSIFICATION~Retail Transmission Rate - Network Service Rate | O5: SENTINEL LIGHTING SERVICE CLASSIFICATION~Retail Transmission Rate - Line and Transformation Connection Service Rate | P5: STREET LIGHTING SERVICE CLASSIFICATION~Retail Transmission Rate - Network Service Rate | Q5: STREET LIGHTING SERVICE CLASSIFICATION~Retail Transmission Rate - Line and Transformation Connection Service Rate
A6: Algoma Power Inc. | B6: RESIDENTIAL R1 SERVICE CLASSIFICATION~Retail Transmission Rate - Network Service Rate | C6: RESIDENTIAL R1 SERVICE CLASSIFICATION~Retail Transmission Rate - Line and Transformation Connection Service Rate | D6: RESIDENTIAL R2 SERVICE CLASSIFICATION~Retail Transmission Rate - Network Service Rate | E6: RESIDENTIAL R2 SERVICE CLASSIFICATION~Retail Transmission Rate - Line and Transformation Connection Service Rate | F6: SEASONAL CUSTOMERS SERVICE CLASSIFICATION~Retail Transmission Rate - Network Service Rate | G6: SEASONAL CUSTOMERS SERVICE CLASSIFICATION~Retail Transmission Rate - Line and Transformation Connection Service Rate | H6: STREET LIGHTING SERVICE CLASSIFICATION~Retail Transmission Rate - Network Service Rate | I6: STREET LIGHTING SERVICE CLASSIFICATION~Retail Transmission Rate - Line and Transformation Connection Service Rate
A7: Centre Wellington Hydro Ltd. | B7: RESIDENTIAL SERVICE CLASSIFICATION~Retail Transmission Rate - Network Service Rate | C7: RESIDENTIAL SERVICE CLASSIFICATION~Retail Transmission Rate - Line and Transformation Connection Service Rate | D7: GENERAL SERVICE LESS THAN 50 KW SERVICE CLASSIFICATION~Retail Transmission Rate - Network Service Rate | E7: GENERAL SERVICE LESS THAN 50 KW SERVICE CLASSIFICATION~Retail Transmission Rate - Line and Transformation Connection Service Rate | F7: GENERAL SERVICE 50 TO 2,999 KW SERVICE CLASSIFICATION~Retail Transmission Rate - Network Service Rate | G7: GENERAL SERVICE 50 TO 2,999 KW SERVICE CLASSIFICATION~Retail Transmission Rate - Line and Transformation Connection Service Rate | H7: GENERAL SERVICE 3,000 TO 4,999 KW SERVICE CLASSIFICATION~Retail Transmission Rate - Network Service Rate | I7: GENERAL SERVICE 3,000 TO 4,999 KW SERVICE CLASSIFICATION~Retail Transmission Rate - Line and Transformation Connection Service Rate | J7: UNMETERED SCATTERED LOAD SERVICE CLASSIFICATION~Retail Transmission Rate - Network Service Rate | K7: UNMETERED SCATTERED LOAD SERVICE CLASSIFICATION~Retail Transmission Rate - Line and Transformation Connection Service Rate | L7: SENTINEL LIGHTING SERVICE CLASSIFICATION~Retail Transmission Rate - Network Service Rate | M7: SENTINEL LIGHTING SERVICE CLASSIFICATION~Retail Transmission Rate - Line and Transformation Connection Service Rate | N7: STREET LIGHTING SERVICE CLASSIFICATION~Retail Transmission Rate - Network Service Rate | O7: STREET LIGHTING SERVICE CLASSIFICATION~Retail Transmission Rate - Line and Transformation Connection Service Rate
A8: Canadian Niagara Power Inc. | B8: RESIDENTIAL SERVICE CLASSIFICATION~Retail Transmission Rate - Network Service Rate | C8: RESIDENTIAL SERVICE CLASSIFICATION~Retail Transmission Rate - Line and Transformation Connection Service Rate | D8: GENERAL SERVICE LESS THAN 50 KW SERVICE CLASSIFICATION~Retail Transmission Rate - Network Service Rate | E8: GENERAL SERVICE LESS THAN 50 KW SERVICE CLASSIFICATION~Retail Transmission Rate - Line and Transformation Connection Service Rate | F8: GENERAL SERVICE 50 to 4,999 kW SERVICE CLASSIFICATION~Retail Transmission Rate - Network Service Rate | G8: GENERAL SERVICE 50 to 4,999 kW SERVICE CLASSIFICATION~Retail Transmission Rate - Line and Transformation Connection Service Rate | H8: EMBEDDED DISTRIBUTOR SERVICE CLASSIFICATION~Retail Transmission Rate - Network Service Rate | I8: EMBEDDED DISTRIBUTOR SERVICE CLASSIFICATION~Retail Transmission Rate - Line and Transformation Connection Service Rate | J8: UNMETERED SCATTERED LOAD SERVICE CLASSIFICATION~Retail Transmission Rate - Network Service Rate | K8: UNMETERED SCATTERED LOAD SERVICE CLASSIFICATION~Retail Transmission Rate - Line and Transformation Connection Service Rate | L8: SENTINEL LIGHTING SERVICE CLASSIFICATION~Retail Transmission Rate - Network Service Rate | M8: SENTINEL LIGHTING SERVICE CLASSIFICATION~Retail Transmission Rate - Line and Transformation Connection Service Rate | N8: STREET LIGHTING SERVICE CLASSIFICATION~Retail Transmission Rate - Network Service Rate | O8: STREET LIGHTING SERVICE CLASSIFICATION~Retail Transmission Rate - Line and Transformation Connection Service Rate
A9: Entegrus Powerlines Inc. | B9: RESIDENTIAL SERVICE CLASSIFICATION~Retail Transmission Rate - Network Service Rate | C9: RESIDENTIAL SERVICE CLASSIFICATION~Retail Transmission Rate - Line and Transformation Connection Service Rate | D9: GENERAL SERVICE LESS THAN 50 KW SERVICE CLASSIFICATION~Retail Transmission Rate - Network Service Rate | E9: GENERAL SERVICE LESS THAN 50 KW SERVICE CLASSIFICATION~Retail Transmission Rate - Line and Transformation Connection Service Rate | F9: GENERAL SERVICE 50 to 4,999 kW SERVICE CLASSIFICATION~Retail Transmission Rate - Network Service Rate | G9: GENERAL SERVICE 50 to 4,999 kW SERVICE CLASSIFICATION~Retail Transmission Rate - Line and Transformation Connection Service Rate (see Note 1) | H9: LARGE USE SERVICE CLASSIFICATION~Retail Transmission Rate - Network Service Rate | I9: LARGE USE SERVICE CLASSIFICATION~Retail Transmission Rate - Line and Transformation Connection Service Rate (see Note 1) | J9: UNMETERED SCATTERED LOAD SERVICE CLASSIFICATION~Retail Transmission Rate - Network Service Rate | K9: UNMETERED SCATTERED LOAD SERVICE CLASSIFICATION~Retail Transmission Rate - Line and Transformation Connection Service Rate | L9: SENTINEL LIGHTING SERVICE CLASSIFICATION~Retail Transmission Rate - Network Service Rate | M9: SENTINEL LIGHTING SERVICE CLASSIFICATION~Retail Transmission Rate - Line and Transformation Connection Service Rate | N9: STREET LIGHTING SERVICE CLASSIFICATION~Retail Transmission Rate - Network Service Rate | O9: STREET LIGHTING SERVICE CLASSIFICATION~Retail Transmission Rate - Line and Transformation Connection Service Rate | P9: EMBEDDED DISTRIBUTOR SERVICE CLASSIFICATION~Retail Transmission Rate - Network Service Rate | Q9: EMBEDDED DISTRIBUTOR SERVICE CLASSIFICATION~Retail Transmission Rate - Line and Transformation Connection Service Rate
A10: Entegrus Powerlines Inc.-For Former St. Thomas Energy Rate Zone | B10: RESIDENTIAL SERVICE CLASSIFICATION~Retail Transmission Rate - Network Service Rate | C10: RESIDENTIAL SERVICE CLASSIFICATION~Retail Transmission Rate - Line and Transformation Connection Service Rate | D10: GENERAL SERVICE LESS THAN 50 KW SERVICE CLASSIFICATION~Retail Transmission Rate - Network Service Rate | E10: GENERAL SERVICE LESS THAN 50 KW SERVICE CLASSIFICATION~Retail Transmission Rate - Line and Transformation Connection Service Rate | F10: GENERAL SERVICE 50 to 4,999 kW SERVICE CLASSIFICATION~Retail Transmission Rate - Network Service Rate | G10: GENERAL SERVICE 50 to 4,999 kW SERVICE CLASSIFICATION~Retail Transmission Rate - Line and Transformation Connection Service Rate | H10: SENTINEL LIGHTING SERVICE CLASSIFICATION~Retail Transmission Rate - Network Service Rate | I10: SENTINEL LIGHTING SERVICE CLASSIFICATION~Retail Transmission Rate - Line and Transformation Connection Service Rate | J10: STREET LIGHTING SERVICE CLASSIFICATION~Retail Transmission Rate - Network Service Rate | K10: STREET LIGHTING SERVICE CLASSIFICATION~Retail Transmission Rate - Line and Transformation Connection Service Rate
A11: Festival Hydro Inc. | B11: RESIDENTIAL SERVICE CLASSIFICATION~Retail Transmission Rate - Network Service Rate | C11: RESIDENTIAL SERVICE CLASSIFICATION~Retail Transmission Rate - Line and Transformation Connection Service Rate | D11: GENERAL SERVICE LESS THAN 50 KW SERVICE CLASSIFICATION~Retail Transmission Rate - Network Service Rate | E11: GENERAL SERVICE LESS THAN 50 KW SERVICE CLASSIFICATION~Retail Transmission Rate - Line and Transformation Connection Service Rate | F11: GENERAL SERVICE 50 to 4,999 kW SERVICE CLASSIFICATION~Retail Transmission Rate - Network Service Rate | G11: GENERAL SERVICE 50 to 4,999 kW SERVICE CLASSIFICATION~Retail Transmission Rate - Line and Transformation Connection Service Rate | H11: GENERAL SERVICE 50 to 4,999 kW SERVICE CLASSIFICATION~Retail Transmission Rate - Network Service Rate - Interval Metered | I11: GENERAL SERVICE 50 to 4,999 kW SERVICE CLASSIFICATION~Retail Transmission Rate - Line and Transformation Connection Service Rate - Interval Metered | J11: LARGE USE SERVICE CLASSIFICATION~Retail Transmission Rate - Network Service Rate - Interval Metered | K11: LARGE USE SERVICE CLASSIFICATION~Retail Transmission Rate - Line and Transformation Connection Service Rate - Interval Metered | L11: UNMETERED SCATTERED LOAD SERVICE CLASSIFICATION~Retail Transmission Rate - Network Service Rate | M11: UNMETERED SCATTERED LOAD SERVICE CLASSIFICATION~Retail Transmission Rate - Line and Transformation Connection Service Rate | N11: SENTINEL LIGHTING SERVICE CLASSIFICATION~Retail Transmission Rate - Network Service Rate | O11: SENTINEL LIGHTING SERVICE CLASSIFICATION~Retail Transmission Rate - Line and Transformation Connection Service Rate | P11: STREET LIGHTING SERVICE CLASSIFICATION~Retail Transmission Rate - Network Service Rate | Q11: STREET LIGHTING SERVICE CLASSIFICATION~Retail Transmission Rate - Line and Transformation Connection Service Rate
A12: Grimsby Power Incorporated | B12: RESIDENTIAL SERVICE CLASSIFICATION~Retail Transmission Rate - Network Service Rate | C12: RESIDENTIAL SERVICE CLASSIFICATION~Retail Transmission Rate - Line and Transformation Connection Service Rate | D12: GENERAL SERVICE LESS THAN 50 KW SERVICE CLASSIFICATION~Retail Transmission Rate - Network Service Rate | E12: GENERAL SERVICE LESS THAN 50 KW SERVICE CLASSIFICATION~Retail Transmission Rate - Line and Transformation Connection Service Rate | F12: GENERAL SERVICE 50 to 4,999 kW SERVICE CLASSIFICATION~Retail Transmission Rate - Network Service Rate | G12: GENERAL SERVICE 50 to 4,999 kW SERVICE CLASSIFICATION~Retail Transmission Rate - Line and Transformation Connection Service Rate | H12: GENERAL SERVICE 50 to 4,999 kW SERVICE CLASSIFICATION~Retail Transmission Rate - Network Service Rate - Interval Metered | I12: GENERAL SERVICE 50 to 4,999 kW SERVICE CLASSIFICATION~Retail Transmission Rate - Line and Transformation Connection Service Rate - Interval Metered | J12: UNMETERED SCATTERED LOAD SERVICE CLASSIFICATION~Retail Transmission Rate - Network Service Rate | K12: UNMETERED SCATTERED LOAD SERVICE CLASSIFICATION~Retail Transmission Rate - Line and Transformation Connection Service Rate | L12: STREET LIGHTING SERVICE CLASSIFICATION~Retail Transmission Rate - Network Service Rate | M12: STREET LIGHTING SERVICE CLASSIFICATION~Retail Transmission Rate - Line and Transformation Connection Service Rate | N12: EMBEDDED DISTRIBUTOR SERVICE CLASSIFICATION~Retail Transmission Rate - Network Service Rate | O12: EMBEDDED DISTRIBUTOR SERVICE CLASSIFICATION~Retail Transmission Rate - Line and Transformation Connection Service Rate
A13: Alectra Utilities Corporation-Guelph Rate Zone | B13: RESIDENTIAL SERVICE CLASSIFICATION~Retail Transmission Rate - Network Service Rate | C13: RESIDENTIAL SERVICE CLASSIFICATION~Retail Transmission Rate - Line and Transformation Connection Service Rate | D13: GENERAL SERVICE LESS THAN 50 KW SERVICE CLASSIFICATION~Retail Transmission Rate - Network Service Rate | E13: GENERAL SERVICE LESS THAN 50 KW SERVICE CLASSIFICATION~Retail Transmission Rate - Line and Transformation Connection Service Rate | F13: GENERAL SERVICE 50 TO 999 KW SERVICE CLASSIFICATION~Retail Transmission Rate - Network Service Rate | G13: GENERAL SERVICE 50 TO 999 KW SERVICE CLASSIFICATION~Retail Transmission Rate - Network Service Rate - Interval Metered | H13: GENERAL SERVICE 50 TO 999 KW SERVICE CLASSIFICATION~Retail Transmission Rate - Line and Transformation Connection Service Rate | I13: GENERAL SERVICE 50 TO 999 KW SERVICE CLASSIFICATION~Retail Transmission Rate - Line and Transformation Connection Service Rate - Interval Metered | J13: GENERAL SERVICE 1,000 TO 4,999 KW SERVICE CLASSIFICATION~Retail Transmission Rate - Network Service Rate - Interval Metered | K13: GENERAL SERVICE 1,000 TO 4,999 KW SERVICE CLASSIFICATION~Retail Transmission Rate - Line and Transformation Connection Service Rate - Interval Metered | L13: LARGE USE SERVICE CLASSIFICATION~Retail Transmission Rate - Network Service Rate - Interval Metered | M13: LARGE USE SERVICE CLASSIFICATION~Retail Transmission Rate - Line and Transformation Connection Service Rate - Interval Metered | N13: UNMETERED SCATTERED LOAD SERVICE CLASSIFICATION~Retail Transmission Rate - Network Service Rate | O13: UNMETERED SCATTERED LOAD SERVICE CLASSIFICATION~Retail Transmission Rate - Line and Transformation Connection Service Rate | P13: SENTINEL LIGHTING SERVICE CLASSIFICATION~Retail Transmission Rate - Network Service Rate | Q13: SENTINEL LIGHTING SERVICE CLASSIFICATION~Retail Transmission Rate - Line and Transformation Connection Service Rate | R13: STREET LIGHTING SERVICE CLASSIFICATION~Retail Transmission Rate - Network Service Rate | S13: STREET LIGHTING SERVICE CLASSIFICATION~Retail Transmission Rate - Line and Transformation Connection Service Rate
A14: Hydro Hawkesbury Inc. | B14: RESIDENTIAL SERVICE CLASSIFICATION~Retail Transmission Rate - Network Service Rate | C14: RESIDENTIAL SERVICE CLASSIFICATION~Retail Transmission Rate - Line and Transformation Connection Service Rate | D14: GENERAL SERVICE LESS THAN 50 KW SERVICE CLASSIFICATION~Retail Transmission Rate - Network Service Rate | E14: GENERAL SERVICE LESS THAN 50 KW SERVICE CLASSIFICATION~Retail Transmission Rate - Line and Transformation Connection Service Rate | F14: GENERAL SERVICE 50 to 4,999 kW SERVICE CLASSIFICATION~Retail Transmission Rate - Network Service Rate | G14: GENERAL SERVICE 50 to 4,999 kW SERVICE CLASSIFICATION~Retail Transmission Rate - Line and Transformation Connection Service Rate | H14: UNMETERED SCATTERED LOAD SERVICE CLASSIFICATION~Retail Transmission Rate - Network Service Rate | I14: UNMETERED SCATTERED LOAD SERVICE CLASSIFICATION~Retail Transmission Rate - Line and Transformation Connection Service Rate | J14: SENTINEL LIGHTING SERVICE CLASSIFICATION~Retail Transmission Rate - Network Service Rate | K14: SENTINEL LIGHTING SERVICE CLASSIFICATION~Retail Transmission Rate - Line and Transformation Connection Service Rate | L14: STREET LIGHTING SERVICE CLASSIFICATION~Retail Transmission Rate - Network Service Rate | M14: STREET LIGHTING SERVICE CLASSIFICATION~Retail Transmission Rate - Line and Transformation Connection Service Rate
A15: Hydro Ottawa Limited | B15: RESIDENTIAL SERVICE CLASSIFICATION~Retail Transmission Rate - Network Service Rate | C15: RESIDENTIAL SERVICE CLASSIFICATION~Retail Transmission Rate - Line and Transformation Connection Service Rate | D15: GENERAL SERVICE LESS THAN 50 KW SERVICE CLASSIFICATION~Retail Transmission Rate - Network Service Rate | E15: GENERAL SERVICE LESS THAN 50 KW SERVICE CLASSIFICATION~Retail Transmission Rate - Line and Transformation Connection Service Rate | F15: GENERAL SERVICE 50 TO 1,499 KW SERVICE CLASSIFICATION~Retail Transmission Rate - Network Service Rate | G15: GENERAL SERVICE 50 TO 1,499 KW SERVICE CLASSIFICATION~Retail Transmission Rate - Line and Transformation Connection Service Rate | H15: GENERAL SERVICE 1,500 TO 4,999 KW SERVICE CLASSIFICATION~Retail Transmission Rate - Network Service Rate | I15: GENERAL SERVICE 1,500 TO 4,999 KW SERVICE CLASSIFICATION~Retail Transmission Rate - Line and Transformation Connection Service Rate | J15: LARGE USE SERVICE CLASSIFICATION~Retail Transmission Rate - Network Service Rate | K15: LARGE USE SERVICE CLASSIFICATION~Retail Transmission Rate - Line and Transformation Connection Service Rate | L15: UNMETERED SCATTERED LOAD SERVICE CLASSIFICATION~Retail Transmission Rate - Network Service Rate | M15: UNMETERED SCATTERED LOAD SERVICE CLASSIFICATION~Retail Transmission Rate - Line and Transformation Connection Service Rate | N15: SENTINEL LIGHTING SERVICE CLASSIFICATION~Retail Transmission Rate - Network Service Rate | O15: SENTINEL LIGHTING SERVICE CLASSIFICATION~Retail Transmission Rate - Line and Transformation Connection Service Rate | P15: STREET LIGHTING SERVICE CLASSIFICATION~Retail Transmission Rate - Network Service Rate | Q15: STREET LIGHTING SERVICE CLASSIFICATION~Retail Transmission Rate - Line and Transformation Connection Service Rate
A16: InnPower Corporation | B16: RESIDENTIAL SERVICE CLASSIFICATION~Retail Transmission Rate - Network Service Rate | C16: RESIDENTIAL SERVICE CLASSIFICATION~Retail Transmission Rate - Line and Transformation Connection Service Rate | D16: GENERAL SERVICE LESS THAN 50 KW SERVICE CLASSIFICATION~Retail Transmission Rate - Network Service Rate | E16: GENERAL SERVICE LESS THAN 50 KW SERVICE CLASSIFICATION~Retail Transmission Rate - Line and Transformation Connection Service Rate | F16: GENERAL SERVICE 50 to 4,999 kW SERVICE CLASSIFICATION~Retail Transmission Rate - Network Service Rate | G16: GENERAL SERVICE 50 to 4,999 kW SERVICE CLASSIFICATION~Retail Transmission Rate - Line and Transformation Connection Service Rate | H16: GENERAL SERVICE 50 to 4,999 kW SERVICE CLASSIFICATION~Retail Transmission Rate - Network Service Rate - Interval Metered | I16: GENERAL SERVICE 50 to 4,999 kW SERVICE CLASSIFICATION~Retail Transmission Rate - Line and Transformation Connection Service Rate - Interval Metered | J16: UNMETERED SCATTERED LOAD SERVICE CLASSIFICATION~Retail Transmission Rate - Network Service Rate | K16: UNMETERED SCATTERED LOAD SERVICE CLASSIFICATION~Retail Transmission Rate - Line and Transformation Connection Service Rate | L16: SENTINEL LIGHTING SERVICE CLASSIFICATION~Retail Transmission Rate - Network Service Rate | M16: SENTINEL LIGHTING SERVICE CLASSIFICATION~Retail Transmission Rate - Line and Transformation Connection Service Rate | N16: STREET LIGHTING SERVICE CLASSIFICATION~Retail Transmission Rate - Network Service Rate | O16: STREET LIGHTING SERVICE CLASSIFICATION~Retail Transmission Rate - Line and Transformation Connection Service Rate
A17: Kingston Hydro Corporation | B17: RESIDENTIAL SERVICE CLASSIFICATION~Retail Transmission Rate - Network Service Rate | C17: RESIDENTIAL SERVICE CLASSIFICATION~Retail Transmission Rate - Line and Transformation Connection Service Rate | D17: GENERAL SERVICE LESS THAN 50 KW SERVICE CLASSIFICATION~Retail Transmission Rate - Network Service Rate | E17: GENERAL SERVICE LESS THAN 50 KW SERVICE CLASSIFICATION~Retail Transmission Rate - Line and Transformation Connection Service Rate | F17: GENERAL SERVICE 50 to 4,999 kW SERVICE CLASSIFICATION~Retail Transmission Rate - Network Service Rate | G17: GENERAL SERVICE 50 to 4,999 kW SERVICE CLASSIFICATION~Retail Transmission Rate - Line and Transformation Connection Service Rate | H17: LARGE USE SERVICE CLASSIFICATION~Retail Transmission Rate - Network Service Rate | I17: LARGE USE SERVICE CLASSIFICATION~Retail Transmission Rate - Line and Transformation Connection Service Rate | J17: UNMETERED SCATTERED LOAD SERVICE CLASSIFICATION~Retail Transmission Rate - Network Service Rate | K17: UNMETERED SCATTERED LOAD SERVICE CLASSIFICATION~Retail Transmission Rate - Line and Transformation Connection Service Rate | L17: STREET LIGHTING SERVICE CLASSIFICATION~Retail Transmission Rate - Network Service Rate | M17: STREET LIGHTING SERVICE CLASSIFICATION~Retail Transmission Rate - Line and Transformation Connection Service Rate
A18: Kitchener-Wilmot Hydro Inc. | B18: RESIDENTIAL SERVICE CLASSIFICATION~Retail Transmission Rate - Network Service Rate | C18: RESIDENTIAL SERVICE CLASSIFICATION~Retail Transmission Rate - Line and Transformation Connection Service Rate | D18: GENERAL SERVICE LESS THAN 50 KW SERVICE CLASSIFICATION~Retail Transmission Rate - Network Service Rate | E18: GENERAL SERVICE LESS THAN 50 KW SERVICE CLASSIFICATION~Retail Transmission Rate - Line and Transformation Connection Service Rate | F18: GENERAL SERVICE 50 to 4,999 kW SERVICE CLASSIFICATION~Retail Transmission Rate - Network Service Rate | G18: GENERAL SERVICE 50 to 4,999 kW SERVICE CLASSIFICATION~Retail Transmission Rate - Line and Transformation Connection Service Rate | H18: LARGE USE SERVICE CLASSIFICATION~Retail Transmission Rate - Network Service Rate - Interval Metered | I18: LARGE USE SERVICE CLASSIFICATION~Retail Transmission Rate - Line and Transformation Connection Service Rate - Interval Metered | J18: UNMETERED SCATTERED LOAD SERVICE CLASSIFICATION~Retail Transmission Rate - Network Service Rate | K18: UNMETERED SCATTERED LOAD SERVICE CLASSIFICATION~Retail Transmission Rate - Line and Transformation Connection Service Rate | L18: STREET LIGHTING SERVICE CLASSIFICATION~Retail Transmission Rate - Network Service Rate | M18: STREET LIGHTING SERVICE CLASSIFICATION~Retail Transmission Rate - Line and Transformation Connection Service Rate | N18: EMBEDDED DISTRIBUTOR SERVICE CLASSIFICATION~Retail Transmission Rate - Network Service Rate | O18: EMBEDDED DISTRIBUTOR SERVICE CLASSIFICATION~Retail Transmission Rate - Line and Transformation Connection Service Rate
A19: Renfrew Hydro Inc. | B19: RESIDENTIAL SERVICE CLASSIFICATION~Retail Transmission Rate - Network Service Rate | C19: RESIDENTIAL SERVICE CLASSIFICATION~Retail Transmission Rate - Line and Transformation Connection Service Rate | D19: GENERAL SERVICE LESS THAN 50 KW SERVICE CLASSIFICATION~Retail Transmission Rate - Network Service Rate | E19: GENERAL SERVICE LESS THAN 50 KW SERVICE CLASSIFICATION~Retail Transmission Rate - Line and Transformation Connection Service Rate | F19: GENERAL SERVICE 50 to 4,999 kW SERVICE CLASSIFICATION~Retail Transmission Rate - Network Service Rate | G19: GENERAL SERVICE 50 to 4,999 kW SERVICE CLASSIFICATION~Retail Transmission Rate - Line and Transformation Connection Service Rate | H19: UNMETERED SCATTERED LOAD SERVICE CLASSIFICATION~Retail Transmission Rate - Network Service Rate | I19: UNMETERED SCATTERED LOAD SERVICE CLASSIFICATION~Retail Transmission Rate - Line and Transformation Connection Service Rate | J19: STREET LIGHTING SERVICE CLASSIFICATION~Retail Transmission Rate - Network Service Rate | K19: STREET LIGHTING SERVICE CLASSIFICATION~Retail Transmission Rate - Line and Transformation Connection Service Rate
A20: Cooperative Hydro Embrun Inc. | B20: RESIDENTIAL SERVICE CLASSIFICATION~Retail Transmission Rate - Network Service Rate | C20: RESIDENTIAL SERVICE CLASSIFICATION~Retail Transmission Rate - Line and Transformation Connection Service Rate | D20: GENERAL SERVICE LESS THAN 50 KW SERVICE CLASSIFICATION~Retail Transmission Rate - Network Service Rate | E20: GENERAL SERVICE LESS THAN 50 KW SERVICE CLASSIFICATION~Retail Transmission Rate - Line and Transformation Connection Service Rate | F20: GENERAL SERVICE 50 to 4,999 kW SERVICE CLASSIFICATION~Retail Transmission Rate - Network Service Rate | G20: GENERAL SERVICE 50 to 4,999 kW SERVICE CLASSIFICATION~Retail Transmission Rate - Line and Transformation Connection Service Rate | H20: UNMETERED SCATTERED LOAD SERVICE CLASSIFICATION~Retail Transmission Rate - Network Service Rate | I20: UNMETERED SCATTERED LOAD SERVICE CLASSIFICATION~Retail Transmission Rate - Line and Transformation Connection Service Rate | J20: STREET LIGHTING SERVICE CLASSIFICATION~Retail Transmission Rate - Network Service Rate | K20: STREET LIGHTING SERVICE CLASSIFICATION~Retail Transmission Rate - Line and Transformation Connection Service Rate
A21: Lakefront Utilities Inc. | B21: RESIDENTIAL SERVICE CLASSIFICATION~Retail Transmission Rate - Network Service Rate | C21: RESIDENTIAL SERVICE CLASSIFICATION~Retail Transmission Rate - Line and Transformation Connection Service Rate | D21: GENERAL SERVICE LESS THAN 50 KW SERVICE CLASSIFICATION~Retail Transmission Rate - Network Service Rate | E21: GENERAL SERVICE LESS THAN 50 KW SERVICE CLASSIFICATION~Retail Transmission Rate - Line and Transformation Connection Service Rate | F21: GENERAL SERVICE 50 TO 2,999 KW SERVICE CLASSIFICATION~Retail Transmission Rate - Network Service Rate | G21: GENERAL SERVICE 50 TO 2,999 KW SERVICE CLASSIFICATION~Retail Transmission Rate - Line and Transformation Connection Service Rate | H21: GENERAL SERVICE 3,000 TO 4,999 KW SERVICE CLASSIFICATION~Retail Transmission Rate - Network Service Rate | I21: GENERAL SERVICE 3,000 TO 4,999 KW SERVICE CLASSIFICATION~Retail Transmission Rate - Line and Transformation Connection Service Rate | J21: UNMETERED SCATTERED LOAD SERVICE CLASSIFICATION~Retail Transmission Rate - Network Service Rate | K21: UNMETERED SCATTERED LOAD SERVICE CLASSIFICATION~Retail Transmission Rate - Line and Transformation Connection Service Rate | L21: SENTINEL LIGHTING SERVICE CLASSIFICATION~Retail Transmission Rate - Network Service Rate | M21: SENTINEL LIGHTING SERVICE CLASSIFICATION~Retail Transmission Rate - Line and Transformation Connection Service Rate | N21: STREET LIGHTING SERVICE CLASSIFICATION~Retail Transmission Rate - Network Service Rate | O21: STREET LIGHTING SERVICE CLASSIFICATION~Retail Transmission Rate - Line and Transformation Connection Service Rate
A22: Toronto Hydro-Electric System Limited | B22: RESIDENTIAL SERVICE CLASSIFICATION~Retail Transmission Rate - Network Service Rate | C22: RESIDENTIAL SERVICE CLASSIFICATION~Retail Transmission Rate - Line and Transformation Connection Service Rate | D22: COMPETITIVE SECTOR MULTI-UNIT RESIDENTIAL SERVICE CLASSIFICATION~Retail Transmission Rate - Network Service Rate | E22: COMPETITIVE SECTOR MULTI-UNIT RESIDENTIAL SERVICE CLASSIFICATION~Retail Transmission Rate - Line and Transformation Connection Service Rate | F22: GENERAL SERVICE LESS THAN 50 KW SERVICE CLASSIFICATION~Retail Transmission Rate - Network Service Rate | G22: GENERAL SERVICE LESS THAN 50 KW SERVICE CLASSIFICATION~Retail Transmission Rate - Line and Transformation Connection Service Rate | H22: GENERAL SERVICE 50 TO 999 KW SERVICE CLASSIFICATION~Retail Transmission Rate - Network Service Rate | I22: GENERAL SERVICE 50 TO 999 KW SERVICE CLASSIFICATION~Retail Transmission Rate - Line and Transformation Connection Service Rate | J22: GENERAL SERVICE 1,000 TO 4,999 KW SERVICE CLASSIFICATION~Retail Transmission Rate - Network Service Rate | K22: GENERAL SERVICE 1,000 TO 4,999 KW SERVICE CLASSIFICATION~Retail Transmission Rate - Line and Transformation Connection Service Rate | L22: LARGE USE SERVICE CLASSIFICATION~Retail Transmission Rate - Network Service Rate | M22: LARGE USE SERVICE CLASSIFICATION~Retail Transmission Rate - Line and Transformation Connection Service Rate | N22: UNMETERED SCATTERED LOAD SERVICE CLASSIFICATION~Retail Transmission Rate - Network Service Rate | O22: UNMETERED SCATTERED LOAD SERVICE CLASSIFICATION~Retail Transmission Rate - Line and Transformation Connection Service Rate | P22: STREET LIGHTING SERVICE CLASSIFICATION~Retail Transmission Rate - Network Service Rate | Q22: STREET LIGHTING SERVICE CLASSIFICATION~Retail Transmission Rate - Line and Transformation Connection Service Rate
A23: Waterloo North Hydro Inc. | B23: RESIDENTIAL SERVICE CLASSIFICATION~Retail Transmission Rate - Network Service Rate | C23: RESIDENTIAL SERVICE CLASSIFICATION~Retail Transmission Rate - Line and Transformation Connection Service Rate | D23: GENERAL SERVICE LESS THAN 50 KW SERVICE CLASSIFICATION~Retail Transmission Rate - Network Service Rate | E23: GENERAL SERVICE LESS THAN 50 KW SERVICE CLASSIFICATION~Retail Transmission Rate - Line and Transformation Connection Service Rate | F23: GENERAL SERVICE 50 to 4,999 kW SERVICE CLASSIFICATION~Retail Transmission Rate - Network Service Rate - (less than 1,000 kW) | G23: GENERAL SERVICE 50 to 4,999 kW SERVICE CLASSIFICATION~Retail Transmission Rate - Network Service Rate - Interval Metered (less than 1,000 kW) | H23: GENERAL SERVICE 50 to 4,999 kW SERVICE CLASSIFICATION~Retail Transmission Rate - Network Service Rate - Interval Metered (1,000 to 4,999 kW) | I23: GENERAL SERVICE 50 to 4,999 kW SERVICE CLASSIFICATION~Retail Transmission Rate - Line and Transformation Connection Service Rate - (less than 1,000 kW) | J23: GENERAL SERVICE 50 to 4,999 kW SERVICE CLASSIFICATION~Retail Transmission Rate - Line and Trans. Connection Service Rate - Interval Metered (less than 1,000 kW) | K23: GENERAL SERVICE 50 to 4,999 kW SERVICE CLASSIFICATION~Retail Transmission Rate - Line and Trans. Connection Service Rate - Interval Metered (1,000 to 4,999 kW) | L23: LARGE USE SERVICE CLASSIFICATION~Retail Transmission Rate - Network Service Rate - Interval Metered | M23: LARGE USE SERVICE CLASSIFICATION~Retail Transmission Rate - Line and Transformation Connection Service Rate - Interval Metered | N23: UNMETERED SCATTERED LOAD SERVICE CLASSIFICATION~Retail Transmission Rate - Network Service Rate | O23: UNMETERED SCATTERED LOAD SERVICE CLASSIFICATION~Retail Transmission Rate - Line and Transformation Connection Service Rate | P23: STREET LIGHTING SERVICE CLASSIFICATION~Retail Transmission Rate - Network Service Rate | Q23: STREET LIGHTING SERVICE CLASSIFICATION~Retail Transmission Rate - Line and Transformation Connection Service Rate
A24: Westario Power Inc. | B24: RESIDENTIAL SERVICE CLASSIFICATION~Retail Transmission Rate - Network Service Rate | C24: RESIDENTIAL SERVICE CLASSIFICATION~Retail Transmission Rate - Line and Transformation Connection Service Rate | D24: GENERAL SERVICE LESS THAN 50 KW SERVICE CLASSIFICATION~Retail Transmission Rate - Network Service Rate | E24: GENERAL SERVICE LESS THAN 50 KW SERVICE CLASSIFICATION~Retail Transmission Rate - Line and Transformation Connection Service Rate | F24: GENERAL SERVICE 50 to 4,999 kW SERVICE CLASSIFICATION~Retail Transmission Rate - Network Service Rate | G24: GENERAL SERVICE 50 to 4,999 kW SERVICE CLASSIFICATION~Retail Transmission Rate - Line and Transformation Connection Service Rate | H24: UNMETERED SCATTERED LOAD SERVICE CLASSIFICATION~Retail Transmission Rate - Network Service Rate | I24: UNMETERED SCATTERED LOAD SERVICE CLASSIFICATION~Retail Transmission Rate - Line and Transformation Connection Service Rate | J24: SENTINEL LIGHTING SERVICE CLASSIFICATION~Retail Transmission Rate - Network Service Rate | K24: SENTINEL LIGHTING SERVICE CLASSIFICATION~Retail Transmission Rate - Line and Transformation Connection Service Rate | L24: STREET LIGHTING SERVICE CLASSIFICATION~Retail Transmission Rate - Network Service Rate | M24: STREET LIGHTING SERVICE CLASSIFICATION~Retail Transmission Rate - Line and Transformation Connection Service Rate
A25: Elexicon Energy Inc.-Whitby Rate Zone | B25: RESIDENTIAL SERVICE CLASSIFICATION~Retail Transmission Rate - Network Service Rate | C25: RESIDENTIAL SERVICE CLASSIFICATION~Retail Transmission Rate - Line and Transformation Connection Service Rate | D25: GENERAL SERVICE LESS THAN 50 KW SERVICE CLASSIFICATION~Retail Transmission Rate - Network Service Rate | E25: GENERAL SERVICE LESS THAN 50 KW SERVICE CLASSIFICATION~Retail Transmission Rate - Line and Transformation Connection Service Rate | F25: GENERAL SERVICE 50 to 4,999 kW SERVICE CLASSIFICATION~Retail Transmission Rate - Network Service Rate | G25: GENERAL SERVICE 50 to 4,999 kW SERVICE CLASSIFICATION~Retail Transmission Rate - Line and Transformation Connection Service Rate | H25: UNMETERED SCATTERED LOAD SERVICE CLASSIFICATION~Retail Transmission Rate - Network Service Rate | I25: UNMETERED SCATTERED LOAD SERVICE CLASSIFICATION~Retail Transmission Rate - Line and Transformation Connection Service Rate | J25: SENTINEL LIGHTING SERVICE CLASSIFICATION~Retail Transmission Rate - Network Service Rate | K25: SENTINEL LIGHTING SERVICE CLASSIFICATION~Retail Transmission Rate - Line and Transformation Connection Service Rate | L25: STREET LIGHTING SERVICE CLASSIFICATION~Retail Transmission Rate - Network Service Rate | M25: STREET LIGHTING SERVICE CLASSIFICATION~Retail Transmission Rate - Line and Transformation Connection Service Rate
A26: Erie Thames Powerlines Corporation | B26: RESIDENTIAL SERVICE CLASSIFICATION~Retail Transmission Rate - Network Service Rate | C26: RESIDENTIAL SERVICE CLASSIFICATION~Retail Transmission Rate - Line and Transformation Connection Service Rate | D26: GENERAL SERVICE LESS THAN 50 KW SERVICE CLASSIFICATION~Retail Transmission Rate - Network Service Rate | E26: GENERAL SERVICE LESS THAN 50 KW SERVICE CLASSIFICATION~Retail Transmission Rate - Line and Transformation Connection Service Rate | F26: GENERAL SERVICE 50 TO 999 KW SERVICE CLASSIFICATION~Retail Transmission Rate - Network Service Rate | G26: GENERAL SERVICE 50 TO 999 KW SERVICE CLASSIFICATION~Retail Transmission Rate - Line and Transformation Connection Service Rate | H26: GENERAL SERVICE 1,000 TO 4,999 KW SERVICE CLASSIFICATION~Retail Transmission Rate - Network Service Rate | I26: GENERAL SERVICE 1,000 TO 4,999 KW SERVICE CLASSIFICATION~Retail Transmission Rate - Line and Transformation Connection Service Rate | J26: LARGE USE SERVICE CLASSIFICATION~Retail Transmission Rate - Network Service Rate | K26: LARGE USE SERVICE CLASSIFICATION~Retail Transmission Rate - Line and Transformation Connection Service Rate | L26: UNMETERED SCATTERED LOAD SERVICE CLASSIFICATION~Retail Transmission Rate - Network Service Rate | M26: UNMETERED SCATTERED LOAD SERVICE CLASSIFICATION~Retail Transmission Rate - Line and Transformation Connection Service Rate | N26: SENTINEL LIGHTING SERVICE CLASSIFICATION~Retail Transmission Rate - Network Service Rate | O26: SENTINEL LIGHTING SERVICE CLASSIFICATION~Retail Transmission Rate - Line and Transformation Connection Service Rate | P26: STREET LIGHTING SERVICE CLASSIFICATION~Retail Transmission Rate - Network Service Rate | Q26: STREET LIGHTING SERVICE CLASSIFICATION~Retail Transmission Rate - Line and Transformation Connection Service Rate | R26: EMBEDDED DISTRIBUTOR SERVICE CLASSIFICATION~Retail Transmission Rate - Network Service Rate | S26: EMBEDDED DISTRIBUTOR SERVICE CLASSIFICATION~Retail Transmission Rate - Line and Transformation Connection Service Rate
A27: Entegrus Powerlines Inc.-For Entegrus-Main Rate Zone | B27: RESIDENTIAL SERVICE CLASSIFICATION~Retail Transmission Rate - Network Service Rate | C27: RESIDENTIAL SERVICE CLASSIFICATION~Retail Transmission Rate - Line and Transformation Connection Service Rate | D27: GENERAL SERVICE LESS THAN 50 KW SERVICE CLASSIFICATION~Retail Transmission Rate - Network Service Rate | E27: GENERAL SERVICE LESS THAN 50 KW SERVICE CLASSIFICATION~Retail Transmission Rate - Line and Transformation Connection Service Rate | F27: GENERAL SERVICE 50 to 4,999 kW SERVICE CLASSIFICATION~Retail Transmission Rate - Network Service Rate | G27: GENERAL SERVICE 50 to 4,999 kW SERVICE CLASSIFICATION~Retail Transmission Rate - Line and Transformation Connection Service Rate (see Note 1) | H27: LARGE USE SERVICE CLASSIFICATION~Retail Transmission Rate - Network Service Rate | I27: LARGE USE SERVICE CLASSIFICATION~Retail Transmission Rate - Line and Transformation Connection Service Rate (see Note 1) | J27: UNMETERED SCATTERED LOAD SERVICE CLASSIFICATION~Retail Transmission Rate - Network Service Rate | K27: UNMETERED SCATTERED LOAD SERVICE CLASSIFICATION~Retail Transmission Rate - Line and Transformation Connection Service Rate | L27: SENTINEL LIGHTING SERVICE CLASSIFICATION~Retail Transmission Rate - Network Service Rate | M27: SENTINEL LIGHTING SERVICE CLASSIFICATION~Retail Transmission Rate - Line and Transformation Connection Service Rate | N27: STREET LIGHTING SERVICE CLASSIFICATION~Retail Transmission Rate - Network Service Rate | O27: STREET LIGHTING SERVICE CLASSIFICATION~Retail Transmission Rate - Line and Transformation Connection Service Rate | P27: EMBEDDED DISTRIBUTOR SERVICE CLASSIFICATION~Retail Transmission Rate - Network Service Rate | Q27: EMBEDDED DISTRIBUTOR SERVICE CLASSIFICATION~Retail Transmission Rate - Line and Transformation Connection Service Rate
A28: Lakeland Power Distribution Ltd.-Parry Sound Service Area | B28: RESIDENTIAL SERVICE CLASSIFICATION~Retail Transmission Rate - Network Service Rate | C28: RESIDENTIAL SERVICE CLASSIFICATION~Retail Transmission Rate - Line and Transformation Connection Service Rate | D28: GENERAL SERVICE LESS THAN 50 KW SERVICE CLASSIFICATION~Retail Transmission Rate - Network Service Rate | E28: GENERAL SERVICE LESS THAN 50 KW SERVICE CLASSIFICATION~Retail Transmission Rate - Line and Transformation Connection Service Rate | F28: GENERAL SERVICE 50 to 4,999 kW SERVICE CLASSIFICATION~Retail Transmission Rate - Network Service Rate | G28: GENERAL SERVICE 50 to 4,999 kW SERVICE CLASSIFICATION~Retail Transmission Rate - Line and Transformation Connection Service Rate | H28: UNMETERED SCATTERED LOAD SERVICE CLASSIFICATION~Retail Transmission Rate - Network Service Rate | I28: UNMETERED SCATTERED LOAD SERVICE CLASSIFICATION~Retail Transmission Rate - Line and Transformation Connection Service Rate | J28: SENTINEL LIGHTING SERVICE CLASSIFICATION~Retail Transmission Rate - Network Service Rate | K28: SENTINEL LIGHTING SERVICE CLASSIFICATION~Retail Transmission Rate - Line and Transformation Connection Service Rate | L28: STREET LIGHTING SERVICE CLASSIFICATION~Retail Transmission Rate - Network Service Rate | M28: STREET LIGHTING SERVICE CLASSIFICATION~Retail Transmission Rate - Line and Transformation Connection Service Rate
A29: Lakeland Power Distribution Ltd. | B29: RESIDENTIAL SERVICE CLASSIFICATION~Retail Transmission Rate - Network Service Rate | C29: RESIDENTIAL SERVICE CLASSIFICATION~Retail Transmission Rate - Line and Transformation Connection Service Rate | D29: GENERAL SERVICE LESS THAN 50 KW SERVICE CLASSIFICATION~Retail Transmission Rate - Network Service Rate | E29: GENERAL SERVICE LESS THAN 50 KW SERVICE CLASSIFICATION~Retail Transmission Rate - Line and Transformation Connection Service Rate | F29: GENERAL SERVICE 50 to 4,999 kW SERVICE CLASSIFICATION~Retail Transmission Rate - Network Service Rate | G29: GENERAL SERVICE 50 to 4,999 kW SERVICE CLASSIFICATION~Retail Transmission Rate - Line and Transformation Connection Service Rate | H29: UNMETERED SCATTERED LOAD SERVICE CLASSIFICATION~Retail Transmission Rate - Network Service Rate | I29: UNMETERED SCATTERED LOAD SERVICE CLASSIFICATION~Retail Transmission Rate - Line and Transformation Connection Service Rate | J29: SENTINEL LIGHTING SERVICE CLASSIFICATION~Retail Transmission Rate - Network Service Rate | K29: SENTINEL LIGHTING SERVICE CLASSIFICATION~Retail Transmission Rate - Line and Transformation Connection Service Rate | L29: STREET LIGHTING SERVICE CLASSIFICATION~Retail Transmission Rate - Network Service Rate | M29: STREET LIGHTING SERVICE CLASSIFICATION~Retail Transmission Rate - Line and Transformation Connection Service Rate
A30: Newmarket-Tay Power Distribution Ltd.-For Former Midland Power Utility Rate Zone | B30: RESIDENTIAL SERVICE CLASSIFICATION~Retail Transmission Rate - Network Service Rate | C30: RESIDENTIAL SERVICE CLASSIFICATION~Retail Transmission Rate - Line and Transformation Connection Service Rate | D30: GENERAL SERVICE LESS THAN 50 KW SERVICE CLASSIFICATION~Retail Transmission Rate - Network Service Rate | E30: GENERAL SERVICE LESS THAN 50 KW SERVICE CLASSIFICATION~Retail Transmission Rate - Line and Transformation Connection Service Rate | F30: GENERAL SERVICE 50 to 4,999 kW SERVICE CLASSIFICATION~Retail Transmission Rate - Network Service Rate | G30: GENERAL SERVICE 50 to 4,999 kW SERVICE CLASSIFICATION~Retail Transmission Rate - Line and Transformation Connection Service Rate | H30: UNMETERED SCATTERED LOAD SERVICE CLASSIFICATION~Retail Transmission Rate - Network Service Rate | I30: UNMETERED SCATTERED LOAD SERVICE CLASSIFICATION~Retail Transmission Rate - Line and Transformation Connection Service Rate | J30: STREET LIGHTING SERVICE CLASSIFICATION~Retail Transmission Rate - Network Service Rate | K30: STREET LIGHTING SERVICE CLASSIFICATION~Retail Transmission Rate - Line and Transformation Connection Service Rate
A31: Newmarket-Tay Power Distribution Ltd.-For Newmarket-Tay Power Main Rate Zone | B31: RESIDENTIAL SERVICE CLASSIFICATION~Retail Transmission Rate - Network Service Rate | C31: RESIDENTIAL SERVICE CLASSIFICATION~Retail Transmission Rate - Line and Transformation Connection Service Rate | D31: GENERAL SERVICE LESS THAN 50 KW SERVICE CLASSIFICATION~Retail Transmission Rate - Network Service Rate | E31: GENERAL SERVICE LESS THAN 50 KW SERVICE CLASSIFICATION~Retail Transmission Rate - Line and Transformation Connection Service Rate | F31: GENERAL SERVICE 50 to 4,999 kW SERVICE CLASSIFICATION~Retail Transmission Rate - Network Service Rate | G31: GENERAL SERVICE 50 to 4,999 kW SERVICE CLASSIFICATION~Retail Transmission Rate - Line and Transformation Connection Service Rate | H31: UNMETERED SCATTERED LOAD SERVICE CLASSIFICATION~Retail Transmission Rate - Network Service Rate | I31: UNMETERED SCATTERED LOAD SERVICE CLASSIFICATION~Retail Transmission Rate - Line and Transformation Connection Service Rate | J31: SENTINEL LIGHTING SERVICE CLASSIFICATION~Retail Transmission Rate - Network Service Rate | K31: SENTINEL LIGHTING SERVICE CLASSIFICATION~Retail Transmission Rate - Line and Transformation Connection Service Rate | L31: STREET LIGHTING SERVICE CLASSIFICATION~Retail Transmission Rate - Network Service Rate | M31: STREET LIGHTING SERVICE CLASSIFICATION~Retail Transmission Rate - Line and Transformation Connection Service Rate
A32: Bluewater Power Distribution Corporation | B32: RESIDENTIAL SERVICE CLASSIFICATION~Retail Transmission Rate - Network Service Rate | C32: RESIDENTIAL SERVICE CLASSIFICATION~Retail Transmission Rate - Line and Transformation Connection Service Rate | D32: GENERAL SERVICE LESS THAN 50 KW SERVICE CLASSIFICATION~Retail Transmission Rate - Network Service Rate | E32: GENERAL SERVICE LESS THAN 50 KW SERVICE CLASSIFICATION~Retail Transmission Rate - Line and Transformation Connection Service Rate | F32: GENERAL SERVICE 50 TO 999 KW SERVICE CLASSIFICATION~Retail Transmission Rate - Network Service Rate | G32: GENERAL SERVICE 50 TO 999 KW SERVICE CLASSIFICATION~Retail Transmission Rate - Line and Transformation Connection Service Rate | H32: GENERAL SERVICE 1,000 TO 4,999 KW SERVICE CLASSIFICATION~Retail Transmission Rate - Network Service Rate | I32: GENERAL SERVICE 1,000 TO 4,999 KW SERVICE CLASSIFICATION~Retail Transmission Rate - Line and Transformation Connection Service Rate | J32: LARGE USE SERVICE CLASSIFICATION~Retail Transmission Rate - Network Service Rate - Interval Metered | K32: LARGE USE SERVICE CLASSIFICATION~Retail Transmission Rate - Line and Transformation Connection Service Rate - Interval Metered | L32: UNMETERED SCATTERED LOAD SERVICE CLASSIFICATION~Retail Transmission Rate - Network Service Rate | M32: UNMETERED SCATTERED LOAD SERVICE CLASSIFICATION~Retail Transmission Rate - Line and Transformation Connection Service Rate | N32: SENTINEL LIGHTING SERVICE CLASSIFICATION~Retail Transmission Rate - Network Service Rate | O32: SENTINEL LIGHTING SERVICE CLASSIFICATION~Retail Transmission Rate - Line and Transformation Connection Service Rate | P32: STREET LIGHTING SERVICE CLASSIFICATION~Retail Transmission Rate - Network Service Rate | Q32: STREET LIGHTING SERVICE CLASSIFICATION~Retail Transmission Rate - Line and Transformation Connection Service Rate
A33: Atikokan Hydro Inc. | B33: RESIDENTIAL SERVICE CLASSIFICATION~Retail Transmission Rate - Network Service Rate | C33: RESIDENTIAL SERVICE CLASSIFICATION~Retail Transmission Rate - Transformation Connection Service Rate | D33: GENERAL SERVICE LESS THAN 50 KW SERVICE CLASSIFICATION~Retail Transmission Rate - Network Service Rate | E33: GENERAL SERVICE LESS THAN 50 KW SERVICE CLASSIFICATION~Retail Transmission Rate - Transformation Connection Service Rate | F33: GENERAL SERVICE 50 to 4,999 kW SERVICE CLASSIFICATION~Retail Transmission Rate - Network Service Rate | G33: GENERAL SERVICE 50 to 4,999 kW SERVICE CLASSIFICATION~Retail Transmission Rate - Line and Transformation Connection Service Rate | H33: GENERAL SERVICE 50 to 4,999 kW SERVICE CLASSIFICATION~Retail Transmission Rate - Network Service Rate - Interval Metered | I33: GENERAL SERVICE 50 to 4,999 kW SERVICE CLASSIFICATION~Retail Transmission Rate - Line and Transformation Connection Service Rate - Interval Metered | J33: STREET LIGHTING SERVICE CLASSIFICATION~Retail Transmission Rate - Network Service Rate | K33: STREET LIGHTING SERVICE CLASSIFICATION~Retail Transmission Rate - Line and Transformation Connection Service Rate
A34: Burlington Hydro Inc. | B34: RESIDENTIAL SERVICE CLASSIFICATION~Retail Transmission Rate - Network Service Rate | C34: RESIDENTIAL SERVICE CLASSIFICATION~Retail Transmission Rate - Line and Transformation Connection Service Rate | D34: GENERAL SERVICE LESS THAN 50 KW SERVICE CLASSIFICATION~Retail Transmission Rate - Network Service Rate | E34: GENERAL SERVICE LESS THAN 50 KW SERVICE CLASSIFICATION~Retail Transmission Rate - Line and Transformation Connection Service Rate | F34: GENERAL SERVICE 50 to 4,999 kW SERVICE CLASSIFICATION~Retail Transmission Rate - Network Service Rate - Interval Metered | G34: GENERAL SERVICE 50 to 4,999 kW SERVICE CLASSIFICATION~Retail Transmission Rate - Line and Transformation Connection Service Rate - Interval Metered | H34: UNMETERED SCATTERED LOAD SERVICE CLASSIFICATION~Retail Transmission Rate - Network Service Rate | I34: UNMETERED SCATTERED LOAD SERVICE CLASSIFICATION~Retail Transmission Rate - Line and Transformation Connection Service Rate | J34: STREET LIGHTING SERVICE CLASSIFICATION~Retail Transmission Rate - Network Service Rate | K34: STREET LIGHTING SERVICE CLASSIFICATION~Retail Transmission Rate - Line Connection Service Rate
A35: E.L.K. Energy Inc. | B35: RESIDENTIAL SERVICE CLASSIFICATION~Retail Transmission Rate - Network Service Rate | C35: RESIDENTIAL SERVICE CLASSIFICATION~Retail Transmission Rate - Line and Transformation Connection Service Rate | D35: GENERAL SERVICE LESS THAN 50 KW SERVICE CLASSIFICATION~Retail Transmission Rate - Network Service Rate | E35: GENERAL SERVICE LESS THAN 50 KW SERVICE CLASSIFICATION~Retail Transmission Rate - Line and Transformation Connection Service Rate | F35: GENERAL SERVICE 50 to 4,999 kW SERVICE CLASSIFICATION~Retail Transmission Rate - Network Service Rate | G35: GENERAL SERVICE 50 to 4,999 kW SERVICE CLASSIFICATION~Retail Transmission Rate - Line and Transformation Connection Service Rate | H35: UNMETERED SCATTERED LOAD SERVICE CLASSIFICATION~Retail Transmission Rate - Network Service Rate | I35: UNMETERED SCATTERED LOAD SERVICE CLASSIFICATION~Retail Transmission Rate - Line and Transformation Connection Service Rate | J35: SENTINEL LIGHTING SERVICE CLASSIFICATION~Retail Transmission Rate - Network Service Rate | K35: SENTINEL LIGHTING SERVICE CLASSIFICATION~Retail Transmission Rate - Line and Transformation Connection Service Rate | L35: STREET LIGHTING SERVICE CLASSIFICATION~Retail Transmission Rate - Network Service Rate | M35: STREET LIGHTING SERVICE CLASSIFICATION~Retail Transmission Rate - Line and Transformation Connection Service Rate | N35: EMBEDDED DISTRIBUTOR SERVICE CLASSIFICATION~Retail Transmission Rate - Network Service Rate | O35: EMBEDDED DISTRIBUTOR SERVICE CLASSIFICATION~Retail Transmission Rate - Line and Transformation Connection Service Rate
A36: EPCOR Electricity Distribution Ontario Inc. | B36: RESIDENTIAL SERVICE CLASSIFICATION~Retail Transmission Rate - Network Service Rate | C36: RESIDENTIAL SERVICE CLASSIFICATION~Retail Transmission Rate - Line and Transformation Connection Service Rate | D36: GENERAL SERVICE LESS THAN 50 KW SERVICE CLASSIFICATION~Retail Transmission Rate - Network Service Rate | E36: GENERAL SERVICE LESS THAN 50 KW SERVICE CLASSIFICATION~Retail Transmission Rate - Line and Transformation Connection Service Rate | F36: GENERAL SERVICE 50 to 4,999 kW SERVICE CLASSIFICATION~Retail Transmission Rate - Network Service Rate | G36: GENERAL SERVICE 50 to 4,999 kW SERVICE CLASSIFICATION~Retail Transmission Rate - Line and Transformation Connection Service Rate | H36: UNMETERED SCATTERED LOAD SERVICE CLASSIFICATION~Retail Transmission Rate - Network Service Rate | I36: UNMETERED SCATTERED LOAD SERVICE CLASSIFICATION~Retail Transmission Rate - Line and Transformation Connection Service Rate | J36: STREET LIGHTING SERVICE CLASSIFICATION~Retail Transmission Rate - Network Service Rate | K36: STREET LIGHTING SERVICE CLASSIFICATION~Retail Transmission Rate - Line and Transformation Connection Service Rate
A37: Essex Powerlines Corporation | B37: RESIDENTIAL SERVICE CLASSIFICATION~Retail Transmission Rate - Network Service Rate | C37: RESIDENTIAL SERVICE CLASSIFICATION~Retail Transmission Rate - Line and Transformation Connection Service Rate | D37: GENERAL SERVICE LESS THAN 50 KW SERVICE CLASSIFICATION~Retail Transmission Rate - Network Service Rate | E37: GENERAL SERVICE LESS THAN 50 KW SERVICE CLASSIFICATION~Retail Transmission Rate - Line and Transformation Connection Service Rate | F37: GENERAL SERVICE 50 to 4,999 kW SERVICE CLASSIFICATION~Retail Transmission Rate - Network Service Rate | G37: GENERAL SERVICE 50 to 4,999 kW SERVICE CLASSIFICATION~Retail Transmission Rate - Line and Transformation Connection Service Rate | H37: GENERAL SERVICE 50 to 4,999 kW SERVICE CLASSIFICATION~Retail Transmission Rate - Network Service Rate - Interval Metered | I37: GENERAL SERVICE 50 to 4,999 kW SERVICE CLASSIFICATION~Retail Transmission Rate - Line and Transformation Connection Service Rate - Interval Metered | J37: UNMETERED SCATTERED LOAD SERVICE CLASSIFICATION~Retail Transmission Rate - Network Service Rate | K37: UNMETERED SCATTERED LOAD SERVICE CLASSIFICATION~Retail Transmission Rate - Line and Transformation Connection Service Rate | L37: SENTINEL LIGHTING SERVICE CLASSIFICATION~Retail Transmission Rate - Network Service Rate | M37: SENTINEL LIGHTING SERVICE CLASSIFICATION~Retail Transmission Rate - Line and Transformation Connection Service Rate | N37: STREET LIGHTING SERVICE CLASSIFICATION~Retail Transmission Rate - Network Service Rate | O37: STREET LIGHTING SERVICE CLASSIFICATION~Retail Transmission Rate - Line and Transformation Connection Service Rate
A38: Fort Frances Power Corporation | B38: RESIDENTIAL SERVICE CLASSIFICATION~Retail Transmission Rate - Network Service Rate | C38: RESIDENTIAL SERVICE CLASSIFICATION~Retail Transmission Rate - Line and Transformation Connection Service Rate | D38: GENERAL SERVICE LESS THAN 50 KW SERVICE CLASSIFICATION~Retail Transmission Rate - Network Service Rate | E38: GENERAL SERVICE LESS THAN 50 KW SERVICE CLASSIFICATION~Retail Transmission Rate - Line and Transformation Connection Service Rate | F38: GENERAL SERVICE 50 to 4,999 kW SERVICE CLASSIFICATION~Retail Transmission Rate - Network Service Rate | G38: GENERAL SERVICE 50 to 4,999 kW SERVICE CLASSIFICATION~Retail Transmission Rate - Line and Transformation Connection Service Rate | H38: UNMETERED SCATTERED LOAD SERVICE CLASSIFICATION~Retail Transmission Rate - Network Service Rate | I38: UNMETERED SCATTERED LOAD SERVICE CLASSIFICATION~Retail Transmission Rate - Line and Transformation Connection Service Rate | J38: STREET LIGHTING SERVICE CLASSIFICATION~Retail Transmission Rate - Network Service Rate | K38: STREET LIGHTING SERVICE CLASSIFICATION~Retail Transmission Rate - Line and Transformation Connection Service Rate
A39: Greater Sudbury Hydro Inc. | B39: RESIDENTIAL SERVICE CLASSIFICATION~Retail Transmission Rate - Network Service Rate | C39: RESIDENTIAL SERVICE CLASSIFICATION~Retail Transmission Rate - Line and Transformation Connection Service Rate | D39: GENERAL SERVICE LESS THAN 50 KW SERVICE CLASSIFICATION~Retail Transmission Rate - Network Service Rate | E39: GENERAL SERVICE LESS THAN 50 KW SERVICE CLASSIFICATION~Retail Transmission Rate - Line and Transformation Connection Service Rate | F39: GENERAL SERVICE 50 to 4,999 kW SERVICE CLASSIFICATION~Retail Transmission Rate - Network Service Rate | G39: GENERAL SERVICE 50 to 4,999 kW SERVICE CLASSIFICATION~Retail Transmission Rate - Line and Transformation Connection Service Rate | H39: UNMETERED SCATTERED LOAD SERVICE CLASSIFICATION~Retail Transmission Rate - Network Service Rate | I39: UNMETERED SCATTERED LOAD SERVICE CLASSIFICATION~Retail Transmission Rate - Line and Transformation Connection Service Rate | J39: SENTINEL LIGHTING SERVICE CLASSIFICATION~Retail Transmission Rate - Network Service Rate | K39: SENTINEL LIGHTING SERVICE CLASSIFICATION~Retail Transmission Rate - Line and Transformation Connection Service Rate | L39: STREET LIGHTING SERVICE CLASSIFICATION~Retail Transmission Rate - Network Service Rate | M39: STREET LIGHTING SERVICE CLASSIFICATION~Retail Transmission Rate - Line and Transformation Connection Service Rate
A40: Halton Hills Hydro Inc. | B40: RESIDENTIAL SERVICE CLASSIFICATION~Retail Transmission Rate - Network Service Rate | C40: RESIDENTIAL SERVICE CLASSIFICATION~Retail Transmission Rate - Line and Transformation Connection Service Rate | D40: GENERAL SERVICE LESS THAN 50 KW SERVICE CLASSIFICATION~Retail Transmission Rate - Network Service Rate | E40: GENERAL SERVICE LESS THAN 50 KW SERVICE CLASSIFICATION~Retail Transmission Rate - Line and Transformation Connection Service Rate | F40: GENERAL SERVICE 50 TO 999 KW SERVICE CLASSIFICATION~Retail Transmission Rate - Network Service Rate | G40: GENERAL SERVICE 50 TO 999 KW SERVICE CLASSIFICATION~Retail Transmission Rate - Line and Transformation Connection Service Rate | H40: GENERAL SERVICE 1,000 TO 4,999 KW SERVICE CLASSIFICATION~Retail Transmission Rate - Network Service Rate | I40: GENERAL SERVICE 1,000 TO 4,999 KW SERVICE CLASSIFICATION~Retail Transmission Rate - Line and Transformation Connection Service Rate | J40: UNMETERED SCATTERED LOAD SERVICE CLASSIFICATION~Retail Transmission Rate - Network Service Rate | K40: UNMETERED SCATTERED LOAD SERVICE CLASSIFICATION~Retail Transmission Rate - Line and Transformation Connection Service Rate | L40: SENTINEL LIGHTING SERVICE CLASSIFICATION~Retail Transmission Rate - Network Service Rate | M40: SENTINEL LIGHTING SERVICE CLASSIFICATION~Retail Transmission Rate - Line and Transformation Connection Service Rate | N40: STREET LIGHTING SERVICE CLASSIFICATION~Retail Transmission Rate - Network Service Rate | O40: STREET LIGHTING SERVICE CLASSIFICATION~Retail Transmission Rate - Line and Transformation Connection Service Rate
A41: Hydro One Networks Inc.-Former Haldimand County Hydro Inc. Service Area | B41: RESIDENTIAL SERVICE CLASSIFICATION~Retail Transmission Rate - Network Service Rate | C41: RESIDENTIAL SERVICE CLASSIFICATION~Retail Transmission Rate - Line and Transformation Connection Service Rate | D41: GENERAL SERVICE LESS THAN 50 KW SERVICE CLASSIFICATION~Retail Transmission Rate - Network Service Rate | E41: GENERAL SERVICE LESS THAN 50 KW SERVICE CLASSIFICATION~Retail Transmission Rate - Line and Transformation Connection Service Rate | F41: GENERAL SERVICE 50 to 4,999 kW SERVICE CLASSIFICATION~Retail Transmission Rate - Network Service Rate | G41: GENERAL SERVICE 50 to 4,999 kW SERVICE CLASSIFICATION~Retail Transmission Rate - Line and Transformation Connection Service Rate | H41: UNMETERED SCATTERED LOAD SERVICE CLASSIFICATION~Retail Transmission Rate - Network Service Rate | I41: UNMETERED SCATTERED LOAD SERVICE CLASSIFICATION~Retail Transmission Rate - Line and Transformation Connection Service Rate | J41: SENTINEL LIGHTING SERVICE CLASSIFICATION~Retail Transmission Rate - Network Service Rate | K41: SENTINEL LIGHTING SERVICE CLASSIFICATION~Retail Transmission Rate - Line and Transformation Connection Service Rate | L41: STREET LIGHTING SERVICE CLASSIFICATION~Retail Transmission Rate - Network Service Rate | M41: STREET LIGHTING SERVICE CLASSIFICATION~Retail Transmission Rate - Line and Transformation Connection Service Rate | N41: EMBEDDED DISTRIBUTOR SERVICE CLASSIFICATION FOR HYDRO ONE NETWORKS INC.~Retail Transmission Rate - Network Service Rate | O41: EMBEDDED DISTRIBUTOR SERVICE CLASSIFICATION FOR HYDRO ONE NETWORKS INC.~Retail Transmission Rate - Line and Transformation Connection Service Rate
A42: Hydro One Networks Inc.-Former Norfolk Power Distribution Inc. Service Area | B42: RESIDENTIAL SERVICE CLASSIFICATION~Retail Transmission Rate - Network Service Rate | C42: RESIDENTIAL SERVICE CLASSIFICATION~Retail Transmission Rate - Line and Transformation Connection Service Rate | D42: GENERAL SERVICE LESS THAN 50 KW SERVICE CLASSIFICATION~Retail Transmission Rate - Network Service Rate | E42: GENERAL SERVICE LESS THAN 50 KW SERVICE CLASSIFICATION~Retail Transmission Rate - Line and Transformation Connection Service Rate | F42: GENERAL SERVICE 50 to 4,999 kW SERVICE CLASSIFICATION~Retail Transmission Rate - Network Service Rate | G42: GENERAL SERVICE 50 to 4,999 kW SERVICE CLASSIFICATION~Retail Transmission Rate - Line and Transformation Connection Service Rate | H42: UNMETERED SCATTERED LOAD SERVICE CLASSIFICATION~Retail Transmission Rate - Network Service Rate | I42: UNMETERED SCATTERED LOAD SERVICE CLASSIFICATION~Retail Transmission Rate - Line and Transformation Connection Service Rate | J42: SENTINEL LIGHTING SERVICE CLASSIFICATION~Retail Transmission Rate - Network Service Rate | K42: SENTINEL LIGHTING SERVICE CLASSIFICATION~Retail Transmission Rate - Line and Transformation Connection Service Rate | L42: STREET LIGHTING SERVICE CLASSIFICATION~Retail Transmission Rate - Network Service Rate | M42: STREET LIGHTING SERVICE CLASSIFICATION~Retail Transmission Rate - Line and Transformation Connection Service Rate
A43: Hydro One Networks Inc.-Former Woodstock Hydro Services Inc. Service Area | B43: RESIDENTIAL SERVICE CLASSIFICATION~Retail Transmission Rate - Network Service Rate | C43: RESIDENTIAL SERVICE CLASSIFICATION~Retail Transmission Rate - Line and Transformation Connection Service Rate | D43: GENERAL SERVICE LESS THAN 50 KW SERVICE CLASSIFICATION~Retail Transmission Rate - Network Service Rate | E43: GENERAL SERVICE LESS THAN 50 KW SERVICE CLASSIFICATION~Retail Transmission Rate - Line and Transformation Connection Service Rate | F43: GENERAL SERVICE 50 TO 999 KW SERVICE CLASSIFICATION~Retail Transmission Rate - Network Service Rate | G43: GENERAL SERVICE 50 TO 999 KW SERVICE CLASSIFICATION~Retail Transmission Rate - Line and Transformation Connection Service Rate | H43: GENERAL SERVICE GREATER THAN 1,000 KW SERVICE CLASSIFICATION~Retail Transmission Rate - Network Service Rate | I43: GENERAL SERVICE GREATER THAN 1,000 KW SERVICE CLASSIFICATION~Retail Transmission Rate - Line and Transformation Connection Service Rate | J43: UNMETERED SCATTERED LOAD SERVICE CLASSIFICATION~Retail Transmission Rate - Network Service Rate | K43: UNMETERED SCATTERED LOAD SERVICE CLASSIFICATION~Retail Transmission Rate - Line and Transformation Connection Service Rate | L43: STREET LIGHTING SERVICE CLASSIFICATION~Retail Transmission Rate - Network Service Rate | M43: STREET LIGHTING SERVICE CLASSIFICATION~Retail Transmission Rate - Line and Transformation Connection Service Rate
A44: Synergy North Corporation-Kenora Rate Zone | B44: RESIDENTIAL SERVICE CLASSIFICATION~Retail Transmission Rate - Network Service Rate | C44: RESIDENTIAL SERVICE CLASSIFICATION~Retail Transmission Rate - Line and Transformation Connection Service Rate | D44: GENERAL SERVICE LESS THAN 50 KW SERVICE CLASSIFICATION~Retail Transmission Rate - Network Service Rate | E44: GENERAL SERVICE LESS THAN 50 KW SERVICE CLASSIFICATION~Retail Transmission Rate - Line and Transformation Connection Service Rate | F44: GENERAL SERVICE 50 to 4,999 kW SERVICE CLASSIFICATION~Retail Transmission Rate - Network Service Rate | G44: GENERAL SERVICE 50 to 4,999 kW SERVICE CLASSIFICATION~Retail Transmission Rate - Line and Transformation Connection Service Rate | H44: UNMETERED SCATTERED LOAD SERVICE CLASSIFICATION~Retail Transmission Rate - Network Service Rate | I44: UNMETERED SCATTERED LOAD SERVICE CLASSIFICATION~Retail Transmission Rate - Line and Transformation Connection Service Rate | J44: STREET LIGHTING SERVICE CLASSIFICATION~Retail Transmission Rate - Network Service Rate | K44: STREET LIGHTING SERVICE CLASSIFICATION~Retail Transmission Rate - Line and Transformation Connection Service Rate
A45: London Hydro Inc. | B45: RESIDENTIAL SERVICE CLASSIFICATION~Retail Transmission Rate - Network Service Rate | C45: RESIDENTIAL SERVICE CLASSIFICATION~Retail Transmission Rate - Line and Transformation Connection Service Rate | D45: GENERAL SERVICE LESS THAN 50 KW SERVICE CLASSIFICATION~Retail Transmission Rate - Network Service Rate | E45: GENERAL SERVICE LESS THAN 50 KW SERVICE CLASSIFICATION~Retail Transmission Rate - Line and Transformation Connection Service Rate | F45: GENERAL SERVICE 50 to 4,999 kW SERVICE CLASSIFICATION~Retail Transmission Rate - Network Service Rate | G45: GENERAL SERVICE 50 to 4,999 kW SERVICE CLASSIFICATION~Retail Transmission Rate - Line and Transformation Connection Service Rate | H45: GENERAL SERVICE 50 to 4,999 kW SERVICE CLASSIFICATION~Retail Transmission Rate - Network Service Rate - Interval Metered | I45: GENERAL SERVICE 50 to 4,999 kW SERVICE CLASSIFICATION~Retail Transmission Rate - Line and Transformation Connection Service Rate - Interval Metered | J45: GENERAL SERVICE 1,000 TO 4,999 KW (CO-GENERATION) SERVICE CLASSIFICATION~Retail Transmission Rate - Network Service Rate | K45: GENERAL SERVICE 1,000 TO 4,999 KW (CO-GENERATION) SERVICE CLASSIFICATION~Retail Transmission Rate - Line and Transformation Connection Service Rate | L45: LARGE USE SERVICE CLASSIFICATION~Retail Transmission Rate - Network Service Rate - Interval Metered | M45: LARGE USE SERVICE CLASSIFICATION~Retail Transmission Rate - Line and Transformation Connection Service Rate - Interval Metered | N45: STREET LIGHTING SERVICE CLASSIFICATION~Retail Transmission Rate - Network Service Rate | O45: STREET LIGHTING SERVICE CLASSIFICATION~Retail Transmission Rate - Line and Transformation Connection Service Rate | P45: SENTINEL LIGHTING SERVICE CLASSIFICATION~Retail Transmission Rate - Network Service Rate | Q45: SENTINEL LIGHTING SERVICE CLASSIFICATION~Retail Transmission Rate - Line and Transformation Connection Service Rate | R45: UNMETERED SCATTERED LOAD SERVICE CLASSIFICATION~Retail Transmission Rate - Network Service Rate | S45: UNMETERED SCATTERED LOAD SERVICE CLASSIFICATION~Retail Transmission Rate - Line and Transformation Connection Service Rate
A46: Milton Hydro Distribution Inc. | B46: RESIDENTIAL SERVICE CLASSIFICATION~Retail Transmission Rate - Network Service Rate | C46: RESIDENTIAL SERVICE CLASSIFICATION~Retail Transmission Rate - Line and Transformation Connection Service Rate | D46: GENERAL SERVICE LESS THAN 50 KW SERVICE CLASSIFICATION~Retail Transmission Rate - Network Service Rate | E46: GENERAL SERVICE LESS THAN 50 KW SERVICE CLASSIFICATION~Retail Transmission Rate - Line and Transformation Connection Service Rate | F46: GENERAL SERVICE 50 TO 999 KW SERVICE CLASSIFICATION~Retail Transmission Rate - Network Service Rate | G46: GENERAL SERVICE 50 TO 999 KW SERVICE CLASSIFICATION~Retail Transmission Rate - Line and Transformation Connection Service Rate | H46: GENERAL SERVICE 1,000 TO 4,999 KW SERVICE CLASSIFICATION~Retail Transmission Rate - Network Service Rate | I46: GENERAL SERVICE 1,000 TO 4,999 KW SERVICE CLASSIFICATION~Retail Transmission Rate - Line and Transformation Connection Service Rate | J46: LARGE USE SERVICE CLASSIFICATION~Retail Transmission Rate - Network Service Rate - Interval Metered | K46: LARGE USE SERVICE CLASSIFICATION~Retail Transmission Rate - Line and Transformation Connection Service Rate - Interval Metered | L46: UNMETERED SCATTERED LOAD SERVICE CLASSIFICATION~Retail Transmission Rate - Network Service Rate | M46: UNMETERED SCATTERED LOAD SERVICE CLASSIFICATION~Retail Transmission Rate - Line and Transformation Connection Service Rate | N46: SENTINEL LIGHTING SERVICE CLASSIFICATION~Retail Transmission Rate - Network Service Rate | O46: SENTINEL LIGHTING SERVICE CLASSIFICATION~Retail Transmission Rate - Line and Transformation Connection Service Rate | P46: STREET LIGHTING SERVICE CLASSIFICATION~Retail Transmission Rate - Network Service Rate | Q46: STREET LIGHTING SERVICE CLASSIFICATION~Retail Transmission Rate - Line and Transformation Connection Service Rate
A47: North Bay Hydro Distribution Limited | B47: RESIDENTIAL SERVICE CLASSIFICATION~Retail Transmission Rate - Network Service Rate | C47: RESIDENTIAL SERVICE CLASSIFICATION~Retail Transmission Rate - Line and Transformation Connection Service Rate | D47: GENERAL SERVICE LESS THAN 50 KW SERVICE CLASSIFICATION~Retail Transmission Rate - Network Service Rate | E47: GENERAL SERVICE LESS THAN 50 KW SERVICE CLASSIFICATION~Retail Transmission Rate - Line and Transformation Connection Service Rate | F47: GENERAL SERVICE 50 TO 2,999 KW SERVICE CLASSIFICATION~Retail Transmission Rate - Network Service Rate | G47: GENERAL SERVICE 50 TO 2,999 KW SERVICE CLASSIFICATION~Retail Transmission Rate - Line and Transformation Connection Service Rate | H47: GENERAL SERVICE 3,000 TO 4,999 KW SERVICE CLASSIFICATION~Retail Transmission Rate - Network Service Rate - Interval Metered | I47: GENERAL SERVICE 3,000 TO 4,999 KW SERVICE CLASSIFICATION~Retail Transmission Rate - Line and Transformation Connection Service Rate - Interval Metered | J47: UNMETERED SCATTERED LOAD SERVICE CLASSIFICATION~Retail Transmission Rate - Network Service Rate | K47: UNMETERED SCATTERED LOAD SERVICE CLASSIFICATION~Retail Transmission Rate - Line and Transformation Connection Service Rate | L47: SENTINEL LIGHTING SERVICE CLASSIFICATION~Retail Transmission Rate - Network Service Rate | M47: SENTINEL LIGHTING SERVICE CLASSIFICATION~Retail Transmission Rate - Line and Transformation Connection Service Rate | N47: STREET LIGHTING SERVICE CLASSIFICATION~Retail Transmission Rate - Network Service Rate | O47: STREET LIGHTING SERVICE CLASSIFICATION~Retail Transmission Rate - Line and Transformation Connection Service Rate
A48: Northern Ontario Wires Inc. | B48: RESIDENTIAL SERVICE CLASSIFICATION~Retail Transmission Rate - Network Service Rate | C48: RESIDENTIAL SERVICE CLASSIFICATION~Retail Transmission Rate - Line and Transformation Connection Service Rate | D48: GENERAL SERVICE LESS THAN 50 KW SERVICE CLASSIFICATION~Retail Transmission Rate - Network Service Rate | E48: GENERAL SERVICE LESS THAN 50 KW SERVICE CLASSIFICATION~Retail Transmission Rate - Line and Transformation Connection Service Rate | F48: GENERAL SERVICE 50 to 4,999 kW SERVICE CLASSIFICATION~Retail Transmission Rate - Network Service Rate | G48: GENERAL SERVICE 50 to 4,999 kW SERVICE CLASSIFICATION~Retail Transmission Rate - Line and Transformation Connection Service Rate | H48: UNMETERED SCATTERED LOAD SERVICE CLASSIFICATION~Retail Transmission Rate - Network Service Rate | I48: UNMETERED SCATTERED LOAD SERVICE CLASSIFICATION~Retail Transmission Rate - Line and Transformation Connection Service Rate | J48: STREET LIGHTING SERVICE CLASSIFICATION~Retail Transmission Rate - Network Service Rate | K48: STREET LIGHTING SERVICE CLASSIFICATION~Retail Transmission Rate - Line and Transformation Connection Service Rate
A49: Niagara Peninsula Energy Inc. | B49: RESIDENTIAL SERVICE CLASSIFICATION~Retail Transmission Rate - Network Service Rate | C49: RESIDENTIAL SERVICE CLASSIFICATION~Retail Transmission Rate - Line and Transformation Connection Service Rate | D49: GENERAL SERVICE LESS THAN 50 KW SERVICE CLASSIFICATION~Retail Transmission Rate - Network Service Rate | E49: GENERAL SERVICE LESS THAN 50 KW SERVICE CLASSIFICATION~Retail Transmission Rate - Line and Transformation Connection Service Rate | F49: GENERAL SERVICE 50 to 4,999 kW SERVICE CLASSIFICATION~Retail Transmission Rate - Network Service Rate | G49: GENERAL SERVICE 50 to 4,999 kW SERVICE CLASSIFICATION~Retail Transmission Rate - Line and Transformation Connection Service Rate | H49: UNMETERED SCATTERED LOAD SERVICE CLASSIFICATION~Retail Transmission Rate - Network Service Rate | I49: UNMETERED SCATTERED LOAD SERVICE CLASSIFICATION~Retail Transmission Rate - Line and Transformation Connection Service Rate | J49: SENTINEL LIGHTING SERVICE CLASSIFICATION~Retail Transmission Rate - Network Service Rate | K49: SENTINEL LIGHTING SERVICE CLASSIFICATION~Retail Transmission Rate - Line and Transformation Connection Service Rate | L49: STREET LIGHTING SERVICE CLASSIFICATION~Retail Transmission Rate - Network Service Rate | M49: STREET LIGHTING SERVICE CLASSIFICATION~Retail Transmission Rate - Line and Transformation Connection Service Rate
A50: Orangeville Hydro Limited | B50: RESIDENTIAL SERVICE CLASSIFICATION~Retail Transmission Rate - Network Service Rate | C50: RESIDENTIAL SERVICE CLASSIFICATION~Retail Transmission Rate - Line and Transformation Connection Service Rate | D50: GENERAL SERVICE LESS THAN 50 KW SERVICE CLASSIFICATION~Retail Transmission Rate - Network Service Rate | E50: GENERAL SERVICE LESS THAN 50 KW SERVICE CLASSIFICATION~Retail Transmission Rate - Line and Transformation Connection Service Rate | F50: GENERAL SERVICE 50 to 4,999 kW SERVICE CLASSIFICATION~Retail Transmission Rate - Network Service Rate | G50: GENERAL SERVICE 50 to 4,999 kW SERVICE CLASSIFICATION~Retail Transmission Rate - Line and Transformation Connection Service Rate | H50: SENTINEL LIGHTING SERVICE CLASSIFICATION~Retail Transmission Rate - Network Service Rate | I50: SENTINEL LIGHTING SERVICE CLASSIFICATION~Retail Transmission Rate - Line and Transformation Connection Service Rate | J50: STREET LIGHTING SERVICE CLASSIFICATION~Retail Transmission Rate - Network Service Rate | K50: STREET LIGHTING SERVICE CLASSIFICATION~Retail Transmission Rate - Line and Transformation Connection Service Rate | L50: UNMETERED SCATTERED LOAD SERVICE CLASSIFICATION~Retail Transmission Rate - Network Service Rate | M50: UNMETERED SCATTERED LOAD SERVICE CLASSIFICATION~Retail Transmission Rate - Line and Transformation Connection Service Rate
A51: Orillia Power Distribution Corporation | B51: RESIDENTIAL SERVICE CLASSIFICATION~Retail Transmission Rate - Network Service Rate | C51: RESIDENTIAL SERVICE CLASSIFICATION~Retail Transmission Rate - Line and Transformation Connection Service Rate | D51: GENERAL SERVICE LESS THAN 50 KW SERVICE CLASSIFICATION~Retail Transmission Rate - Network Service Rate | E51: GENERAL SERVICE LESS THAN 50 KW SERVICE CLASSIFICATION~Retail Transmission Rate - Line and Transformation Connection Service Rate | F51: GENERAL SERVICE 50 to 4,999 kW SERVICE CLASSIFICATION~Retail Transmission Rate - Network Service Rate | G51: GENERAL SERVICE 50 to 4,999 kW SERVICE CLASSIFICATION~Retail Transmission Rate - Line and Transformation Connection Service Rate | H51: UNMETERED SCATTERED LOAD SERVICE CLASSIFICATION~Retail Transmission Rate - Network Service Rate | I51: UNMETERED SCATTERED LOAD SERVICE CLASSIFICATION~Retail Transmission Rate - Line and Transformation Connection Service Rate | J51: SENTINEL LIGHTING SERVICE CLASSIFICATION~Retail Transmission Rate - Network Service Rate | K51: SENTINEL LIGHTING SERVICE CLASSIFICATION~Retail Transmission Rate - Line and Transformation Connection Service Rate | L51: STREET LIGHTING SERVICE CLASSIFICATION~Retail Transmission Rate - Network Service Rate | M51: STREET LIGHTING SERVICE CLASSIFICATION~Retail Transmission Rate - Line and Transformation Connection Service Rate
A52: Ottawa River Power Corporation | B52: RESIDENTIAL SERVICE CLASSIFICATION~Retail Transmission Rate - Network Service Rate | C52: RESIDENTIAL SERVICE CLASSIFICATION~Retail Transmission Rate - Line and Transformation Connection Service Rate | D52: GENERAL SERVICE LESS THAN 50 KW SERVICE CLASSIFICATION~Retail Transmission Rate - Network Service Rate | E52: GENERAL SERVICE LESS THAN 50 KW SERVICE CLASSIFICATION~Retail Transmission Rate - Line and Transformation Connection Service Rate | F52: GENERAL SERVICE 50 to 4,999 kW SERVICE CLASSIFICATION~Retail Transmission Rate - Network Service Rate | G52: GENERAL SERVICE 50 to 4,999 kW SERVICE CLASSIFICATION~Retail Transmission Rate - Line and Transformation Connection Service Rate | H52: SENTINEL LIGHTING SERVICE CLASSIFICATION~Retail Transmission Rate - Network Service Rate | I52: SENTINEL LIGHTING SERVICE CLASSIFICATION~Retail Transmission Rate - Line and Transformation Connection Service Rate | J52: STREET LIGHTING SERVICE CLASSIFICATION~Retail Transmission Rate - Network Service Rate | K52: STREET LIGHTING SERVICE CLASSIFICATION~Retail Transmission Rate - Line and Transformation Connection Service Rate | L52: UNMETERED SCATTERED LOAD SERVICE CLASSIFICATION~Retail Transmission Rate - Network Service Rate | M52: UNMETERED SCATTERED LOAD SERVICE CLASSIFICATION~Retail Transmission Rate - Line and Transformation Connection Service Rate
A53: Peterborough Distribution Incorporated | B53: RESIDENTIAL SERVICE CLASSIFICATION~Retail Transmission Rate - Network Service Rate | C53: RESIDENTIAL SERVICE CLASSIFICATION~Retail Transmission Rate - Line and Transformation Connection Service Rate | D53: GENERAL SERVICE LESS THAN 50 KW SERVICE CLASSIFICATION~Retail Transmission Rate - Network Service Rate | E53: GENERAL SERVICE LESS THAN 50 KW SERVICE CLASSIFICATION~Retail Transmission Rate - Line and Transformation Connection Service Rate | F53: GENERAL SERVICE 50 to 4,999 kW SERVICE CLASSIFICATION~Retail Transmission Rate - Network Service Rate | G53: GENERAL SERVICE 50 to 4,999 kW SERVICE CLASSIFICATION~Retail Transmission Rate - Line and Transformation Connection Service Rate | H53: LARGE USE SERVICE CLASSIFICATION~Retail Transmission Rate - Network Service Rate | I53: LARGE USE SERVICE CLASSIFICATION~Retail Transmission Rate - Line and Transformation Connection Service Rate | J53: UNMETERED SCATTERED LOAD SERVICE CLASSIFICATION~Retail Transmission Rate - Network Service Rate | K53: UNMETERED SCATTERED LOAD SERVICE CLASSIFICATION~Retail Transmission Rate - Line and Transformation Connection Service Rate | L53: SENTINEL LIGHTING SERVICE CLASSIFICATION~Retail Transmission Rate - Network Service Rate | M53: SENTINEL LIGHTING SERVICE CLASSIFICATION~Retail Transmission Rate - Line and Transformation Connection Service Rate | N53: STREET LIGHTING SERVICE CLASSIFICATION~Retail Transmission Rate - Network Service Rate | O53: STREET LIGHTING SERVICE CLASSIFICATION~Retail Transmission Rate - Line and Transformation Connection Service Rate
A54: Rideau St. Lawrence Distribution Inc. | B54: RESIDENTIAL SERVICE CLASSIFICATION~Retail Transmission Rate - Network Service Rate | C54: RESIDENTIAL SERVICE CLASSIFICATION~Retail Transmission Rate - Line and Transformation Connection Service Rate | D54: GENERAL SERVICE LESS THAN 50 KW SERVICE CLASSIFICATION~Retail Transmission Rate - Network Service Rate | E54: GENERAL SERVICE LESS THAN 50 KW SERVICE CLASSIFICATION~Retail Transmission Rate - Line and Transformation Connection Service Rate | F54: GENERAL SERVICE 50 to 4,999 kW SERVICE CLASSIFICATION~Retail Transmission Rate - Network Service Rate | G54: GENERAL SERVICE 50 to 4,999 kW SERVICE CLASSIFICATION~Retail Transmission Rate - Line and Transformation Connection Service Rate | H54: GENERAL SERVICE 50 to 4,999 kW SERVICE CLASSIFICATION~Retail Transmission Rate - Network Service Rate - Interval Metered | I54: GENERAL SERVICE 50 to 4,999 kW SERVICE CLASSIFICATION~Retail Transmission Rate - Line and Transformation Connection Service Rate - Interval Metered | J54: UNMETERED SCATTERED LOAD SERVICE CLASSIFICATION~Retail Transmission Rate - Network Service Rate | K54: UNMETERED SCATTERED LOAD SERVICE CLASSIFICATION~Retail Transmission Rate - Line and Transformation Connection Service Rate | L54: SENTINEL LIGHTING SERVICE CLASSIFICATION~Retail Transmission Rate - Network Service Rate | M54: SENTINEL LIGHTING SERVICE CLASSIFICATION~Retail Transmission Rate - Line and Transformation Connection Service Rate | N54: STREET LIGHTING SERVICE CLASSIFICATION~Retail Transmission Rate - Network Service Rate | O54: STREET LIGHTING SERVICE CLASSIFICATION~Retail Transmission Rate - Line and Transformation Connection Service Rate
A55: Sioux Lookout Hydro Inc. | B55: RESIDENTIAL SERVICE CLASSIFICATION~Retail Transmission Rate - Network Service Rate | C55: RESIDENTIAL SERVICE CLASSIFICATION~Retail Transmission Rate - Line and Transformation Connection Service Rate | D55: GENERAL SERVICE LESS THAN 50 KW SERVICE CLASSIFICATION~Retail Transmission Rate - Network Service Rate | E55: GENERAL SERVICE LESS THAN 50 KW SERVICE CLASSIFICATION~Retail Transmission Rate - Line and Transformation Connection Service Rate | F55: GENERAL SERVICE 50 to 4,999 kW SERVICE CLASSIFICATION~Retail Transmission Rate - Network Service Rate | G55: GENERAL SERVICE 50 to 4,999 kW SERVICE CLASSIFICATION~Retail Transmission Rate - Line and Transformation Connection Service Rate | H55: GENERAL SERVICE 50 to 4,999 kW SERVICE CLASSIFICATION~Retail Transmission Rate - Network Service Rate - Interval Metered > 1,000 kW | I55: GENERAL SERVICE 50 to 4,999 kW SERVICE CLASSIFICATION~Retail Transmission Rate - Line and Transformation Connection Service Rate - Interval Metered > 1,000 kW | J55: STREET LIGHTING SERVICE CLASSIFICATION~Retail Transmission Rate - Network Service Rate | K55: STREET LIGHTING SERVICE CLASSIFICATION~Retail Transmission Rate - Line and Transformation Connection Service Rate
A56: Synergy North Corporation-Thunder Bay Rate Zone | B56: RESIDENTIAL SERVICE CLASSIFICATION~Retail Transmission Rate - Network Service Rate | C56: RESIDENTIAL SERVICE CLASSIFICATION~Retail Transmission Rate - Line and Transformation Connection Service Rate | D56: GENERAL SERVICE LESS THAN 50 KW SERVICE CLASSIFICATION~Retail Transmission Rate - Network Service Rate | E56: GENERAL SERVICE LESS THAN 50 KW SERVICE CLASSIFICATION~Retail Transmission Rate - Line and Transformation Connection Service Rate | F56: GENERAL SERVICE 50 TO 999 KW SERVICE CLASSIFICATION~Retail Transmission Rate - Network Service Rate | G56: GENERAL SERVICE 50 TO 999 KW SERVICE CLASSIFICATION~Retail Transmission Rate - Line and Transformation Connection Service Rate | H56: GENERAL SERVICE 50 TO 999 KW SERVICE CLASSIFICATION~Retail Transmission Rate - Network Service Rate - Interval Metered | I56: GENERAL SERVICE 50 TO 999 KW SERVICE CLASSIFICATION~Retail Transmission Rate - Line and Transformation Connection Service Rate - Interval Metered | J56: GENERAL SERVICE 1,000 KW OR GREATER SERVICE CLASSIFICATION~Retail Transmission Rate - Network Service Rate | K56: GENERAL SERVICE 1,000 KW OR GREATER SERVICE CLASSIFICATION~Retail Transmission Rate - Line and Transformation Connection Service Rate | L56: UNMETERED SCATTERED LOAD SERVICE CLASSIFICATION~Retail Transmission Rate - Network Service Rate | M56: UNMETERED SCATTERED LOAD SERVICE CLASSIFICATION~Retail Transmission Rate - Line and Transformation Connection Service Rate | N56: SENTINEL LIGHTING SERVICE CLASSIFICATION~Retail Transmission Rate - Network Service Rate | O56: SENTINEL LIGHTING SERVICE CLASSIFICATION~Retail Transmission Rate - Line and Transformation Connection Service Rate | P56: STREET LIGHTING SERVICE CLASSIFICATION~Retail Transmission Rate - Network Service Rate | Q56: STREET LIGHTING SERVICE CLASSIFICATION~Retail Transmission Rate - Line and Transformation Connection Service Rate
A57: ENWIN Utilities Ltd. | B57: RESIDENTIAL SERVICE CLASSIFICATION~Retail Transmission Rate - Network Service Rate | C57: RESIDENTIAL SERVICE CLASSIFICATION~Retail Transmission Rate - Line and Transformation Connection Service Rate | D57: GENERAL SERVICE LESS THAN 50 KW SERVICE CLASSIFICATION~Retail Transmission Rate - Network Service Rate | E57: GENERAL SERVICE LESS THAN 50 KW SERVICE CLASSIFICATION~Retail Transmission Rate - Line and Transformation Connection Service Rate | F57: GENERAL SERVICE 50 to 4,999 kW SERVICE CLASSIFICATION~Retail Transmission Rate - Network Service Rate | G57: GENERAL SERVICE 50 to 4,999 kW SERVICE CLASSIFICATION~Retail Transmission Rate - Line and Transformation Connection Service Rate | H57: GENERAL SERVICE 3,000 TO 4,999 KW - INTERMEDIATE USE SERVICE CLASSIFICATION~Retail Transmission Rate - Network Service Rate | I57: GENERAL SERVICE 3,000 TO 4,999 KW - INTERMEDIATE USE SERVICE CLASSIFICATION~Retail Transmission Rate - Line and Transformation Connection Service Rate | J57: LARGE USE - REGULAR SERVICE CLASSIFICATION~Retail Transmission Rate - Network Service Rate | K57: LARGE USE - REGULAR SERVICE CLASSIFICATION~Retail Transmission Rate - Line Connection Service Rate | L57: LARGE USE - REGULAR SERVICE CLASSIFICATION~Retail Transmission Rate - Transformation Connection Service Rate | M57: LARGE USE - 3TS SERVICE CLASSIFICATION~Retail Transmission Rate - Network Service Rate | N57: LARGE USE - 3TS SERVICE CLASSIFICATION~Retail Transmission Rate - Line Connection Service Rate | O57: LARGE USE - FORD ANNEX SERVICE CLASSIFICATION~Retail Transmission Rate - Network Service Rate | P57: LARGE USE - FORD ANNEX SERVICE CLASSIFICATION~Retail Transmission Rate - Line Connection Service Rate | Q57: UNMETERED SCATTERED LOAD SERVICE CLASSIFICATION~Retail Transmission Rate - Network Service Rate | R57: UNMETERED SCATTERED LOAD SERVICE CLASSIFICATION~Retail Transmission Rate - Line and Transformation Connection Service Rate | S57: SENTINEL LIGHTING SERVICE CLASSIFICATION~Retail Transmission Rate - Network Service Rate | T57: SENTINEL LIGHTING SERVICE CLASSIFICATION~Retail Transmission Rate - Line and Transformation Connection Service Rate | U57: STREET LIGHTING SERVICE CLASSIFICATION~Retail Transmission Rate - Network Service Rate | V57: STREET LIGHTING SERVICE CLASSIFICATION~Retail Transmission Rate - Line and Transformation Connection Service Rate
A58: Hearst Power Distribution Co. Ltd. | B58: RESIDENTIAL SERVICE CLASSIFICATION~Retail Transmission Rate - Network Service Rate | C58: RESIDENTIAL SERVICE CLASSIFICATION~Retail Transmission Rate - Line and Transformation Connection Service Rate | D58: GENERAL SERVICE LESS THAN 50 KW SERVICE CLASSIFICATION~Retail Transmission Rate - Network Service Rate | E58: GENERAL SERVICE LESS THAN 50 KW SERVICE CLASSIFICATION~Retail Transmission Rate - Line and Transformation Connection Service Rate | F58: GENERAL SERVICE 50 TO 1,499 KW SERVICE CLASSIFICATION~Retail Transmission Rate - Network Service Rate | G58: GENERAL SERVICE 50 TO 1,499 KW SERVICE CLASSIFICATION~Retail Transmission Rate - Line and Transformation Connection Service Rate | H58: INTERMEDIATE USER SERVICE CLASSIFICATION~Retail Transmission Rate - Network Service Rate | I58: INTERMEDIATE USER SERVICE CLASSIFICATION~Retail Transmission Rate - Line and Transformation Connection Service Rate | J58: SENTINEL LIGHTING SERVICE CLASSIFICATION~Retail Transmission Rate - Network Service Rate | K58: SENTINEL LIGHTING SERVICE CLASSIFICATION~Retail Transmission Rate - Line and Transformation Connection Service Rate | L58: STREET LIGHTING SERVICE CLASSIFICATION~Retail Transmission Rate - Network Service Rate | M58: STREET LIGHTING SERVICE CLASSIFICATION~Retail Transmission Rate - Line and Transformation Connection Service Rate
A59: ERTH Power Corporation-ERTH Power Main Rate Zone | B59: RESIDENTIAL SERVICE CLASSIFICATION~Retail Transmission Rate - Network Service Rate | C59: RESIDENTIAL SERVICE CLASSIFICATION~Retail Transmission Rate - Line and Transformation Connection Service Rate | D59: GENERAL SERVICE LESS THAN 50 KW SERVICE CLASSIFICATION~Retail Transmission Rate - Network Service Rate | E59: GENERAL SERVICE LESS THAN 50 KW SERVICE CLASSIFICATION~Retail Transmission Rate - Line and Transformation Connection Service Rate | F59: GENERAL SERVICE 50 TO 999 KW SERVICE CLASSIFICATION~Retail Transmission Rate - Network Service Rate | G59: GENERAL SERVICE 50 TO 999 KW SERVICE CLASSIFICATION~Retail Transmission Rate - Line and Transformation Connection Service Rate | H59: GENERAL SERVICE 1,000 TO 4,999 KW SERVICE CLASSIFICATION~Retail Transmission Rate - Network Service Rate | I59: GENERAL SERVICE 1,000 TO 4,999 KW SERVICE CLASSIFICATION~Retail Transmission Rate - Line and Transformation Connection Service Rate | J59: LARGE USE SERVICE CLASSIFICATION~Retail Transmission Rate - Network Service Rate | K59: LARGE USE SERVICE CLASSIFICATION~Retail Transmission Rate - Line and Transformation Connection Service Rate | L59: UNMETERED SCATTERED LOAD SERVICE CLASSIFICATION~Retail Transmission Rate - Network Service Rate | M59: UNMETERED SCATTERED LOAD SERVICE CLASSIFICATION~Retail Transmission Rate - Line and Transformation Connection Service Rate | N59: SENTINEL LIGHTING SERVICE CLASSIFICATION~Retail Transmission Rate - Network Service Rate | O59: SENTINEL LIGHTING SERVICE CLASSIFICATION~Retail Transmission Rate - Line and Transformation Connection Service Rate | P59: STREET LIGHTING SERVICE CLASSIFICATION~Retail Transmission Rate - Network Service Rate | Q59: STREET LIGHTING SERVICE CLASSIFICATION~Retail Transmission Rate - Line and Transformation Connection Service Rate | R59: EMBEDDED DISTRIBUTOR SERVICE CLASSIFICATION~Retail Transmission Rate - Network Service Rate | S59: EMBEDDED DISTRIBUTOR SERVICE CLASSIFICATION~Retail Transmission Rate - Line and Transformation Connection Service Rate
A60: Welland Hydro-Electric System Corp. | B60: RESIDENTIAL SERVICE CLASSIFICATION~Retail Transmission Rate - Network Service Rate | C60: RESIDENTIAL SERVICE CLASSIFICATION~Retail Transmission Rate - Line and Transformation Connection Service Rate | D60: GENERAL SERVICE LESS THAN 50 KW SERVICE CLASSIFICATION~Retail Transmission Rate - Network Service Rate | E60: GENERAL SERVICE LESS THAN 50 KW SERVICE CLASSIFICATION~Retail Transmission Rate - Line and Transformation Connection Service Rate | F60: GENERAL SERVICE 50 to 4,999 kW SERVICE CLASSIFICATION~Retail Transmission Rate - Network Service Rate | G60: GENERAL SERVICE 50 to 4,999 kW SERVICE CLASSIFICATION~Retail Transmission Rate - Line and Transformation Connection Service Rate | H60: UNMETERED SCATTERED LOAD SERVICE CLASSIFICATION~Retail Transmission Rate - Network Service Rate | I60: UNMETERED SCATTERED LOAD SERVICE CLASSIFICATION~Retail Transmission Rate - Line and Transformation Connection Service Rate | J60: SENTINEL LIGHTING SERVICE CLASSIFICATION~Retail Transmission Rate - Network Service Rate | K60: SENTINEL LIGHTING SERVICE CLASSIFICATION~Retail Transmission Rate - Line and Transformation Connection Service Rate | L60: STREET LIGHTING SERVICE CLASSIFICATION~Retail Transmission Rate - Network Service Rate | M60: STREET LIGHTING SERVICE CLASSIFICATION~Retail Transmission Rate - Line and Transformation Connection Service Rate
A61: Wellington North Power Inc. | B61: RESIDENTIAL SERVICE CLASSIFICATION~Retail Transmission Rate - Network Service Rate | C61: RESIDENTIAL SERVICE CLASSIFICATION~Retail Transmission Rate - Line and Transformation Connection Service Rate | D61: GENERAL SERVICE LESS THAN 50 KW SERVICE CLASSIFICATION~Retail Transmission Rate - Network Service Rate | E61: GENERAL SERVICE LESS THAN 50 KW SERVICE CLASSIFICATION~Retail Transmission Rate - Line and Transformation Connection Service Rate | F61: GENERAL SERVICE 50 TO 999 KW SERVICE CLASSIFICATION~Retail Transmission Rate - Network Service Rate | G61: GENERAL SERVICE 50 TO 999 KW SERVICE CLASSIFICATION~Retail Transmission Rate - Line and Transformation Connection Service Rate | H61: GENERAL SERVICE 1,000 TO 4,999 KW SERVICE CLASSIFICATION~Retail Transmission Rate - Network Service Rate | I61: GENERAL SERVICE 1,000 TO 4,999 KW SERVICE CLASSIFICATION~Retail Transmission Rate - Line and Transformation Connection Service Rate | J61: UNMETERED SCATTERED LOAD SERVICE CLASSIFICATION~Retail Transmission Rate - Network Service Rate | K61: UNMETERED SCATTERED LOAD SERVICE CLASSIFICATION~Retail Transmission Rate - Line and Transformation Connection Service Rate | L61: SENTINEL LIGHTING SERVICE CLASSIFICATION~Retail Transmission Rate - Network Service Rate | M61: SENTINEL LIGHTING SERVICE CLASSIFICATION~Retail Transmission Rate - Line and Transformation Connection Service Rate | N61: STREET LIGHTING SERVICE CLASSIFICATION~Retail Transmission Rate - Network Service Rate | O61: STREET LIGHTING SERVICE CLASSIFICATION~Retail Transmission Rate - Line and Transformation Connection Service Rate
A62: Tillsonburg Hydro Inc. | B62: RESIDENTIAL SERVICE CLASSIFICATION~Retail Transmission Rate - Network Service Rate | C62: RESIDENTIAL SERVICE CLASSIFICATION~Retail Transmission Rate - Line and Transformation Connection Service Rate | D62: GENERAL SERVICE LESS THAN 50 KW SERVICE CLASSIFICATION~Retail Transmission Rate - Network Service Rate | E62: GENERAL SERVICE LESS THAN 50 KW SERVICE CLASSIFICATION~Retail Transmission Rate - Line and Transformation Connection Service Rate | F62: GENERAL SERVICE 50 TO 499 KW SERVICE CLASSIFICATION~Retail Transmission Rate - Network Service Rate | G62: GENERAL SERVICE 50 TO 499 KW SERVICE CLASSIFICATION~Retail Transmission Rate - Line and Transformation Connection Service Rate | H62: GENERAL SERVICE 500 TO 1,499 KW SERVICE CLASSIFICATION~Retail Transmission Rate - Network Service Rate - Interval Metered | I62: GENERAL SERVICE 500 TO 1,499 KW SERVICE CLASSIFICATION~Retail Transmission Rate - Line and Transformation Connection Service Rate - Interval Metered | J62: GENERAL SERVICE EQUAL TO OR GREATER THAN 1,500 KW SERVICE CLASSIFICATION~Retail Transmission Rate - Network Service Rate - Interval Metered | K62: GENERAL SERVICE EQUAL TO OR GREATER THAN 1,500 KW SERVICE CLASSIFICATION~Retail Transmission Rate - Line and Transformation Connection Service Rate - Interval Metered | L62: UNMETERED SCATTERED LOAD SERVICE CLASSIFICATION~Retail Transmission Rate - Network Service Rate | M62: UNMETERED SCATTERED LOAD SERVICE CLASSIFICATION~Retail Transmission Rate - Line and Transformation Connection Service Rate | N62: SENTINEL LIGHTING SERVICE CLASSIFICATION~Retail Transmission Rate - Network Service Rate | O62: SENTINEL LIGHTING SERVICE CLASSIFICATION~Retail Transmission Rate - Line and Transformation Connection Service Rate | P62: STREET LIGHTING SERVICE CLASSIFICATION~Retail Transmission Rate - Network Service Rate | Q62: STREET LIGHTING SERVICE CLASSIFICATION~Retail Transmission Rate - Line and Transformation Connection Service Rate
A63: Elexicon Energy Inc.-Veridian Rate Zone | B63: RESIDENTIAL SERVICE CLASSIFICATION~Retail Transmission Rate - Network Service Rate | C63: RESIDENTIAL SERVICE CLASSIFICATION~Retail Transmission Rate - Line and Transformation Connection Service Rate | D63: SEASONAL RESIDENTIAL SERVICE CLASSIFICATION~Retail Transmission Rate - Network Service Rate | E63: SEASONAL RESIDENTIAL SERVICE CLASSIFICATION~Retail Transmission Rate - Line and Transformation Connection Service Rate | F63: GENERAL SERVICE LESS THAN 50 KW SERVICE CLASSIFICATION~Retail Transmission Rate - Network Service Rate | G63: GENERAL SERVICE LESS THAN 50 KW SERVICE CLASSIFICATION~Retail Transmission Rate - Line and Transformation Connection Service Rate | H63: GENERAL SERVICE 50 TO 2,999 KW SERVICE CLASSIFICATION~Retail Transmission Rate - Network Service Rate | I63: GENERAL SERVICE 50 TO 2,999 KW SERVICE CLASSIFICATION~Retail Transmission Rate - Line and Transformation Connection Service Rate | J63: GENERAL SERVICE 3,000 TO 4,999 KW SERVICE CLASSIFICATION~Retail Transmission Rate - Network Service Rate | K63: GENERAL SERVICE 3,000 TO 4,999 KW SERVICE CLASSIFICATION~Retail Transmission Rate - Line and Transformation Connection Service Rate | L63: LARGE USE SERVICE CLASSIFICATION~Retail Transmission Rate - Network Service Rate | M63: LARGE USE SERVICE CLASSIFICATION~Retail Transmission Rate - Line and Transformation Connection Service Rate | N63: UNMETERED SCATTERED LOAD SERVICE CLASSIFICATION~Retail Transmission Rate - Network Service Rate | O63: UNMETERED SCATTERED LOAD SERVICE CLASSIFICATION~Retail Transmission Rate - Line and Transformation Connection Service Rate | P63: SENTINEL LIGHTING SERVICE CLASSIFICATION~Retail Transmission Rate - Network Service Rate | Q63: SENTINEL LIGHTING SERVICE CLASSIFICATION~Retail Transmission Rate - Line and Transformation Connection Service Rate | R63: STREET LIGHTING SERVICE CLASSIFICATION~Retail Transmission Rate - Network Service Rate | S63: STREET LIGHTING SERVICE CLASSIFICATION~Retail Transmission Rate - Line and Transformation Connection Service Rate
A64: Wasaga Distribution Inc. | B64: RESIDENTIAL SERVICE CLASSIFICATION~Retail Transmission Rate - Network Service Rate | C64: RESIDENTIAL SERVICE CLASSIFICATION~Retail Transmission Rate - Line and Transformation Connection Service Rate | D64: GENERAL SERVICE LESS THAN 50 KW SERVICE CLASSIFICATION~Retail Transmission Rate - Network Service Rate | E64: GENERAL SERVICE LESS THAN 50 KW SERVICE CLASSIFICATION~Retail Transmission Rate - Line and Transformation Connection Service Rate | F64: GENERAL SERVICE 50 to 4,999 kW SERVICE CLASSIFICATION~Retail Transmission Rate - Network Service Rate | G64: GENERAL SERVICE 50 to 4,999 kW SERVICE CLASSIFICATION~Retail Transmission Rate - Line and Transformation Connection Service Rate | H64: UNMETERED SCATTERED LOAD SERVICE CLASSIFICATION~Retail Transmission Rate - Network Service Rate | I64: UNMETERED SCATTERED LOAD SERVICE CLASSIFICATION~Retail Transmission Rate - Line and Transformation Connection Service Rate | J64: STREET LIGHTING SERVICE CLASSIFICATION~Retail Transmission Rate - Network Service Rate | K64: STREET LIGHTING SERVICE CLASSIFICATION~Retail Transmission Rate - Line and Transformation Connection Service Rate
A65: ERTH Power Corporation – Goderich Rate Zone | B65: RESIDENTIAL SERVICE CLASSIFICATION~Retail Transmission Rate - Network Service Rate | C65: RESIDENTIAL SERVICE CLASSIFICATION~Retail Transmission Rate - Line and Transformation Connection Service Rate | D65: GENERAL SERVICE LESS THAN 50 KW SERVICE CLASSIFICATION~Retail Transmission Rate - Network Service Rate | E65: GENERAL SERVICE LESS THAN 50 KW SERVICE CLASSIFICATION~Retail Transmission Rate - Line and Transformation Connection Service Rate | F65: GENERAL SERVICE 50 TO 499 KW SERVICE CLASSIFICATION~Retail Transmission Rate - Network Service Rate | G65: GENERAL SERVICE 50 TO 499 KW SERVICE CLASSIFICATION~Retail Transmission Rate - Line and Transformation Connection Service Rate | H65: GENERAL SERVICE 500 TO 4,999 KW SERVICE CLASSIFICATION~Retail Transmission Rate - Network Service Rate | I65: GENERAL SERVICE 500 TO 4,999 KW SERVICE CLASSIFICATION~Retail Transmission Rate - Line and Transformation Connection Service Rate | J65: LARGE USE SERVICE CLASSIFICATION~Retail Transmission Rate - Network Service Rate | K65: LARGE USE SERVICE CLASSIFICATION~Retail Transmission Rate - Line and Transformation Connection Service Rate | L65: UNMETERED SCATTERED LOAD SERVICE CLASSIFICATION~Retail Transmission Rate - Network Service Rate | M65: UNMETERED SCATTERED LOAD SERVICE CLASSIFICATION~Retail Transmission Rate - Line and Transformation Connection Service Rate | N65: SENTINEL LIGHTING SERVICE CLASSIFICATION~Retail Transmission Rate - Network Service Rate | O65: SENTINEL LIGHTING SERVICE CLASSIFICATION~Retail Transmission Rate - Line and Transformation Connection Service Rate | P65: STREET LIGHTING SERVICE CLASSIFICATION~Retail Transmission Rate - Network Service Rate | Q65: STREET LIGHTING SERVICE CLASSIFICATION~Retail Transmission Rate - Line and Transformation Connection Service Rate
A66: Oshawa PUC Networks Inc. | B66: RESIDENTIAL SERVICE CLASSIFICATION~Retail Transmission Rate - Network Service Rate | C66: RESIDENTIAL SERVICE CLASSIFICATION~Retail Transmission Rate - Line and Transformation Connection Service Rate | D66: GENERAL SERVICE LESS THAN 50 KW SERVICE CLASSIFICATION~Retail Transmission Rate - Network Service Rate | E66: GENERAL SERVICE LESS THAN 50 KW SERVICE CLASSIFICATION~Retail Transmission Rate - Line and Transformation Connection Service Rate | F66: GENERAL SERVICE 50 TO 999 KW SERVICE CLASSIFICATION~Retail Transmission Rate - Network Service Rate | G66: GENERAL SERVICE 50 TO 999 KW SERVICE CLASSIFICATION~Retail Transmission Rate - Line and Transformation Connection Service Rate | H66: GENERAL SERVICE 50 TO 999 KW SERVICE CLASSIFICATION~Retail Transmission Rate - Network Service Rate - Interval Metered | I66: GENERAL SERVICE 50 TO 999 KW SERVICE CLASSIFICATION~Retail Transmission Rate - Line and Transformation Connection Service Rate - Interval Metered | J66: GENERAL SERVICE 1,000 TO 4,999 KW SERVICE CLASSIFICATION~Retail Transmission Rate - Network Service Rate - Interval Metered | K66: GENERAL SERVICE 1,000 TO 4,999 KW SERVICE CLASSIFICATION~Retail Transmission Rate - Line and Transformation Connection Service Rate - Interval Metered | L66: LARGE USE SERVICE CLASSIFICATION~Retail Transmission Rate - Network Service Rate - Interval Metered | M66: LARGE USE SERVICE CLASSIFICATION~Retail Transmission Rate - Line and Transformation Connection Service Rate - Interval Metered | N66: UNMETERED SCATTERED LOAD SERVICE CLASSIFICATION~Retail Transmission Rate - Network Service Rate | O66: UNMETERED SCATTERED LOAD SERVICE CLASSIFICATION~Retail Transmission Rate - Line and Transformation Connection Service Rate | P66: SENTINEL LIGHTING SERVICE CLASSIFICATION~Retail Transmission Rate - Network Service Rate | Q66: SENTINEL LIGHTING SERVICE CLASSIFICATION~Retail Transmission Rate - Line and Transformation Connection Service Rate | R66: STREET LIGHTING SERVICE CLASSIFICATION~Retail Transmission Rate - Network Service Rate | S66: STREET LIGHTING SERVICE CLASSIFICATION~Retail Transmission Rate - Line and Transformation Connection Service Rate
A67: Brantford Power Inc. | B67: RESIDENTIAL SERVICE CLASSIFICATION~Retail Transmission Rate - Network Service Rate | C67: RESIDENTIAL SERVICE CLASSIFICATION~Retail Transmission Rate - Line and Transformation Connection Service Rate | D67: GENERAL SERVICE LESS THAN 50 KW SERVICE CLASSIFICATION~Retail Transmission Rate - Network Service Rate | E67: GENERAL SERVICE LESS THAN 50 KW SERVICE CLASSIFICATION~Retail Transmission Rate - Line and Transformation Connection Service Rate | F67: GENERAL SERVICE 50 to 4,999 kW SERVICE CLASSIFICATION~Retail Transmission Rate - Network Service Rate | G67: GENERAL SERVICE 50 to 4,999 kW SERVICE CLASSIFICATION~Retail Transmission Rate - Line and Transformation Connection Service Rate | H67: EMBEDDED DISTRIBUTOR SERVICE CLASSIFICATION~Retail Transmission Rate - Network Service Rate | I67: EMBEDDED DISTRIBUTOR SERVICE CLASSIFICATION~Retail Transmission Rate - Line and Transformation Connection Service Rate | J67: SENTINEL LIGHTING SERVICE CLASSIFICATION~Retail Transmission Rate - Network Service Rate | K67: SENTINEL LIGHTING SERVICE CLASSIFICATION~Retail Transmission Rate - Line and Transformation Connection Service Rate | L67: STREET LIGHTING SERVICE CLASSIFICATION~Retail Transmission Rate - Network Service Rate | M67: STREET LIGHTING SERVICE CLASSIFICATION~Retail Transmission Rate - Line and Transformation Connection Service Rate | N67: UNMETERED SCATTERED LOAD SERVICE CLASSIFICATION~Retail Transmission Rate - Network Service Rate | O67: UNMETERED SCATTERED LOAD SERVICE CLASSIFICATION~Retail Transmission Rate - Line and Transformation Connection Service Rate
A68: Oakville Hydro Electricity Distribution Inc. | B68: RESIDENTIAL SERVICE CLASSIFICATION~Retail Transmission Rate - Network Service Rate | C68: RESIDENTIAL SERVICE CLASSIFICATION~Retail Transmission Rate - Line and Transformation Connection Service Rate | D68: GENERAL SERVICE LESS THAN 50 KW SERVICE CLASSIFICATION~Retail Transmission Rate - Network Service Rate | E68: GENERAL SERVICE LESS THAN 50 KW SERVICE CLASSIFICATION~Retail Transmission Rate - Line and Transformation Connection Service Rate | F68: GENERAL SERVICE 50 TO 999 KW SERVICE CLASSIFICATION~Retail Transmission Rate - Network Service Rate | G68: GENERAL SERVICE 50 TO 999 KW SERVICE CLASSIFICATION~Retail Transmission Rate - Network Service Rate - Interval Metered | H68: GENERAL SERVICE 50 TO 999 KW SERVICE CLASSIFICATION~Retail Transmission Rate - Line and Transformation Connection Service Rate | I68: GENERAL SERVICE 50 TO 999 KW SERVICE CLASSIFICATION~Retail Transmission Rate - Line and Transformation Connection Service Rate - Interval Metered | J68: GENERAL SERVICE 1,000 KW AND GREATER SERVICE CLASSIFICATION~Retail Transmission Rate - Network Service Rate - Interval Metered | K68: GENERAL SERVICE 1,000 KW AND GREATER SERVICE CLASSIFICATION~Retail Transmission Rate - Line and Transformation Connection Service Rate - Interval Metered | L68: UNMETERED SCATTERED LOAD SERVICE CLASSIFICATION~Retail Transmission Rate - Network Service Rate | M68: UNMETERED SCATTERED LOAD SERVICE CLASSIFICATION~Retail Transmission Rate - Line and Transformation Connection Service Rate | N68: SENTINEL LIGHTING SERVICE CLASSIFICATION~Retail Transmission Rate - Network Service Rate | O68: SENTINEL LIGHTING SERVICE CLASSIFICATION~Retail Transmission Rate - Line and Transformation Connection Service Rate | P68: STREET LIGHTING SERVICE CLASSIFICATION~Retail Transmission Rate - Network Service Rate | Q68: STREET LIGHTING SERVICE CLASSIFICATION~Retail Transmission Rate - Line and Transformation Connection Service Rate | R68: EMBEDDED DISTRIBUTOR SERVICE CLASSIFICATION~Retail Transmission Rate - Network Service Rate | S68: EMBEDDED DISTRIBUTOR SERVICE CLASSIFICATION~Retail Transmission Rate - Line and Transformation Connection Service Rate
A69: Chapleau Public Utilities Corporation | B69: RESIDENTIAL SERVICE CLASSIFICATION~Retail Transmission Rate - Network Service Rate | C69: RESIDENTIAL SERVICE CLASSIFICATION~Retail Transmission Rate - Line and Transformation Connection Service Rate | D69: GENERAL SERVICE LESS THAN 50 kW SERVICE CLASSIFICATION~Retail Transmission Rate - Network Service Rate | E69: GENERAL SERVICE LESS THAN 50 kW SERVICE CLASSIFICATION~Retail Transmission Rate - Line and Transformation Connection Service Rate | F69: GENERAL SERVICE 50 TO 4,999 KW SERVICE CLASSIFICATION~Retail Transmission Rate - Network Service Rate | G69: GENERAL SERVICE 50 TO 4,999 KW SERVICE CLASSIFICATION~Retail Transmission Rate - Line and Transformation Connection Service Rate | H69: UNMETERED SCATTERED LOAD SERVICE CLASSIFICATION~Retail Transmission Rate - Network Service Rate | I69: UNMETERED SCATTERED LOAD SERVICE CLASSIFICATION~Retail Transmission Rate - Line and Transformation Connection Service Rate | J69: SENTINEL LIGHTING SERVICE CLASSIFICATION~Retail Transmission Rate - Network Service Rate | K69: SENTINEL LIGHTING SERVICE CLASSIFICATION~Retail Transmission Rate - Line and Transformation Connection Service Rate | L69: STREET LIGHTING SERVICE CLASSIFICATION~Retail Transmission Rate - Network Service Rate | M69: STREET LIGHTING SERVICE CLASSIFICATION~Retail Transmission Rate - Line and Transformation Connection Service Rate
A70: Espanola Regional Hydro Distribution Corporation | B70: RESIDENTIAL SERVICE CLASSIFICATION~Retail Transmission Rate - Network Service Rate | C70: RESIDENTIAL SERVICE CLASSIFICATION~Retail Transmission Rate - Line and Transformation Connection Service Rate | D70: GENERAL SERVICE LESS THAN 50 kW SERVICE CLASSIFICATION~Retail Transmission Rate - Network Service Rate | E70: GENERAL SERVICE LESS THAN 50 kW SERVICE CLASSIFICATION~Retail Transmission Rate - Line and Transformation Connection Service Rate | F70: GENERAL SERVICE 50 TO 4,999 KW SERVICE CLASSIFICATION~Retail Transmission Rate - Network Service Rate | G70: GENERAL SERVICE 50 TO 4,999 KW SERVICE CLASSIFICATION~Retail Transmission Rate - Line and Transformation Connection Service Rate | H70: GENERAL SERVICE 50 TO 4,999 KW SERVICE CLASSIFICATION~Retail Transmission Rate - Network Service Rate - Interval Metered | I70: GENERAL SERVICE 50 TO 4,999 KW SERVICE CLASSIFICATION~Retail Transmission Rate - Line and Transformation Connection Service Rate - Interval Metered | J70: UNMETERED SCATTERED LOAD SERVICE CLASSIFICATION~Retail Transmission Rate - Network Service Rate | K70: UNMETERED SCATTERED LOAD SERVICE CLASSIFICATION~Retail Transmission Rate - Line and Transformation Connection Service Rate | L70: SENTINEL LIGHTING SERVICE CLASSIFICATION~Retail Transmission Rate - Network Service Rate | M70: SENTINEL LIGHTING SERVICE CLASSIFICATION~Retail Transmission Rate - Line and Transformation Connection Service Rate | N70: STREET LIGHTING SERVICE CLASSIFICATION~Retail Transmission Rate - Network Service Rate | O70: STREET LIGHTING SERVICE CLASSIFICATION~Retail Transmission Rate - Line and Transformation Connection Service Rate
A71: Energy+ Inc.-For Former Brant County Power Service Area | B71: RESIDENTIAL SERVICE CLASSIFICATION~Retail Transmission Rate - Network Service Rate | C71: RESIDENTIAL SERVICE CLASSIFICATION~Retail Transmission Rate - Line and Transformation Connection Service Rate | D71: GENERAL SERVICE LESS THAN 50 KW SERVICE CLASSIFICATION~Retail Transmission Rate - Network Service Rate | E71: GENERAL SERVICE LESS THAN 50 KW SERVICE CLASSIFICATION~Retail Transmission Rate - Line and Transformation Connection Service Rate | F71: GENERAL SERVICE 50 to 4,999 kW SERVICE CLASSIFICATION~Retail Transmission Rate - Network Service Rate | G71: GENERAL SERVICE 50 to 4,999 kW SERVICE CLASSIFICATION~Retail Transmission Rate - Line and Transformation Connection Service Rate | H71: GENERAL SERVICE 50 to 4,999 kW SERVICE CLASSIFICATION~Retail Transmission Rate - Network Service Rate - Interval Metered < 1,000 kW | I71: GENERAL SERVICE 50 to 4,999 kW SERVICE CLASSIFICATION~Retail Transmission Rate - Line and Transformation Connection Service Rate - Interval Metered < 1,000 kW | J71: GENERAL SERVICE 50 to 4,999 kW SERVICE CLASSIFICATION~Retail Transmission Rate - Network Service Rate - Interval Metered > 1,000 kW | K71: GENERAL SERVICE 50 to 4,999 kW SERVICE CLASSIFICATION~Retail Transmission Rate - Line and Transformation Connection Service Rate - Interval Metered > 1,000 kW | L71: UNMETERED SCATTERED LOAD SERVICE CLASSIFICATION~Retail Transmission Rate - Network Service Rate | M71: UNMETERED SCATTERED LOAD SERVICE CLASSIFICATION~Retail Transmission Rate - Line and Transformation Connection Service Rate | N71: SENTINEL LIGHTING SERVICE CLASSIFICATION~Retail Transmission Rate - Network Service Rate | O71: SENTINEL LIGHTING SERVICE CLASSIFICATION~Retail Transmission Rate - Line and Transformation Connection Service Rate | P71: STREET LIGHTING SERVICE CLASSIFICATION~Retail Transmission Rate - Network Service Rate | Q71: STREET LIGHTING SERVICE CLASSIFICATION~Retail Transmission Rate - Line and Transformation Connection Service Rate
A72: Energy+ Inc.-For Former Cambridge and North Dumfries Hydro Service Area | B72: RESIDENTIAL SERVICE CLASSIFICATION~Retail Transmission Rate - Network Service Rate | C72: RESIDENTIAL SERVICE CLASSIFICATION~Retail Transmission Rate - Line and Transformation Connection Service Rate | D72: GENERAL SERVICE LESS THAN 50 KW SERVICE CLASSIFICATION~Retail Transmission Rate - Network Service Rate | E72: GENERAL SERVICE LESS THAN 50 KW SERVICE CLASSIFICATION~Retail Transmission Rate - Line and Transformation Connection Service Rate | F72: GENERAL SERVICE 50 TO 999 KW SERVICE CLASSIFICATION~Retail Transmission Rate - Network Service Rate | G72: GENERAL SERVICE 50 TO 999 KW SERVICE CLASSIFICATION~Retail Transmission Rate - Line and Transformation Connection Service Rate | H72: GENERAL SERVICE 1,000 TO 4,999 KW SERVICE CLASSIFICATION~Retail Transmission Rate - Network Service Rate | I72: GENERAL SERVICE 1,000 TO 4,999 KW SERVICE CLASSIFICATION~Retail Transmission Rate - Line and Transformation Connection Service Rate | J72: LARGE USE SERVICE CLASSIFICATION~Retail Transmission Rate - Network Service Rate | K72: LARGE USE SERVICE CLASSIFICATION~Retail Transmission Rate - Line and Transformation Connection Service Rate | L72: UNMETERED SCATTERED LOAD SERVICE CLASSIFICATION~Retail Transmission Rate - Network Service Rate | M72: UNMETERED SCATTERED LOAD SERVICE CLASSIFICATION~Retail Transmission Rate - Line and Transformation Connection Service Rate | N72: STREET LIGHTING SERVICE CLASSIFICATION~Retail Transmission Rate - Network Service Rate | O72: STREET LIGHTING SERVICE CLASSIFICATION~Retail Transmission Rate - Line and Transformation Connection Service Rate | P72: EMBEDDED DISTRIBUTOR SERVICE CLASSIFICATION~Retail Transmission Rate - Network Service Rate | Q72: EMBEDDED DISTRIBUTOR SERVICE CLASSIFICATION~Retail Transmission Rate - Line and Transformation Connection Service Rate
A73: Hydro 2000 Inc. | B73: RESIDENTIAL SERVICE CLASSIFICATION~Retail Transmission Rate - Network Service Rate | C73: RESIDENTIAL SERVICE CLASSIFICATION~Retail Transmission Rate - Line and Transformation Connection Service Rate | D73: GENERAL SERVICE LESS THAN 50 kW SERVICE CLASSIFICATION~Retail Transmission Rate - Network Service Rate | E73: GENERAL SERVICE LESS THAN 50 kW SERVICE CLASSIFICATION~Retail Transmission Rate - Line and Transformation Connection Service Rate | F73: GENERAL SERVICE 50 TO 4,999 KW SERVICE CLASSIFICATION~Retail Transmission Rate - Network Service Rate | G73: GENERAL SERVICE 50 TO 4,999 KW SERVICE CLASSIFICATION~Retail Transmission Rate - Line and Transformation Connection Service Rate | H73: STREET LIGHTING SERVICE CLASSIFICATION~Retail Transmission Rate - Network Service Rate | I73: STREET LIGHTING SERVICE CLASSIFICATION~Retail Transmission Rate - Line and Transformation Connection Service Rate | J73: UNMETERED SCATTERED LOAD SERVICE CLASSIFICATION~Retail Transmission Rate - Network Service Rate | K73: UNMETERED SCATTERED LOAD SERVICE CLASSIFICATION~Retail Transmission Rate - Line and Transformation Connection Service Rate
A74: Niagara-on-the-Lake Hydro Inc. | B74: RESIDENTIAL SERVICE CLASSIFICATION~Retail Transmission Rate - Network Service Rate | C74: RESIDENTIAL SERVICE CLASSIFICATION~Retail Transmission Rate - Line and Transformation Connection Service Rate | D74: GENERAL SERVICE LESS THAN 50 KW SERVICE CLASSIFICATION~Retail Transmission Rate - Network Service Rate | E74: GENERAL SERVICE LESS THAN 50 KW SERVICE CLASSIFICATION~Retail Transmission Rate - Line and Transformation Connection Service Rate | F74: GENERAL SERVICE 50 to 4,999 kW SERVICE CLASSIFICATION~Retail Transmission Rate - Network Service Rate | G74: GENERAL SERVICE 50 to 4,999 kW SERVICE CLASSIFICATION~Retail Transmission Rate - Line and Transformation Connection Service Rate | H74: GENERAL SERVICE 50 to 4,999 kW SERVICE CLASSIFICATION~Retail Transmission Rate - Network Service Rate - Interval Metered | I74: GENERAL SERVICE 50 to 4,999 kW SERVICE CLASSIFICATION~Retail Transmission Rate - Line and Transformation Connection Service Rate - Interval Metered | J74: UNMETERED SCATTERED LOAD SERVICE CLASSIFICATION~Retail Transmission Rate - Network Service Rate | K74: UNMETERED SCATTERED LOAD SERVICE CLASSIFICATION~Retail Transmission Rate - Line and Transformation Connection Service Rate | L74: STREET LIGHTING SERVICE CLASSIFICATION~Retail Transmission Rate - Network Service Rate | M74: STREET LIGHTING SERVICE CLASSIFICATION~Retail Transmission Rate - Line and Transformation Connection Service Rate
A75: PUC Distribution Inc. | B75: RESIDENTIAL SERVICE CLASSIFICATION~Retail Transmission Rate - Network Service Rate | C75: GENERAL SERVICE LESS THAN 50 KW SERVICE CLASSIFICATION~Retail Transmission Rate - Network Service Rate | D75: GENERAL SERVICE 50 to 4,999 kW SERVICE CLASSIFICATION~Retail Transmission Rate - Network Service Rate | E75: GENERAL SERVICE 50 to 4,999 kW SERVICE CLASSIFICATION~Retail Transmission Rate - Network Service Rate - Interval Metered | F75: UNMETERED SCATTERED LOAD SERVICE CLASSIFICATION~Retail Transmission Rate - Network Service Rate | G75: SENTINEL LIGHTING SERVICE CLASSIFICATION~Retail Transmission Rate - Network Service Rate | H75: STREET LIGHTING SERVICE CLASSIFICATION~Retail Transmission Rate - Network Service Rate
A76: Hydro One Networks Inc. | B76: YEAR-ROUND URBAN DENSITY - UR SERVICE CLASSIFICATION~Retail Transmission Rate - Network Service Rate | C76: YEAR-ROUND URBAN DENSITY - UR SERVICE CLASSIFICATION~Retail Transmission Rate - Line and Transformation Connection Service Rate | D76: YEAR-ROUND MEDIUM DENSITY - R1 SERVICE CLASSIFICATION~Retail Transmission Rate - Network Service Rate | E76: YEAR-ROUND MEDIUM DENSITY - R1 SERVICE CLASSIFICATION~Retail Transmission Rate - Line and Transformation Connection Service Rate | F76: YEAR-ROUND LOW DENSITY - R2 SERVICE CLASSIFICATION~Retail Transmission Rate - Network Service Rate | G76: YEAR-ROUND LOW DENSITY - R2 SERVICE CLASSIFICATION~Retail Transmission Rate - Line and Transformation Connection Service Rate | H76: SEASONAL SERVICE CLASSIFICATION~Retail Transmission Rate - Network Service Rate | I76: SEASONAL SERVICE CLASSIFICATION~Retail Transmission Rate - Line and Transformation Connection Service Rate | J76: URBAN GENERAL SERVICE ENERGY BILLED - UGe SERVICE CLASSIFICATION~Retail Transmission Rate - Network Service Rate | K76: URBAN GENERAL SERVICE ENERGY BILLED - UGe SERVICE CLASSIFICATION~Retail Transmission Rate - Line and Transformation Connection Service Rate | L76: GENERAL SERVICE ENERGY BILLED - GSe SERVICE CLASSIFICATION~Retail Transmission Rate - Network Service Rate | M76: GENERAL SERVICE ENERGY BILLED - GSe SERVICE CLASSIFICATION~Retail Transmission Rate - Line and Transformation Connection Service Rate | N76: URBAN GENERAL SERVICE DEMAND BILLED - UGd SERVICE CLASSIFICATION~Retail Transmission Rate - Network Service Rate | O76: URBAN GENERAL SERVICE DEMAND BILLED - UGd SERVICE CLASSIFICATION~Retail Transmission Rate - Line and Transformation Connection Service Rate | P76: GENERAL SERVICE DEMAND BILLED - GSd SERVICE CLASSIFICATION~Retail Transmission Rate - Network Service Rate | Q76: GENERAL SERVICE DEMAND BILLED - GSd SERVICE CLASSIFICATION~Retail Transmission Rate - Line and Transformation Connection Service Rate | R76: DISTRIBUTED GENERATION - DGen SERVICE CLASSIFICATION~Retail Transmission Rate - Network Service Rate | S76: DISTRIBUTED GENERATION - DGen SERVICE CLASSIFICATION~Retail Transmission Rate - Line and Transformation Connection Service Rate | T76: SUB TRANSMISSION - ST SERVICE CLASSIFICATION~Retail Transmission Rate - Network Service Rate | U76: SUB TRANSMISSION - ST SERVICE CLASSIFICATION~Retail Transmission Rate - Line Connection Service Rate | V76: SUB TRANSMISSION - ST SERVICE CLASSIFICATION~Retail Transmission Rate - Transformation Connection Service Rate | W76: UNMETERED SCATTERED LOAD SERVICE CLASSIFICATION~Retail Transmission Rate - Network Service Rate | X76: UNMETERED SCATTERED LOAD SERVICE CLASSIFICATION~Retail Transmission Rate - Line and Transformation Connection Service Rate | Y76: SENTINEL LIGHTING SERVICE CLASSIFICATION~Retail Transmission Rate - Network Service Rate | Z76: SENTINEL LIGHTING SERVICE CLASSIFICATION~Retail Transmission Rate - Line and Transformation Connection Service Rate | AA76: STREET LIGHTING SERVICE CLASSIFICATION~Retail Transmission Rate - Network Service Rate | AB76: STREET LIGHTING SERVICE CLASSIFICATION~Retail Transmission Rate - Line and Transformation Connection Service Rate

Sheet DELETE 3. Rate Classes (hidden)
C13: 1. Select the appropriate rate classes that appear on your most recent OEB-Approved Tariff of Rates and Charges. 2. Enter the RTSR Network and Connection Rate as it appears on the Tariff of Rates and Charges
C15: Rate Class | E15: Unit | G15: RTSR-Network | I15: RTSR-Connection
L17: =IF(OR(ISBLANK(C17), ISERROR(FIND("Choose", C17))=FALSE), 0, 1) -> 0 | M17: ="C" & ROW(C17) -> C17 | N17: =IF(OR(C17="General Service Intermediate Rate Class 1,000 To 4,999 kW (formerly General Service > 50 kW Customers)", C17="General Service Intermediate Rate Class 1,000 To 4,999 kW (formerly Large Use Customers)"), "x", "") ->  | W17: Choose Rate Class
L18: 0 | M18: C18 | N18: =IF(OR(C18="General Service Intermediate Rate Class 1,000 To 4,999 kW (formerly General Service > 50 kW Customers)", C18="General Service Intermediate Rate Class 1,000 To 4,999 kW (formerly Large Use Customers)"), "x", "") ->  | W18: Residential
L19: 0 | M19: C19 | W19: Residential Regular
L20: 0 | M20: C20 | W20: Residential Urban
L21: 0 | M21: C21 | W21: Residential Urban Year-Round
L22: =IF(OR(ISBLANK(C22), ISERROR(FIND("Choose", C22))=FALSE), 0, 1) -> 0 | M22: C22 | W22: Residential Suburban
L23: 0 | M23: C23 | W23: Residential Suburban Seasonal
L24: 0 | M24: C24 | W24: Residential Suburban Year Round
L25: 0 | M25: C25 | W25: Residential - Time of Use
L26: 0 | M26: C26 | W26: Residential - Hensall
L27: 0 | M27: C27 | W27: Residential – High Density [R1]
L28: 0 | M28: C28 | W28: Residential – Normal Density [R2]
L29: 0 | M29: C29 | W29: Seasonal Residential – High Density [R3]
L30: 0 | M30: C30 | W30: Seasonal Residential – Normal Density [R4]
L31: 0 | M31: C31 | W31: Residential – Urban [UR]
L32: 0 | M32: C32 | W32: General Service Less Than 50 kW
L33: 0 | M33: C33 | W33: General Service Less Than 50 kW – Single Phase energy-billed [G1]
L34: 0 | M34: C34 | W34: General Service Less Than 50 kW – Three Phase energy-billed [G3]
L35: 0 | M35: C35 | W35: General Service Less Than 50 kW – Transmission Class energy-billed [T]
L36: 0 | M36: C36 | W36: General Service Less Than 50 kW – Urban energy-billed [UG]
L37: 0 | M37: C37 | W37: Westport Sewage Treatment Plant
L38: 0 | M38: C38 | W38: Small Commercial and USL - per meter
N39: =COUNTIF(N17:N38, "x") -> 0 | W39: Small Commercial and USL - per connection
W40: Farms – Single Phase energy-billed [F1]
W41: General Service 50 to 499 kW
W42: General Service 50 to 699 kW
W43: General Service 50 to 999 kW
W44: General Service 50 to 999 kW - Interval Metered
W45: General Service 50 to 1,000 kW
W46: General Service 50 to 1,000 kW - Interval Meters
W47: General Service 50 to 1,000 kW - Non Interval Meters
W48: General Service 50 to 1,499 kW
W49: General Service 50 to 1,499 kW - Interval Metered
W50: General Service 50 to 2,499 kW
W51: General Service 50 to 2,999 kW
W52: General Service 50 to 2,999 kW - Time of Use
W53: General Service 50 to 4,999 kW
W54: General Service 50 to 4,999 kW – Interval Metered
W55: General Service 50 to 4,999 kW - Time of Use
W56: General Service 50 to 4,999 kW (CoGeneration)
W57: General Service 50 to 4,999 kW (formerly Time of Use)
W58: General Service 500 to 4,999 kW
W59: General Service 700 to 4,999 kW
W60: General Service 1,000 to 2,999 kW
W61: General Service 1,000 to 4,999 kW
W62: General Service 1,000 to 4,999 kW - Interval Meters
W63: General Service 1,000 To 4,999 kW (co-generation)
W64: General Service Greater Than 1,000 kW
W65: General Service Intermediate Rate Class 1,000 To 4,999 kW (formerly Large Use Customers)
W66: General Service Intermediate Rate Class 1,000 To 4,999 kW (formerly General Service > 50 kW Customers)
W67: General Service 1,500 to 4,999 kW
W68: General Service Equal To Or Greater Than 1,500 kW
W69: General Service Equal To Or Greater Than 1,500 kW - Interval Metered
W70: General Service Intermediate 1,000 To 4,999 kW
W71: General Service 2,500 to 4,999 kW
W72: General Service 3,000 to 4,999 kW
W73: General Service 3,000 to 4,999 kW - Interval Metered
W74: General Service 3,000 to 4,999 kW - Intermediate Use
W75: General Service 3,000 to 4,999 kW - Time of Use
W76: Intermediate With Self Generation
W77: General Service - Commercial
W78: General Service - Institutional
W79: Farms – Three Phase energy-billed [F3]
W80: Large Use
W81: Large Use - Regular
W82: Large Use > 5000 kW
W83: Large Use - 3TS
W84: Large Use - Ford Annex
W85: Unmetered Scattered Load
W86: Sentinel Lighting
W87: Street Lighting
W88: Embedded Distributor
W89: Low Voltage Wheeling Charge Rate
W90: Stand-By
W91: Standby Power
W92: Standby Power – INTERIM APPROVAL
W93: Standby Power - APPROVED ON AN INTERIM BASIS
W94: Standby - General Service 50 - 1,000 kW
W95: Standby Power General Service 50 to 1,499 kW
W96: Standby - General Service 1,000 - 5,000 kW
W97: Standby Power General Service 1,500 to 4,999 kW
W98: Standby - Large Use
W99: Standby Power General Service Large Use
W100: Standby Distribution Service

Sheet 2 1 5 TotalConsumptionData_Dist (hidden)
A1: 2.1.5 TotalConsumptionData_Dist_Ret_Total_Combined_2020_v2 (REVIEW)
A2: Time run: 5/27/2021 3:15:18 PM
A4: Filing_Year | B4: Company_Name | C4: Rate_Class | D4: Rate_Class_Detail | E4: Company_DetailClass | G4: Ret_Metered_consumption_in_kWhs | H4: Ret_Metered_consumption_in_kWs | I4: Dist_RPPMeterCustkWh | J4: Dist_RPPMeterCustkW | K4: Dist_NonRPPMeterCustkWh | L4: Dist_NonRPPMeterCustkW | M4: IESOMeterCustkWh | N4: IESOMeterCustKW | O4: Class_A_Consumption_kWhs | P4: Class_A_Consumption_kWs | Q4: TotConsmptionforDistCustkWh | R4: TotConsmptionforDistCustkW | S4: Calculated_TOTAL_KWH | T4: Calculated_TOTAL_KW
A5: 2021 | B5: 1937680 ONTARIO INC. | C5: GENERAL SERVICE EQUAL TO OR GREATER THAN 50 KW | D5: GENERAL SERVICE 50 TO 4,999 KW | E5: 1937680 ONTARIO INC._GENERAL SERVICE 50 TO 4,999 KW SERVICE CLASSIFICATION | F5: 1937680 ONTARIO INC._GENERAL SERVICE 50 TO 4,999 KW SERVICE CLASSIFICATION | G5: 57388830 | H5: 133781 | I5: 50350402 | J5: 127116 | K5: 198785078 | L5: 482951 | M5: 0 | N5: 5278 | O5: 0 | P5: 0 | Q5: 249135480 | R5: 615345 | S5: 306524310 | T5: 749126
A6: 2021 | B6: 1937680 ONTARIO INC. | C6: GENERAL SERVICE LESS THAN 50 KW | D6: GENERAL SERVICE LESS THAN 50 KW | E6: 1937680 ONTARIO INC._GENERAL SERVICE LESS THAN 50 KW SERVICE CLASSIFICATION | F6: 1937680 ONTARIO INC._GENERAL SERVICE LESS THAN 50 KW SERVICE CLASSIFICATION | G6: 14023767 | H6: 0 | I6: 87375637 | J6: 0 | K6: 118150 | L6: 0 | M6: 0 | N6: 0 | O6: 0 | P6: 0 | Q6: 87493787 | R6: 0 | S6: 101517554 | T6: 0
A7: 2021 | B7: 1937680 ONTARIO INC. | C7: LARGE USER | D7: LARGE USE | E7: 1937680 ONTARIO INC._LARGE USE SERVICE CLASSIFICATION | F7: 1937680 ONTARIO INC._LARGE USE SERVICE CLASSIFICATION | G7: 30021547 | H7: 56369 | I7: 0 | J7: 0 | K7: 3874166 | L7: 8703 | M7: 0 | N7: 0 | O7: 0 | P7: 0 | Q7: 3874166 | R7: 8703 | S7: 33895713 | T7: 65072
A8: 2021 | B8: 1937680 ONTARIO INC. | C8: NO RATE CLASS | D8: NO RATE CLASS | E8: 1937680 ONTARIO INC._NO RATE CLASS SERVICE CLASSIFICATION | F8: 1937680 ONTARIO INC._NO RATE CLASS SERVICE CLASSIFICATION | G8: 0 | H8: 0 | I8: 0 | J8: 0 | K8: 0 | L8: 0 | M8: 0 | N8: 0 | O8: 115957904 | P8: 242416 | Q8: 0 | R8: 0 | S8: 0 | T8: 0
A9: 2021 | B9: 1937680 ONTARIO INC. | C9: RESIDENTIAL | D9: RESIDENTIAL | E9: 1937680 ONTARIO INC._RESIDENTIAL SERVICE CLASSIFICATION | F9: 1937680 ONTARIO INC._RESIDENTIAL SERVICE CLASSIFICATION | G9: 4187154 | H9: 0 | I9: 299617565 | J9: 0 | K9: 0 | L9: 0 | M9: 0 | N9: 0 | O9: 0 | P9: 0 | Q9: 299617565 | R9: 0 | S9: 303804719 | T9: 0
A10: 2021 | B10: 1937680 ONTARIO INC. | C10: SENTINEL LIGHTING CONNECTIONS | D10: SENTINEL LIGHTING | E10: 1937680 ONTARIO INC._SENTINEL LIGHTING SERVICE CLASSIFICATION | F10: 1937680 ONTARIO INC._SENTINEL LIGHTING SERVICE CLASSIFICATION | G10: 194157 | H10: 505 | I10: 336163 | J10: 895 | K10: 0 | L10: 0 | M10: 0 | N10: 0 | O10: 0 | P10: 0 | Q10: 336163 | R10: 895 | S10: 530320 | T10: 1400
A11: 2021 | B11: 1937680 ONTARIO INC. | C11: STREET LIGHTING CONNECTIONS | D11: STREET LIGHTING | E11: 1937680 ONTARIO INC._STREET LIGHTING SERVICE CLASSIFICATION | F11: 1937680 ONTARIO INC._STREET LIGHTING SERVICE CLASSIFICATION | G11: 2377634 | H11: 6842 | I11: 0 | J11: 0 | K11: 157159 | L11: 452 | M11: 0 | N11: 0 | O11: 0 | P11: 0 | Q11: 157159 | R11: 452 | S11: 2534793 | T11: 7294
A12: 2021 | B12: 1937680 ONTARIO INC. | C12: UNMETERED SCATTERED LOAD CONNECTIONS | D12: UNMETERED SCATTERED LOAD | E12: 1937680 ONTARIO INC._UNMETERED SCATTERED LOAD SERVICE CLASSIFICATION | F12: 1937680 ONTARIO INC._UNMETERED SCATTERED LOAD SERVICE CLASSIFICATION | G12: 2071178 | H12: 0 | I12: 136447 | J12: 0 | K12: 0 | L12: 0 | M12: 0 | N12: 0 | O12: 0 | P12: 0 | Q12: 136447 | R12: 0 | S12: 2207625 | T12: 0
A13: 2021 | B13: ALECTRA UTILITIES CORPORATION | C13: EMBEDDED DISTRIBUTOR(S) | D13: HYDRO ONE BRAMPTON_EMBEDDED DISTRIBUTOR | E13: ALECTRA UTILITIES CORPORATION_HYDRO ONE BRAMPTON_EMBEDDED DISTRIBUTOR SERVICE CLASSIFICATION | F13: ALECTRA UTILITIES CORPORATION_HYDRO ONE BRAMPTON_EMBEDDED DISTRIBUTOR SERVICE CLASSIFICATION | G13: 0 | H13: 0 | I13: 0 | J13: 0 | K13: 35560789.63 | L13: 0 | M13: 0 | N13: 0 | O13: 0 | P13: 0 | Q13: 35560789.63 | R13: 0 | S13: 35560789.63 | T13: 0
A14: 2021 | B14: ALECTRA UTILITIES CORPORATION | C14: GENERAL SERVICE EQUAL TO OR GREATER THAN 50 KW | D14: ENERSOURCE_GENERAL SERVICE 50 TO 499 KW | E14: ALECTRA UTILITIES CORPORATION_ENERSOURCE_GENERAL SERVICE 50 TO 499 KW SERVICE CLASSIFICATION | F14: ALECTRA UTILITIES CORPORATION_ENERSOURCE_GENERAL SERVICE 50 TO 499 KW SERVICE CLASSIFICATION | G14: 293763670 | H14: 833858 | I14: 267910905.9 | J14: 756345.7 | K14: 1263634302 | L14: 3575739.36 | M14: 0 | N14: 0 | O14: 0 | P14: 0 | Q14: 1531545208 | R14: 4332085.06 | S14: 1825308878 | T14: 5165943.06
A15: 2021 | B15: ALECTRA UTILITIES CORPORATION | C15: GENERAL SERVICE EQUAL TO OR GREATER THAN 50 KW | D15: ENERSOURCE_GENERAL SERVICE 500 TO 4,999 KW | E15: ALECTRA UTILITIES CORPORATION_ENERSOURCE_GENERAL SERVICE 500 TO 4,999 KW SERVICE CLASSIFICATION | F15: ALECTRA UTILITIES CORPORATION_ENERSOURCE_GENERAL SERVICE 500 TO 4,999 KW SERVICE CLASSIFICATION | G15: 392027781 | H15: 883453 | I15: 144465619 | J15: 337786.83 | K15: 1356863316 | L15: 3079243.18 | M15: 13813153 | N15: 26926.89062 | O15: 0 | P15: 0 | Q15: 1515142088 | R15: 3443956.9 | S15: 1907169869 | T15: 4327409.9
A16: 2021 | B16: ALECTRA UTILITIES CORPORATION | C16: GENERAL SERVICE EQUAL TO OR GREATER THAN 50 KW | D16: GENERAL SERVICE 1,000 TO 4,999 KW - GUELPH HYDRO | E16: ALECTRA UTILITIES CORPORATION_GENERAL SERVICE 1,000 TO 4,999 KW - GUELPH HYDRO SERVICE CLASSIFICATION | F16: ALECTRA UTILITIES CORPORATION_GENERAL SERVICE 1,000 TO 4,999 KW - GUELPH HYDRO SERVICE CLASSIFICATION | G16: 20465146 | H16: 37614 | I16: 0 | J16: 0 | K16: 410071086 | L16: 953835.95 | M16: 38484.03906 | N16: 154.7400055 | O16: 0 | P16: 0 | Q16: 410109570 | R16: 953990.69 | S16: 430574716 | T16: 991604.69
A17: 2021 | B17: ALECTRA UTILITIES CORPORATION | C17: GENERAL SERVICE EQUAL TO OR GREATER THAN 50 KW | D17: GENERAL SERVICE 50 TO 999 KW - GUELPH HYDRO | E17: ALECTRA UTILITIES CORPORATION_GENERAL SERVICE 50 TO 999 KW - GUELPH HYDRO SERVICE CLASSIFICATION | F17: ALECTRA UTILITIES CORPORATION_GENERAL SERVICE 50 TO 999 KW - GUELPH HYDRO SERVICE CLASSIFICATION | G17: 60983527 | H17: 175839 | I17: 52017282.7 | J17: 141558.8 | K17: 240540618.8 | L17: 663151.7 | M17: 5820228.5 | N17: 12473.45996 | O17: 0 | P17: 0 | Q17: 298378129.8 | R17: 817183.96 | S17: 359361656.8 | T17: 993022.96
A18: 2021 | B18: ALECTRA UTILITIES CORPORATION | C18: GENERAL SERVICE EQUAL TO OR GREATER THAN 50 KW | D18: HORIZON_GENERAL SERVICE 50 TO 4,999 KW | E18: ALECTRA UTILITIES CORPORATION_HORIZON_GENERAL SERVICE 50 TO 4,999 KW SERVICE CLASSIFICATION | F18: ALECTRA UTILITIES CORPORATION_HORIZON_GENERAL SERVICE 50 TO 4,999 KW SERVICE CLASSIFICATION | G18: 215232054 | H18: 611688 | I18: 196062262.4 | J18: 533608.22 | K18: 1292576212 | L18: 3575714.93 | M18: 9369961 | N18: 17309.23047 | O18: 0 | P18: 0 | Q18: 1498008435 | R18: 4126632.38 | S18: 1713240489 | T18: 4738320.38
A19: 2021 | B19: ALECTRA UTILITIES CORPORATION | C19: GENERAL SERVICE EQUAL TO OR GREATER THAN 50 KW | D19: HYDRO ONE BRAMPTON_ENERGY FROM WASTE | E19: ALECTRA UTILITIES CORPORATION_HYDRO ONE BRAMPTON_ENERGY FROM WASTE SERVICE CLASSIFICATION | F19: ALECTRA UTILITIES CORPORATION_HYDRO ONE BRAMPTON_ENERGY FROM WASTE SERVICE CLASSIFICATION | G19: 0 | H19: 0 | I19: 0 | J19: 0 | K19: 0 | L19: 0 | M19: 0 | N19: 0 | O19: 0 | P19: 0 | Q19: 0 | R19: 0 | S19: 0 | T19: 0
A20: 2021 | B20: ALECTRA UTILITIES CORPORATION | C20: GENERAL SERVICE EQUAL TO OR GREATER THAN 50 KW | D20: HYDRO ONE BRAMPTON_GENERAL SERVICE 50 TO 699 KW | E20: ALECTRA UTILITIES CORPORATION_HYDRO ONE BRAMPTON_GENERAL SERVICE 50 TO 699 KW SERVICE CLASSIFICATION | F20: ALECTRA UTILITIES CORPORATION_HYDRO ONE BRAMPTON_GENERAL SERVICE 50 TO 699 KW SERVICE CLASSIFICATION | G20: 154134849 | H20: 432672 | I20: 134794024.9 | J20: 386097.94 | K20: 753476801.6 | L20: 2158225.06 | M20: 3522828.25 | N20: 18612.90039 | O20: 0 | P20: 0 | Q20: 891793654.7 | R20: 2562935.9 | S20: 1045928504 | T20: 2995607.9
A21: 2021 | B21: ALECTRA UTILITIES CORPORATION | C21: GENERAL SERVICE EQUAL TO OR GREATER THAN 50 KW | D21: HYDRO ONE BRAMPTON_GENERAL SERVICE 700 TO 4,999 KW | E21: ALECTRA UTILITIES CORPORATION_HYDRO ONE BRAMPTON_GENERAL SERVICE 700 TO 4,999 KW SERVICE CLASSIFICATION | F21: ALECTRA UTILITIES CORPORATION_HYDRO ONE BRAMPTON_GENERAL SERVICE 700 TO 4,999 KW SERVICE CLASSIFICATION | G21: 140189918 | H21: 363997 | I21: 3360250.98 | J21: 8013.68 | K21: 583665590.1 | L21: 1391951.87 | M21: 63728888 | N21: 111373.0781 | O21: 0 | P21: 0 | Q21: 650754727.7 | R21: 1511338.63 | S21: 790944645.7 | T21: 1875335.63
A22: 2021 | B22: ALECTRA UTILITIES CORPORATION | C22: GENERAL SERVICE EQUAL TO OR GREATER THAN 50 KW | D22: POWERSTREAM_GENERAL SERVICE 50 TO 4,999 KW | E22: ALECTRA UTILITIES CORPORATION_POWERSTREAM_GENERAL SERVICE 50 TO 4,999 KW SERVICE CLASSIFICATION | F22: ALECTRA UTILITIES CORPORATION_POWERSTREAM_GENERAL SERVICE 50 TO 4,999 KW SERVICE CLASSIFICATION | G22: 502056911 | H22: 1455832 | I22: 331221320.1 | J22: 912338.95 | K22: 3539415466 | L22: 9502236.64 | M22: 30900444 | N22: 76058.27344 | O22: 0 | P22: 0 | Q22: 3901537230 | R22: 10490633.86 | S22: 4403594141 | T22: 11946465.86
A23: 2021 | B23: ALECTRA UTILITIES CORPORATION | C23: GENERAL SERVICE LESS THAN 50 KW | D23: ENERSOURCE_GENERAL SERVICE LESS THAN 50 KW | E23: ALECTRA UTILITIES CORPORATION_ENERSOURCE_GENERAL SERVICE LESS THAN 50 KW SERVICE CLASSIFICATION | F23: ALECTRA UTILITIES CORPORATION_ENERSOURCE_GENERAL SERVICE LESS THAN 50 KW SERVICE CLASSIFICATION | G23: 87757153 | H23: 0 | I23: 537048760.1 | J23: 0 | K23: 0 | L23: 0 | M23: 0 | N23: 0 | O23: 0 | P23: 0 | Q23: 537048760.1 | R23: 0 | S23: 624805913.1 | T23: 0
A24: 2021 | B24: ALECTRA UTILITIES CORPORATION | C24: GENERAL SERVICE LESS THAN 50 KW | D24: GENERAL SERVICE LESS THAN 50 KW - GUELPH HYDRO | E24: ALECTRA UTILITIES CORPORATION_GENERAL SERVICE LESS THAN 50 KW - GUELPH HYDRO SERVICE CLASSIFICATION | F24: ALECTRA UTILITIES CORPORATION_GENERAL SERVICE LESS THAN 50 KW - GUELPH HYDRO SERVICE CLASSIFICATION | G24: 22032319 | H24: 0 | I24: 101878547.9 | J24: 0 | K24: 0 | L24: 0 | M24: 0 | N24: 0 | O24: 0 | P24: 0 | Q24: 101878547.9 | R24: 0 | S24: 123910866.9 | T24: 0
A25: 2021 | B25: ALECTRA UTILITIES CORPORATION | C25: GENERAL SERVICE LESS THAN 50 KW | D25: HORIZON_GENERAL SERVICE LESS THAN 50 KW | E25: ALECTRA UTILITIES CORPORATION_HORIZON_GENERAL SERVICE LESS THAN 50 KW SERVICE CLASSIFICATION | F25: ALECTRA UTILITIES CORPORATION_HORIZON_GENERAL SERVICE LESS THAN 50 KW SERVICE CLASSIFICATION | G25: 86252018 | H25: 0 | I25: 452844458.6 | J25: 0 | K25: 1708489.09 | L25: 0 | M25: 0 | N25: 0 | O25: 0 | P25: 0 | Q25: 454552947.7 | R25: 0 | S25: 540804965.7 | T25: 0
A26: 2021 | B26: ALECTRA UTILITIES CORPORATION | C26: GENERAL SERVICE LESS THAN 50 KW | D26: HYDRO ONE BRAMPTON_DISTRIBUTED GENERATION - DGEN | E26: ALECTRA UTILITIES CORPORATION_HYDRO ONE BRAMPTON_DISTRIBUTED GENERATION - DGEN SERVICE CLASSIFICATION | F26: ALECTRA UTILITIES CORPORATION_HYDRO ONE BRAMPTON_DISTRIBUTED GENERATION - DGEN SERVICE CLASSIFICATION | G26: 0 | H26: 0 | I26: 0 | J26: 0 | K26: 299139.35 | L26: 0 | M26: 0 | N26: 0 | O26: 0 | P26: 0 | Q26: 299139.35 | R26: 0 | S26: 299139.35 | T26: 0
A27: 2021 | B27: ALECTRA UTILITIES CORPORATION | C27: GENERAL SERVICE LESS THAN 50 KW | D27: HYDRO ONE BRAMPTON_GENERAL SERVICE LESS THAN 50 KW | E27: ALECTRA UTILITIES CORPORATION_HYDRO ONE BRAMPTON_GENERAL SERVICE LESS THAN 50 KW SERVICE CLASSIFICATION | F27: ALECTRA UTILITIES CORPORATION_HYDRO ONE BRAMPTON_GENERAL SERVICE LESS THAN 50 KW SERVICE CLASSIFICATION | G27: 56131241 | H27: 0 | I27: 265146833.7 | J27: 0 | K27: 0 | L27: 0 | M27: 0 | N27: 0 | O27: 0 | P27: 0 | Q27: 265146833.7 | R27: 0 | S27: 321278074.7 | T27: 0
A28: 2021 | B28: ALECTRA UTILITIES CORPORATION | C28: GENERAL SERVICE LESS THAN 50 KW | D28: POWERSTREAM_GENERAL SERVICE LESS THAN 50 KW | E28: ALECTRA UTILITIES CORPORATION_POWERSTREAM_GENERAL SERVICE LESS THAN 50 KW SERVICE CLASSIFICATION | F28: ALECTRA UTILITIES CORPORATION_POWERSTREAM_GENERAL SERVICE LESS THAN 50 KW SERVICE CLASSIFICATION | G28: 120355879 | H28: 0 | I28: 824515459.4 | J28: 0 | K28: 4495962.82 | L28: 0 | M28: 0 | N28: 0 | O28: 0 | P28: 0 | Q28: 829011422.2 | R28: 0 | S28: 949367301.2 | T28: 0
A29: 2021 | B29: ALECTRA UTILITIES CORPORATION | C29: LARGE USER | D29: ENERSOURCE_LARGE USE | E29: ALECTRA UTILITIES CORPORATION_ENERSOURCE_LARGE USE SERVICE CLASSIFICATION | F29: ALECTRA UTILITIES CORPORATION_ENERSOURCE_LARGE USE SERVICE CLASSIFICATION | G29: 139200955 | H29: 254151 | I29: 0 | J29: 0 | K29: 825229633.6 | L29: 1418844.52 | M29: 0 | N29: 0 | O29: 0 | P29: 0 | Q29: 825229633.6 | R29: 1418844.52 | S29: 964430588.6 | T29: 1672995.52
A30: 2021 | B30: ALECTRA UTILITIES CORPORATION | C30: LARGE USER | D30: HORIZON_LARGE USE | E30: ALECTRA UTILITIES CORPORATION_HORIZON_LARGE USE SERVICE CLASSIFICATION | F30: ALECTRA UTILITIES CORPORATION_HORIZON_LARGE USE SERVICE CLASSIFICATION | G30: 29298174 | H30: 70465 | I30: 0 | J30: 0 | K30: 158534626.4 | L30: 262106.16 | M30: 0 | N30: 0 | O30: 0 | P30: 0 | Q30: 158534626.4 | R30: 262106.16 | S30: 187832800.4 | T30: 332571.16
A31: 2021 | B31: ALECTRA UTILITIES CORPORATION | C31: LARGE USER | D31: HORIZON_LARGE USE WITH DEDICATED ASSETS | E31: ALECTRA UTILITIES CORPORATION_HORIZON_LARGE USE WITH DEDICATED ASSETS SERVICE CLASSIFICATION | F31: ALECTRA UTILITIES CORPORATION_HORIZON_LARGE USE WITH DEDICATED ASSETS SERVICE CLASSIFICATION | G31: 0 | H31: 0 | I31: 0 | J31: 0 | K31: 291341686.2 | L31: 650244.2 | M31: 699813376 | N31: 1132057 | O31: 0 | P31: 0 | Q31: 991155088.2 | R31: 1782301.19 | S31: 991155088.2 | T31: 1782301.19
A32: 2021 | B32: ALECTRA UTILITIES CORPORATION | C32: LARGE USER | D32: HYDRO ONE BRAMPTON_LARGE USE | E32: ALECTRA UTILITIES CORPORATION_HYDRO ONE BRAMPTON_LARGE USE SERVICE CLASSIFICATION | F32: ALECTRA UTILITIES CORPORATION_HYDRO ONE BRAMPTON_LARGE USE SERVICE CLASSIFICATION | G32: 34031248 | H32: 60576 | I32: 0 | J32: 0 | K32: 296938521.4 | L32: 561282.92 | M32: 0 | N32: 0 | O32: 0 | P32: 0 | Q32: 296938521.4 | R32: 561282.92 | S32: 330969769.4 | T32: 621858.92
A33: 2021 | B33: ALECTRA UTILITIES CORPORATION | C33: LARGE USER | D33: LARGE USE - GUELPH HYDRO | E33: ALECTRA UTILITIES CORPORATION_LARGE USE - GUELPH HYDRO SERVICE CLASSIFICATION | F33: ALECTRA UTILITIES CORPORATION_LARGE USE - GUELPH HYDRO SERVICE CLASSIFICATION | G33: 0 | H33: 0 | I33: 0 | J33: 0 | K33: 215971624 | L33: 449799.15 | M33: 0 | N33: 0 | O33: 0 | P33: 0 | Q33: 215971624 | R33: 449799.15 | S33: 215971624 | T33: 449799.15
A34: 2021 | B34: ALECTRA UTILITIES CORPORATION | C34: LARGE USER | D34: POWERSTREAM_LARGE USE | E34: ALECTRA UTILITIES CORPORATION_POWERSTREAM_LARGE USE SERVICE CLASSIFICATION | F34: ALECTRA UTILITIES CORPORATION_POWERSTREAM_LARGE USE SERVICE CLASSIFICATION | G34: 0 | H34: 0 | I34: 0 | J34: 0 | K34: 71050346.57 | L34: 122613.72 | M34: 0 | N34: 0 | O34: 0 | P34: 0 | Q34: 71050346.57 | R34: 122613.72 | S34: 71050346.57 | T34: 122613.72
A35: 2021 | B35: ALECTRA UTILITIES CORPORATION | C35: NO RATE CLASS | D35: NO RATE CLASS | E35: ALECTRA UTILITIES CORPORATION_NO RATE CLASS SERVICE CLASSIFICATION | F35: ALECTRA UTILITIES CORPORATION_NO RATE CLASS SERVICE CLASSIFICATION | G35: 0 | H35: 0 | I35: 0 | J35: 0 | K35: 0 | L35: 0 | M35: 0 | N35: 0 | O35: 5946341376 | P35: 12262885 | Q35: 0 | R35: 0 | S35: 0 | T35: 0
A36: 2021 | B36: ALECTRA UTILITIES CORPORATION | C36: RESIDENTIAL | D36: ENERSOURCE_RESIDENTIAL | E36: ALECTRA UTILITIES CORPORATION_ENERSOURCE_RESIDENTIAL SERVICE CLASSIFICATION | F36: ALECTRA UTILITIES CORPORATION_ENERSOURCE_RESIDENTIAL SERVICE CLASSIFICATION | G36: 31288955 | H36: 0 | I36: 1548581401 | J36: 0 | K36: 0 | L36: 0 | M36: 0 | N36: 0 | O36: 0 | P36: 0 | Q36: 1548581401 | R36: 0 | S36: 1579870356 | T36: 0
A37: 2021 | B37: ALECTRA UTILITIES CORPORATION | C37: RESIDENTIAL | D37: HORIZON_RESIDENTIAL | E37: ALECTRA UTILITIES CORPORATION_HORIZON_RESIDENTIAL SERVICE CLASSIFICATION | F37: ALECTRA UTILITIES CORPORATION_HORIZON_RESIDENTIAL SERVICE CLASSIFICATION | G37: 39327078 | H37: 0 | I37: 1709513537 | J37: 0 | K37: 0 | L37: 0 | M37: 0 | N37: 0 | O37: 0 | P37: 0 | Q37: 1709513537 | R37: 0 | S37: 1748840615 | T37: 0
A38: 2021 | B38: ALECTRA UTILITIES CORPORATION | C38: RESIDENTIAL | D38: HYDRO ONE BRAMPTON_RESIDENTIAL | E38: ALECTRA UTILITIES CORPORATION_HYDRO ONE BRAMPTON_RESIDENTIAL SERVICE CLASSIFICATION | F38: ALECTRA UTILITIES CORPORATION_HYDRO ONE BRAMPTON_RESIDENTIAL SERVICE CLASSIFICATION | G38: 35344797 | H38: 0 | I38: 1468144661 | J38: 0 | K38: 0 | L38: 0 | M38: 0 | N38: 0 | O38: 0 | P38: 0 | Q38: 1468144661 | R38: 0 | S38: 1503489458 | T38: 0
A39: 2021 | B39: ALECTRA UTILITIES CORPORATION | C39: RESIDENTIAL | D39: POWERSTREAM_RESIDENTIAL | E39: ALECTRA UTILITIES CORPORATION_POWERSTREAM_RESIDENTIAL SERVICE CLASSIFICATION | F39: ALECTRA UTILITIES CORPORATION_POWERSTREAM_RESIDENTIAL SERVICE CLASSIFICATION | G39: 54748346 | H39: 0 | I39: 2936278910 | J39: 0 | K39: 0 | L39: 0 | M39: 0 | N39: 0 | O39: 0 | P39: 0 | Q39: 2936278910 | R39: 0 | S39: 2991027256 | T39: 0
A40: 2021 | B40: ALECTRA UTILITIES CORPORATION | C40: RESIDENTIAL | D40: RESIDENTIAL - GUELPH HYDRO | E40: ALECTRA UTILITIES CORPORATION_RESIDENTIAL - GUELPH HYDRO SERVICE CLASSIFICATION | F40: ALECTRA UTILITIES CORPORATION_RESIDENTIAL - GUELPH HYDRO SERVICE CLASSIFICATION | G40: 7693533 | H40: 0 | I40: 393587103.8 | J40: 0 | K40: 0 | L40: 0 | M40: 0 | N40: 0 | O40: 0 | P40: 0 | Q40: 393587103.8 | R40: 0 | S40: 401280636.8 | T40: 0
A41: 2021 | B41: ALECTRA UTILITIES CORPORATION | C41: SENTINEL LIGHTING CONNECTIONS | D41: HORIZON_SENTINEL LIGHTING | E41: ALECTRA UTILITIES CORPORATION_HORIZON_SENTINEL LIGHTING SERVICE CLASSIFICATION | F41: ALECTRA UTILITIES CORPORATION_HORIZON_SENTINEL LIGHTING SERVICE CLASSIFICATION | G41: 4573 | H41: 11 | I41: 334151.73 | J41: 838.39 | K41: 66340.07 | L41: 166.45 | M41: 0 | N41: 0 | O41: 0 | P41: 0 | Q41: 400491.8 | R41: 1004.84 | S41: 405064.8 | T41: 1015.84
A42: 2021 | B42: ALECTRA UTILITIES CORPORATION | C42: SENTINEL LIGHTING CONNECTIONS | D42: POWERSTREAM_SENTINEL LIGHTING | E42: ALECTRA UTILITIES CORPORATION_POWERSTREAM_SENTINEL LIGHTING SERVICE CLASSIFICATION | F42: ALECTRA UTILITIES CORPORATION_POWERSTREAM_SENTINEL LIGHTING SERVICE CLASSIFICATION | G42: 8502 | H42: 11 | I42: 239019.8 | J42: 688.3 | K42: 20985.49 | L42: 27.97 | M42: 0 | N42: 0 | O42: 0 | P42: 0 | Q42: 260005.29 | R42: 716.27 | S42: 268507.29 | T42: 727.27
A43: 2021 | B43: ALECTRA UTILITIES CORPORATION | C43: SENTINEL LIGHTING CONNECTIONS | D43: SENTINEL LIGHTING - GUELPH HYDRO | E43: ALECTRA UTILITIES CORPORATION_SENTINEL LIGHTING - GUELPH HYDRO SERVICE CLASSIFICATION | F43: ALECTRA UTILITIES CORPORATION_SENTINEL LIGHTING - GUELPH HYDRO SERVICE CLASSIFICATION | G43: 0 | H43: 0 | I43: 18007.1 | J43: 50.25 | K43: 0 | L43: 0 | M43: 0 | N43: 0 | O43: 0 | P43: 0 | Q43: 18007.1 | R43: 50.25 | S43: 18007.1 | T43: 50.25
A44: 2021 | B44: ALECTRA UTILITIES CORPORATION | C44: STREET LIGHTING CONNECTIONS | D44: ENERSOURCE_STREET LIGHTING | E44: ALECTRA UTILITIES CORPORATION_ENERSOURCE_STREET LIGHTING SERVICE CLASSIFICATION | F44: ALECTRA UTILITIES CORPORATION_ENERSOURCE_STREET LIGHTING SERVICE CLASSIFICATION | G44: 0 | H44: 0 | I44: 0 | J44: 0 | K44: 13842866.6 | L44: 38254.29 | M44: 0 | N44: 0 | O44: 0 | P44: 0 | Q44: 13842866.6 | R44: 38254.29 | S44: 13842866.6 | T44: 38254.29
A45: 2021 | B45: ALECTRA UTILITIES CORPORATION | C45: STREET LIGHTING CONNECTIONS | D45: HORIZON_STREET LIGHTING | E45: ALECTRA UTILITIES CORPORATION_HORIZON_STREET LIGHTING SERVICE CLASSIFICATION | F45: ALECTRA UTILITIES CORPORATION_HORIZON_STREET LIGHTING SERVICE CLASSIFICATION | G45: 0 | H45: 0 | I45: 226280.96 | J45: 638.91 | K45: 16670620.75 | L45: 47069.58 | M45: 0 | N45: 0 | O45: 0 | P45: 0 | Q45: 16896901.71 | R45: 47708.49 | S45: 16896901.71 | T45: 47708.49
A46: 2021 | B46: ALECTRA UTILITIES CORPORATION | C46: STREET LIGHTING CONNECTIONS | D46: HYDRO ONE BRAMPTON_STREET LIGHTING | E46: ALECTRA UTILITIES CORPORATION_HYDRO ONE BRAMPTON_STREET LIGHTING SERVICE CLASSIFICATION | F46: ALECTRA UTILITIES CORPORATION_HYDRO ONE BRAMPTON_STREET LIGHTING SERVICE CLASSIFICATION | G46: 0 | H46: 0 | I46: 0 | J46: 0 | K46: 24263115.06 | L46: 68623.87 | M46: 0 | N46: 0 | O46: 0 | P46: 0 | Q46: 24263115.06 | R46: 68623.87 | S46: 24263115.06 | T46: 68623.87
A47: 2021 | B47: ALECTRA UTILITIES CORPORATION | C47: STREET LIGHTING CONNECTIONS | D47: POWERSTREAM_STREET LIGHTING | E47: ALECTRA UTILITIES CORPORATION_POWERSTREAM_STREET LIGHTING SERVICE CLASSIFICATION | F47: ALECTRA UTILITIES CORPORATION_POWERSTREAM_STREET LIGHTING SERVICE CLASSIFICATION | G47: 327537 | H47: 889 | I47: 633105.42 | J47: 1792.71 | K47: 47003218.9 | L47: 130244.95 | M47: 0 | N47: 0 | O47: 0 | P47: 0 | Q47: 47636324.32 | R47: 132037.66 | S47: 47963861.32 | T47: 132926.66
A48: 2021 | B48: ALECTRA UTILITIES CORPORATION | C48: STREET LIGHTING CONNECTIONS | D48: STREET LIGHTING - GUELPH HYDRO | E48: ALECTRA UTILITIES CORPORATION_STREET LIGHTING - GUELPH HYDRO SERVICE CLASSIFICATION | F48: ALECTRA UTILITIES CORPORATION_STREET LIGHTING - GUELPH HYDRO SERVICE CLASSIFICATION | G48: 169796 | H48: 462 | I48: 0 | J48: 0 | K48: 4800520.99 | L48: 13113.88 | M48: 0 | N48: 0 | O48: 0 | P48: 0 | Q48: 4800520.99 | R48: 13113.88 | S48: 4970316.99 | T48: 13575.88
A49: 2021 | B49: ALECTRA UTILITIES CORPORATION | C49: UNMETERED SCATTERED LOAD CONNECTIONS | D49: ENERSOURCE_UNMETERED SCATTERED LOAD | E49: ALECTRA UTILITIES CORPORATION_ENERSOURCE_UNMETERED SCATTERED LOAD SERVICE CLASSIFICATION | F49: ALECTRA UTILITIES CORPORATION_ENERSOURCE_UNMETERED SCATTERED LOAD SERVICE CLASSIFICATION | G49: 466752 | H49: 0 | I49: 10834601.04 | J49: 0 | K49: 0 | L49: 0 | M49: 0 | N49: 0 | O49: 0 | P49: 0 | Q49: 10834601.04 | R49: 0 | S49: 11301353.04 | T49: 0
A50: 2021 | B50: ALECTRA UTILITIES CORPORATION | C50: UNMETERED SCATTERED LOAD CONNECTIONS | D50: HORIZON_UNMETERED SCATTERED LOAD | E50: ALECTRA UTILITIES CORPORATION_HORIZON_UNMETERED SCATTERED LOAD SERVICE CLASSIFICATION | F50: ALECTRA UTILITIES CORPORATION_HORIZON_UNMETERED SCATTERED LOAD SERVICE CLASSIFICATION | G50: 1386242 | H50: 0 | I50: 9809496.87 | J50: 0 | K50: 0 | L50: 0 | M50: 0 | N50: 0 | O50: 0 | P50: 0 | Q50: 9809496.87 | R50: 0 | S50: 11195738.87 | T50: 0
A51: 2021 | B51: ALECTRA UTILITIES CORPORATION | C51: UNMETERED SCATTERED LOAD CONNECTIONS | D51: HYDRO ONE BRAMPTON_UNMETERED SCATTERED LOAD | E51: ALECTRA UTILITIES CORPORATION_HYDRO ONE BRAMPTON_UNMETERED SCATTERED LOAD SERVICE CLASSIFICATION | F51: ALECTRA UTILITIES CORPORATION_HYDRO ONE BRAMPTON_UNMETERED SCATTERED LOAD SERVICE CLASSIFICATION | G51: 464219 | H51: 0 | I51: 5625101.35 | J51: 0 | K51: 0 | L51: 0 | M51: 0 | N51: 0 | O51: 0 | P51: 0 | Q51: 5625101.35 | R51: 0 | S51: 6089320.35 | T51: 0
A52: 2021 | B52: ALECTRA UTILITIES CORPORATION | C52: UNMETERED SCATTERED LOAD CONNECTIONS | D52: POWERSTREAM_UNMETERED SCATTERED LOAD | E52: ALECTRA UTILITIES CORPORATION_POWERSTREAM_UNMETERED SCATTERED LOAD SERVICE CLASSIFICATION | F52: ALECTRA UTILITIES CORPORATION_POWERSTREAM_UNMETERED SCATTERED LOAD SERVICE CLASSIFICATION | G52: 223030 | H52: 0 | I52: 13737611.4 | J52: 0 | K52: 0 | L52: 0 | M52: 0 | N52: 0 | O52: 0 | P52: 0 | Q52: 13737611.4 | R52: 0 | S52: 13960641.4 | T52: 0
A53: 2021 | B53: ALECTRA UTILITIES CORPORATION | C53: UNMETERED SCATTERED LOAD CONNECTIONS | D53: UNMETERED SCATTERED LOAD - GUELPH HYDRO | E53: ALECTRA UTILITIES CORPORATION_UNMETERED SCATTERED LOAD - GUELPH HYDRO SERVICE CLASSIFICATION | F53: ALECTRA UTILITIES CORPORATION_UNMETERED SCATTERED LOAD - GUELPH HYDRO SERVICE CLASSIFICATION | G53: 376530 | H53: 0 | I53: 1517362.19 | J53: 0 | K53: 0 | L53: 0 | M53: 0 | N53: 0 | O53: 0 | P53: 0 | Q53: 1517362.19 | R53: 0 | S53: 1893892.19 | T53: 0
A54: 2021 | B54: ALGOMA POWER INC. | C54: GENERAL SERVICE EQUAL TO OR GREATER THAN 50 KW | D54: RESIDENTIAL - R2 | E54: ALGOMA POWER INC._RESIDENTIAL - R2 SERVICE CLASSIFICATION | F54: ALGOMA POWER INC._RESIDENTIAL - R2 SERVICE CLASSIFICATION | G54: 3762926.89 | H54: 9840 | I54: 3842564.95 | J54: 13674.34 | K54: 95791433.47 | L54: 209382.23 | M54: 0 | N54: 0 | O54: 0 | P54: 0 | Q54: 99633998.42 | R54: 223056.57 | S54: 103396925.3 | T54: 232896.94
A55: 2021 | B55: ALGOMA POWER INC. | C55: NO RATE CLASS | D55: NO RATE CLASS | E55: ALGOMA POWER INC._NO RATE CLASS SERVICE CLASSIFICATION | F55: ALGOMA POWER INC._NO RATE CLASS SERVICE CLASSIFICATION | G55: 0 | H55: 0 | I55: 0 | J55: 0 | K55: 0 | L55: 0 | M55: 0 | N55: 0 | O55: 78703752 | P55: 147690.2188 | Q55: 0 | R55: 0 | S55: 0 | T55: 0
A56: 2021 | B56: ALGOMA POWER INC. | C56: RESIDENTIAL | D56: RESIDENTIAL - R1 | E56: ALGOMA POWER INC._RESIDENTIAL - R1 SERVICE CLASSIFICATION | F56: ALGOMA POWER INC._RESIDENTIAL - R1 SERVICE CLASSIFICATION | G56: 3398941.09 | H56: 0 | I56: 115222508.6 | J56: 0 | K56: 0 | L56: 0 | M56: 0 | N56: 0 | O56: 0 | P56: 0 | Q56: 115222508.6 | R56: 0 | S56: 118621449.7 | T56: 0
A57: 2021 | B57: ALGOMA POWER INC. | C57: RESIDENTIAL | D57: RESIDENTIAL - SEASONAL | E57: ALGOMA POWER INC._RESIDENTIAL - SEASONAL SERVICE CLASSIFICATION | F57: ALGOMA POWER INC._RESIDENTIAL - SEASONAL SERVICE CLASSIFICATION | G57: 25769.97 | H57: 0 | I57: 6503492.79 | J57: 0 | K57: 0 | L57: 0 | M57: 0 | N57: 0 | O57: 0 | P57: 0 | Q57: 6503492.79 | R57: 0 | S57: 6529262.76 | T57: 0
A58: 2021 | B58: ALGOMA POWER INC. | C58: STREET LIGHTING CONNECTIONS | D58: STREET LIGHTING | E58: ALGOMA POWER INC._STREET LIGHTING SERVICE CLASSIFICATION | F58: ALGOMA POWER INC._STREET LIGHTING SERVICE CLASSIFICATION | G58: 126759.1 | H58: 0 | I58: 0 | J58: 0 | K58: 465823 | L58: 1643 | M58: 0 | N58: 0 | O58: 0 | P58: 0 | Q58: 465823 | R58: 1643 | S58: 592582.1 | T58: 1643
A59: 2021 | B59: ATIKOKAN HYDRO INC. | C59: GENERAL SERVICE EQUAL TO OR GREATER THAN 50 KW | D59: GENERAL SERVICE 50 TO 4,999 KW | E59: ATIKOKAN HYDRO INC._GENERAL SERVICE 50 TO 4,999 KW SERVICE CLASSIFICATION | F59: ATIKOKAN HYDRO INC._GENERAL SERVICE 50 TO 4,999 KW SERVICE CLASSIFICATION | G59: 1000160 | H59: 2121 | I59: 0 | J59: 0 | K59: 15578203.1 | L59: 45048.48 | M59: 0 | N59: 0 | O59: 0 | P59: 0 | Q59: 15578203.1 | R59: 45048.48 | S59: 16578363.1 | T59: 47169.92
A60: 2021 | B60: ATIKOKAN HYDRO INC. | C60: GENERAL SERVICE LESS THAN 50 KW | D60: GENERAL SERVICE LESS THAN 50 KW | E60: ATIKOKAN HYDRO INC._GENERAL SERVICE LESS THAN 50 KW SERVICE CLASSIFICATION | F60: ATIKOKAN HYDRO INC._GENERAL SERVICE LESS THAN 50 KW SERVICE CLASSIFICATION | G60: 66150.93 | H60: 0 | I60: 4185355.38 | J60: 0 | K60: 0 | L60: 0 | M60: 0 | N60: 0 | O60: 0 | P60: 0 | Q60: 4185355.38 | R60: 0 | S60: 4251506.31 | T60: 0
A61: 2021 | B61: ATIKOKAN HYDRO INC. | C61: NO RATE CLASS | D61: NO RATE CLASS | E61: ATIKOKAN HYDRO INC._NO RATE CLASS SERVICE CLASSIFICATION | F61: ATIKOKAN HYDRO INC._NO RATE CLASS SERVICE CLASSIFICATION | G61: 0 | H61: 0 | I61: 0 | J61: 0 | K61: 0 | L61: 0 | M61: 0 | N61: 0 | O61: 11196734 | P61: 35416.67188 | Q61: 0 | R61: 0 | S61: 0 | T61: 0
A62: 2021 | B62: ATIKOKAN HYDRO INC. | C62: RESIDENTIAL | D62: RESIDENTIAL | E62: ATIKOKAN HYDRO INC._RESIDENTIAL SERVICE CLASSIFICATION | F62: ATIKOKAN HYDRO INC._RESIDENTIAL SERVICE CLASSIFICATION | G62: 21682 | H62: 0 | I62: 9240627.1 | J62: 0 | K62: 0 | L62: 0 | M62: 0 | N62: 0 | O62: 0 | P62: 0 | Q62: 9240627.1 | R62: 0 | S62: 9262309.1 | T62: 0
A63: 2021 | B63: ATIKOKAN HYDRO INC. | C63: STREET LIGHTING CONNECTIONS | D63: STREET LIGHTING | E63: ATIKOKAN HYDRO INC._STREET LIGHTING SERVICE CLASSIFICATION | F63: ATIKOKAN HYDRO INC._STREET LIGHTING SERVICE CLASSIFICATION | G63: 0 | H63: 0 | I63: 0 | J63: 0 | K63: 405749.4 | L63: 1253.28 | M63: 0 | N63: 0 | O63: 0 | P63: 0 | Q63: 405749.4 | R63: 1253.28 | S63: 405749.4 | T63: 1253.28
A64: 2021 | B64: BLUEWATER POWER DISTRIBUTION CORPORATION | C64: GENERAL SERVICE EQUAL TO OR GREATER THAN 50 KW | D64: GENERAL SERVICE 1,000 TO 4,999 KW | E64: BLUEWATER POWER DISTRIBUTION CORPORATION_GENERAL SERVICE 1,000 TO 4,999 KW SERVICE CLASSIFICATION | F64: BLUEWATER POWER DISTRIBUTION CORPORATION_GENERAL SERVICE 1,000 TO 4,999 KW SERVICE CLASSIFICATION | G64: 0 | H64: 0 | I64: 0 | J64: 0 | K64: 121864255 | L64: 241408 | M64: 0 | N64: 0 | O64: 0 | P64: 0 | Q64: 121864255 | R64: 241408 | S64: 121864255 | T64: 241408
A65: 2021 | B65: BLUEWATER POWER DISTRIBUTION CORPORATION | C65: GENERAL SERVICE EQUAL TO OR GREATER THAN 50 KW | D65: GENERAL SERVICE 50 TO 999 KW | E65: BLUEWATER POWER DISTRIBUTION CORPORATION_GENERAL SERVICE 50 TO 999 KW SERVICE CLASSIFICATION | F65: BLUEWATER POWER DISTRIBUTION CORPORATION_GENERAL SERVICE 50 TO 999 KW SERVICE CLASSIFICATION | G65: 30758558 | H65: 98535 | I65: 41602010 | J65: 121280 | K65: 106149086 | L65: 283809 | M65: 4083594 | N65: 7776 | O65: 0 | P65: 0 | Q65: 151834690 | R65: 412865 | S65: 182593248 | T65: 511400
A66: 2021 | B66: BLUEWATER POWER DISTRIBUTION CORPORATION | C66: GENERAL SERVICE LESS THAN 50 KW | D66: GENERAL SERVICE LESS THAN 50 KW | E66: BLUEWATER POWER DISTRIBUTION CORPORATION_GENERAL SERVICE LESS THAN 50 KW SERVICE CLASSIFICATION | F66: BLUEWATER POWER DISTRIBUTION CORPORATION_GENERAL SERVICE LESS THAN 50 KW SERVICE CLASSIFICATION | G66: 15994136 | H66: 0 | I66: 78737963 | J66: 0 | K66: 88451 | L66: 0 | M66: 0 | N66: 0 | O66: 0 | P66: 0 | Q66: 78826414 | R66: 0 | S66: 94820550 | T66: 0
A67: 2021 | B67: BLUEWATER POWER DISTRIBUTION CORPORATION | C67: LARGE USER | D67: LARGE USE | E67: BLUEWATER POWER DISTRIBUTION CORPORATION_LARGE USE SERVICE CLASSIFICATION | F67: BLUEWATER POWER DISTRIBUTION CORPORATION_LARGE USE SERVICE CLASSIFICATION | G67: 0 | H67: 0 | I67: 0 | J67: 0 | K67: 175067525 | L67: 283327 | M67: 106137320 | N67: 178166 | O67: 0 | P67: 0 | Q67: 281204845 | R67: 461493 | S67: 281204845 | T67: 461493
A68: 2021 | B68: BLUEWATER POWER DISTRIBUTION CORPORATION | C68: NO RATE CLASS | D68: NO RATE CLASS | E68: BLUEWATER POWER DISTRIBUTION CORPORATION_NO RATE CLASS SERVICE CLASSIFICATION | F68: BLUEWATER POWER DISTRIBUTION CORPORATION_NO RATE CLASS SERVICE CLASSIFICATION | G68: 0 | H68: 0 | I68: 0 | J68: 0 | K68: 0 | L68: 0 | M68: 0 | N68: 0 | O68: 299485024 | P68: 530547 | Q68: 0 | R68: 0 | S68: 0 | T68: 0
A69: 2021 | B69: BLUEWATER POWER DISTRIBUTION CORPORATION | C69: RESIDENTIAL | D69: RESIDENTIAL | E69: BLUEWATER POWER DISTRIBUTION CORPORATION_RESIDENTIAL SERVICE CLASSIFICATION | F69: BLUEWATER POWER DISTRIBUTION CORPORATION_RESIDENTIAL SERVICE CLASSIFICATION | G69: 6585604 | H69: 0 | I69: 263752998 | J69: 0 | K69: 0 | L69: 0 | M69: 0 | N69: 0 | O69: 0 | P69: 0 | Q69: 263752998 | R69: 0 | S69: 270338602 | T69: 0
A70: 2021 | B70: BLUEWATER POWER DISTRIBUTION CORPORATION | C70: SENTINEL LIGHTING CONNECTIONS | D70: SENTINEL LIGHTING | E70: BLUEWATER POWER DISTRIBUTION CORPORATION_SENTINEL LIGHTING SERVICE CLASSIFICATION | F70: BLUEWATER POWER DISTRIBUTION CORPORATION_SENTINEL LIGHTING SERVICE CLASSIFICATION | G70: 31731 | H70: 87 | I70: 407376 | J70: 1109 | K70: 0 | L70: 0 | M70: 0 | N70: 0 | O70: 0 | P70: 0 | Q70: 407376 | R70: 1109 | S70: 439107 | T70: 1196
A71: 2021 | B71: BLUEWATER POWER DISTRIBUTION CORPORATION | C71: STREET LIGHTING CONNECTIONS | D71: STREET LIGHTING | E71: BLUEWATER POWER DISTRIBUTION CORPORATION_STREET LIGHTING SERVICE CLASSIFICATION | F71: BLUEWATER POWER DISTRIBUTION CORPORATION_STREET LIGHTING SERVICE CLASSIFICATION | G71: 0 | H71: 0 | I71: 0 | J71: 0 | K71: 3449208 | L71: 9569 | M71: 0 | N71: 0 | O71: 0 | P71: 0 | Q71: 3449208 | R71: 9569 | S71: 3449208 | T71: 9569
A72: 2021 | B72: BLUEWATER POWER DISTRIBUTION CORPORATION | C72: UNMETERED SCATTERED LOAD CONNECTIONS | D72: UNMETERED SCATTERED LOAD | E72: BLUEWATER POWER DISTRIBUTION CORPORATION_UNMETERED SCATTERED LOAD SERVICE CLASSIFICATION | F72: BLUEWATER POWER DISTRIBUTION CORPORATION_UNMETERED SCATTERED LOAD SERVICE CLASSIFICATION | G72: 331566 | H72: 0 | I72: 1877549 | J72: 0 | K72: 0 | L72: 0 | M72: 0 | N72: 0 | O72: 0 | P72: 0 | Q72: 1877549 | R72: 0 | S72: 2209115 | T72: 0
A73: 2021 | B73: BRANTFORD POWER INC. | C73: EMBEDDED DISTRIBUTOR(S) | D73: EMBEDDED DISTRIBUTOR | E73: BRANTFORD POWER INC._EMBEDDED DISTRIBUTOR SERVICE CLASSIFICATION | F73: BRANTFORD POWER INC._EMBEDDED DISTRIBUTOR SERVICE CLASSIFICATION | G73: 0 | H73: 0 | I73: 0 | J73: 0 | K73: 0 | L73: 0 | M73: 43029560 | N73: 100586.9219 | O73: 0 | P73: 0 | Q73: 43029561.79 | R73: 100586.92 | S73: 43029561.79 | T73: 100586.92
A74: 2021 | B74: BRANTFORD POWER INC. | C74: GENERAL SERVICE EQUAL TO OR GREATER THAN 50 KW | D74: GENERAL SERVICE 50 TO 4,999 KW | E74: BRANTFORD POWER INC._GENERAL SERVICE 50 TO 4,999 KW SERVICE CLASSIFICATION | F74: BRANTFORD POWER INC._GENERAL SERVICE 50 TO 4,999 KW SERVICE CLASSIFICATION | G74: 70949050.52 | H74: 223306 | I74: 29101030.51 | J74: 77246.29 | K74: 421437015.8 | L74: 1127584.4 | M74: 6029967.5 | N74: 11674.00977 | O74: 0 | P74: 0 | Q74: 456568013.9 | R74: 1216504.7 | S74: 527517064.4 | T74: 1439810.73
A75: 2021 | B75: BRANTFORD POWER INC. | C75: GENERAL SERVICE LESS THAN 50 KW | D75: GENERAL SERVICE LESS THAN 50 KW | E75: BRANTFORD POWER INC._GENERAL SERVICE LESS THAN 50 KW SERVICE CLASSIFICATION | F75: BRANTFORD POWER INC._GENERAL SERVICE LESS THAN 50 KW SERVICE CLASSIFICATION | G75: 14270845.27 | H75: 0 | I75: 72422683.33 | J75: 0 | K75: 533805.34 | L75: 0 | M75: 0 | N75: 0 | O75: 0 | P75: 0 | Q75: 72956488.67 | R75: 0 | S75: 87227333.94 | T75: 0
A76: 2021 | B76: BRANTFORD POWER INC. | C76: NO RATE CLASS | D76: NO RATE CLASS | E76: BRANTFORD POWER INC._NO RATE CLASS SERVICE CLASSIFICATION | F76: BRANTFORD POWER INC._NO RATE CLASS SERVICE CLASSIFICATION | G76: 0 | H76: 0 | I76: 0 | J76: 0 | K76: 0 | L76: 0 | M76: 0 | N76: 0 | O76: 208309024 | P76: 424940 | Q76: 0 | R76: 0 | S76: 0 | T76: 0
A77: 2021 | B77: BRANTFORD POWER INC. | C77: RESIDENTIAL | D77: RESIDENTIAL | E77: BRANTFORD POWER INC._RESIDENTIAL SERVICE CLASSIFICATION | F77: BRANTFORD POWER INC._RESIDENTIAL SERVICE CLASSIFICATION | G77: 7786314.84 | H77: 0 | I77: 307987822.8 | J77: 0 | K77: 0 | L77: 0 | M77: 0 | N77: 0 | O77: 0 | P77: 0 | Q77: 307987822.8 | R77: 0 | S77: 315774137.6 | T77: 0
A78: 2021 | B78: BRANTFORD POWER INC. | C78: SENTINEL LIGHTING CONNECTIONS | D78: SENTINEL LIGHTING | E78: BRANTFORD POWER INC._SENTINEL LIGHTING SERVICE CLASSIFICATION | F78: BRANTFORD POWER INC._SENTINEL LIGHTING SERVICE CLASSIFICATION | G78: 5959.86 | H78: 0 | I78: 181778.87 | J78: 554.29 | K78: 0 | L78: 0 | M78: 0 | N78: 0 | O78: 0 | P78: 0 | Q78: 181778.87 | R78: 554.29 | S78: 187738.73 | T78: 554.29
A79: 2021 | B79: BRANTFORD POWER INC. | C79: STREET LIGHTING CONNECTIONS | D79: STREET LIGHTING | E79: BRANTFORD POWER INC._STREET LIGHTING SERVICE CLASSIFICATION | F79: BRANTFORD POWER INC._STREET LIGHTING SERVICE CLASSIFICATION | G79: 0 | H79: 0 | I79: 0 | J79: 0 | K79: 6961906.84 | L79: 21543.26 | M79: 0 | N79: 0 | O79: 0 | P79: 0 | Q79: 6961906.84 | R79: 21543.26 | S79: 6961906.84 | T79: 21543.26
A80: 2021 | B80: BRANTFORD POWER INC. | C80: UNMETERED SCATTERED LOAD CONNECTIONS | D80: UNMETERED SCATTERED LOAD | E80: BRANTFORD POWER INC._UNMETERED SCATTERED LOAD SERVICE CLASSIFICATION | F80: BRANTFORD POWER INC._UNMETERED SCATTERED LOAD SERVICE CLASSIFICATION | G80: 0 | H80: 0 | I80: 1510015.92 | J80: 0 | K80: 0 | L80: 0 | M80: 0 | N80: 0 | O80: 0 | P80: 0 | Q80: 1510015.92 | R80: 0 | S80: 1510015.92 | T80: 0
A81: 2021 | B81: BURLINGTON HYDRO INC. | C81: GENERAL SERVICE EQUAL TO OR GREATER THAN 50 KW | D81: GENERAL SERVICE 50 TO 4,999 KW | E81: BURLINGTON HYDRO INC._GENERAL SERVICE 50 TO 4,999 KW SERVICE CLASSIFICATION | F81: BURLINGTON HYDRO INC._GENERAL SERVICE 50 TO 4,999 KW SERVICE CLASSIFICATION | G81: 96733417 | H81: 299098 | I81: 122091054 | J81: 334922 | K81: 568808477 | L81: 1549197 | M81: 0 | N81: 0 | O81: 0 | P81: 0 | Q81: 690899531 | R81: 1884119 | S81: 787632948 | T81: 2183217
A82: 2021 | B82: BURLINGTON HYDRO INC. | C82: GENERAL SERVICE LESS THAN 50 KW | D82: GENERAL SERVICE LESS THAN 50 KW | E82: BURLINGTON HYDRO INC._GENERAL SERVICE LESS THAN 50 KW SERVICE CLASSIFICATION | F82: BURLINGTON HYDRO INC._GENERAL SERVICE LESS THAN 50 KW SERVICE CLASSIFICATION | G82: 21303728 | H82: 0 | I82: 131855332 | J82: 0 | K82: 163513 | L82: 0 | M82: 0 | N82: 0 | O82: 0 | P82: 0 | Q82: 132018845 | R82: 0 | S82: 153322573 | T82: 0
A83: 2021 | B83: BURLINGTON HYDRO INC. | C83: NO RATE CLASS | D83: NO RATE CLASS | E83: BURLINGTON HYDRO INC._NO RATE CLASS SERVICE CLASSIFICATION | F83: BURLINGTON HYDRO INC._NO RATE CLASS SERVICE CLASSIFICATION | G83: 0 | H83: 0 | I83: 0 | J83: 0 | K83: 0 | L83: 0 | M83: 0 | N83: 0 | O83: 188143328 | P83: 482407 | Q83: 0 | R83: 0 | S83: 0 | T83: 0
A84: 2021 | B84: BURLINGTON HYDRO INC. | C84: RESIDENTIAL | D84: RESIDENTIAL | E84: BURLINGTON HYDRO INC._RESIDENTIAL SERVICE CLASSIFICATION | F84: BURLINGTON HYDRO INC._RESIDENTIAL SERVICE CLASSIFICATION | G84: 6287703 | H84: 0 | I84: 548998927 | J84: 0 | K84: 0 | L84: 0 | M84: 0 | N84: 0 | O84: 0 | P84: 0 | Q84: 548998927 | R84: 0 | S84: 555286630 | T84: 0
A85: 2021 | B85: BURLINGTON HYDRO INC. | C85: STREET LIGHTING CONNECTIONS | D85: STREET LIGHTING | E85: BURLINGTON HYDRO INC._STREET LIGHTING SERVICE CLASSIFICATION | F85: BURLINGTON HYDRO INC._STREET LIGHTING SERVICE CLASSIFICATION | G85: 0 | H85: 0 | I85: 47125 | J85: 131 | K85: 5362712 | L85: 15328 | M85: 0 | N85: 0 | O85: 0 | P85: 0 | Q85: 5409837 | R85: 15459 | S85: 5409837 | T85: 15459
A86: 2021 | B86: BURLINGTON HYDRO INC. | C86: UNMETERED SCATTERED LOAD CONNECTIONS | D86: UNMETERED SCATTERED LOAD | E86: BURLINGTON HYDRO INC._UNMETERED SCATTERED LOAD SERVICE CLASSIFICATION | F86: BURLINGTON HYDRO INC._UNMETERED SCATTERED LOAD SERVICE CLASSIFICATION | G86: 0 | H86: 0 | I86: 3140725 | J86: 0 | K86: 0 | L86: 0 | M86: 0 | N86: 0 | O86: 0 | P86: 0 | Q86: 3140725 | R86: 0 | S86: 3140725 | T86: 0
A87: 2021 | B87: CANADIAN NIAGARA POWER INC. | C87: EMBEDDED DISTRIBUTOR(S) | D87: EMBEDDED DISTRIBUTOR | E87: CANADIAN NIAGARA POWER INC._EMBEDDED DISTRIBUTOR SERVICE CLASSIFICATION | F87: CANADIAN NIAGARA POWER INC._EMBEDDED DISTRIBUTOR SERVICE CLASSIFICATION | G87: 0 | H87: 0 | I87: 0 | J87: 0 | K87: 5321960 | L87: 14339.56 | M87: 0 | N87: 0 | O87: 0 | P87: 0 | Q87: 5321960 | R87: 14339.56 | S87: 5321960 | T87: 14339.56
A88: 2021 | B88: CANADIAN NIAGARA POWER INC. | C88: GENERAL SERVICE EQUAL TO OR GREATER THAN 50 KW | D88: GENERAL SERVICE 50 TO 4,999 KW | E88: CANADIAN NIAGARA POWER INC._GENERAL SERVICE 50 TO 4,999 KW SERVICE CLASSIFICATION | F88: CANADIAN NIAGARA POWER INC._GENERAL SERVICE 50 TO 4,999 KW SERVICE CLASSIFICATION | G88: 8198175.24 | H88: 31042 | I88: 16495603.33 | J88: 48553.38 | K88: 144936988.4 | L88: 447888.45 | M88: 0 | N88: 0 | O88: 0 | P88: 0 | Q88: 161432591.7 | R88: 496441.83 | S88: 169630767 | T88: 527483.83
A89: 2021 | B89: CANADIAN NIAGARA POWER INC. | C89: GENERAL SERVICE LESS THAN 50 KW | D89: GENERAL SERVICE LESS THAN 50 KW | E89: CANADIAN NIAGARA POWER INC._GENERAL SERVICE LESS THAN 50 KW SERVICE CLASSIFICATION | F89: CANADIAN NIAGARA POWER INC._GENERAL SERVICE LESS THAN 50 KW SERVICE CLASSIFICATION | G89: 9768968.48 | H89: 0 | I89: 53450153.19 | J89: 0 | K89: 0 | L89: 0 | M89: 0 | N89: 0 | O89: 0 | P89: 0 | Q89: 53450153.19 | R89: 0 | S89: 63219121.67 | T89: 0
A90: 2021 | B90: CANADIAN NIAGARA POWER INC. | C90: NO RATE CLASS | D90: NO RATE CLASS | E90: CANADIAN NIAGARA POWER INC._NO RATE CLASS SERVICE CLASSIFICATION | F90: CANADIAN NIAGARA POWER INC._NO RATE CLASS SERVICE CLASSIFICATION | G90: 0 | H90: 0 | I90: 0 | J90: 0 | K90: 0 | L90: 0 | M90: 0 | N90: 0 | O90: 69967992 | P90: 229622.3438 | Q90: 0 | R90: 0 | S90: 0 | T90: 0
A91: 2021 | B91: CANADIAN NIAGARA POWER INC. | C91: RESIDENTIAL | D91: RESIDENTIAL | E91: CANADIAN NIAGARA POWER INC._RESIDENTIAL SERVICE CLASSIFICATION | F91: CANADIAN NIAGARA POWER INC._RESIDENTIAL SERVICE CLASSIFICATION | G91: 4306687.5 | H91: 0 | I91: 215893532.2 | J91: 0 | K91: 0 | L91: 0 | M91: 0 | N91: 0 | O91: 0 | P91: 0 | Q91: 215893532.2 | R91: 0 | S91: 220200219.7 | T91: 0
A92: 2021 | B92: CANADIAN NIAGARA POWER INC. | C92: SENTINEL LIGHTING CONNECTIONS | D92: SENTINEL LIGHTING | E92: CANADIAN NIAGARA POWER INC._SENTINEL LIGHTING SERVICE CLASSIFICATION | F92: CANADIAN NIAGARA POWER INC._SENTINEL LIGHTING SERVICE CLASSIFICATION | G92: 395.44 | H92: 1 | I92: 525519.34 | J92: 1721.61 | K92: 0 | L92: 0 | M92: 0 | N92: 0 | O92: 0 | P92: 0 | Q92: 525519.34 | R92: 1721.61 | S92: 525914.78 | T92: 1722.91
A93: 2021 | B93: CANADIAN NIAGARA POWER INC. | C93: STREET LIGHTING CONNECTIONS | D93: STREET LIGHTING | E93: CANADIAN NIAGARA POWER INC._STREET LIGHTING SERVICE CLASSIFICATION | F93: CANADIAN NIAGARA POWER INC._STREET LIGHTING SERVICE CLASSIFICATION | G93: 0 | H93: 0 | I93: 79299.53 | J93: 261.47 | K93: 1346544.79 | L93: 4087.02 | M93: 0 | N93: 0 | O93: 0 | P93: 0 | Q93: 1425844.32 | R93: 4348.49 | S93: 1425844.32 | T93: 4348.49
A94: 2021 | B94: CANADIAN NIAGARA POWER INC. | C94: UNMETERED SCATTERED LOAD CONNECTIONS | D94: UNMETERED SCATTERED LOAD | E94: CANADIAN NIAGARA POWER INC._UNMETERED SCATTERED LOAD SERVICE CLASSIFICATION | F94: CANADIAN NIAGARA POWER INC._UNMETERED SCATTERED LOAD SERVICE CLASSIFICATION | G94: 885451.26 | H94: 0 | I94: 422198.32 | J94: 0 | K94: 0 | L94: 0 | M94: 0 | N94: 0 | O94: 0 | P94: 0 | Q94: 422198.32 | R94: 0 | S94: 1307649.58 | T94: 0
A95: 2021 | B95: CENTRE WELLINGTON HYDRO LTD. | C95: GENERAL SERVICE EQUAL TO OR GREATER THAN 50 KW | D95: GENERAL SERVICE 3,000 TO 4,999 KW | E95: CENTRE WELLINGTON HYDRO LTD._GENERAL SERVICE 3,000 TO 4,999 KW SERVICE CLASSIFICATION | F95: CENTRE WELLINGTON HYDRO LTD._GENERAL SERVICE 3,000 TO 4,999 KW SERVICE CLASSIFICATION | G95: 0 | H95: 0 | I95: 0 | J95: 0 | K95: 14539030.8 | L95: 38002.36 | M95: 0 | N95: 0 | O95: 0 | P95: 0 | Q95: 14539030.8 | R95: 38002.36 | S95: 14539030.8 | T95: 38002.36
A96: 2021 | B96: CENTRE WELLINGTON HYDRO LTD. | C96: GENERAL SERVICE EQUAL TO OR GREATER THAN 50 KW | D96: GENERAL SERVICE 50 TO 2,999 KW | E96: CENTRE WELLINGTON HYDRO LTD._GENERAL SERVICE 50 TO 2,999 KW SERVICE CLASSIFICATION | F96: CENTRE WELLINGTON HYDRO LTD._GENERAL SERVICE 50 TO 2,999 KW SERVICE CLASSIFICATION | G96: 9851545 | H96: 28201 | I96: 1451155 | J96: 4386.3 | K96: 39154301.09 | L96: 105887.93 | M96: 2742231.75 | N96: 5245.350098 | O96: 0 | P96: 0 | Q96: 43347687.91 | R96: 115519.58 | S96: 53199232.91 | T96: 143721.22
A97: 2021 | B97: CENTRE WELLINGTON HYDRO LTD. | C97: GENERAL SERVICE LESS THAN 50 KW | D97: GENERAL SERVICE LESS THAN 50 KW | E97: CENTRE WELLINGTON HYDRO LTD._GENERAL SERVICE LESS THAN 50 KW SERVICE CLASSIFICATION | F97: CENTRE WELLINGTON HYDRO LTD._GENERAL SERVICE LESS THAN 50 KW SERVICE CLASSIFICATION | G97: 4866493 | H97: 0 | I97: 18353746 | J97: 0 | K97: 19842 | L97: 0 | M97: 0 | N97: 0 | O97: 0 | P97: 0 | Q97: 18373588 | R97: 0 | S97: 23240081 | T97: 0
A98: 2021 | B98: CENTRE WELLINGTON HYDRO LTD. | C98: NO RATE CLASS | D98: NO RATE CLASS | E98: CENTRE WELLINGTON HYDRO LTD._NO RATE CLASS SERVICE CLASSIFICATION | F98: CENTRE WELLINGTON HYDRO LTD._NO RATE CLASS SERVICE CLASSIFICATION | G98: 0 | H98: 0 | I98: 0 | J98: 0 | K98: 0 | L98: 0 | M98: 0 | N98: 0 | O98: 18333712 | P98: 47599.30078 | Q98: 0 | R98: 0 | S98: 0 | T98: 0
A99: 2021 | B99: CENTRE WELLINGTON HYDRO LTD. | C99: RESIDENTIAL | D99: RESIDENTIAL | E99: CENTRE WELLINGTON HYDRO LTD._RESIDENTIAL SERVICE CLASSIFICATION | F99: CENTRE WELLINGTON HYDRO LTD._RESIDENTIAL SERVICE CLASSIFICATION | G99: 831365 | H99: 0 | I99: 48665387 | J99: 0 | K99: 0 | L99: 0 | M99: 0 | N99: 0 | O99: 0 | P99: 0 | Q99: 48665387 | R99: 0 | S99: 49496752 | T99: 0
A100: 2021 | B100: CENTRE WELLINGTON HYDRO LTD. | C100: SENTINEL LIGHTING CONNECTIONS | D100: SENTINEL LIGHTING | E100: CENTRE WELLINGTON HYDRO LTD._SENTINEL LIGHTING SERVICE CLASSIFICATION | F100: CENTRE WELLINGTON HYDRO LTD._SENTINEL LIGHTING SERVICE CLASSIFICATION | G100: 12956 | H100: 35 | I100: 22624.24 | J100: 62.84 | K100: 0 | L100: 0 | M100: 0 | N100: 0 | O100: 0 | P100: 0 | Q100: 22624.24 | R100: 62.84 | S100: 35580.24 | T100: 98.83
A101: 2021 | B101: CENTRE WELLINGTON HYDRO LTD. | C101: STREET LIGHTING CONNECTIONS | D101: STREET LIGHTING | E101: CENTRE WELLINGTON HYDRO LTD._STREET LIGHTING SERVICE CLASSIFICATION | F101: CENTRE WELLINGTON HYDRO LTD._STREET LIGHTING SERVICE CLASSIFICATION | G101: 0 | H101: 0 | I101: 0 | J101: 0 | K101: 525998.69 | L101: 1445.09 | M101: 0 | N101: 0 | O101: 0 | P101: 0 | Q101: 525998.69 | R101: 1445.09 | S101: 525998.69 | T101: 1445.09
A102: 2021 | B102: CENTRE WELLINGTON HYDRO LTD. | C102: UNMETERED SCATTERED LOAD CONNECTIONS | D102: UNMETERED SCATTERED LOAD | E102: CENTRE WELLINGTON HYDRO LTD._UNMETERED SCATTERED LOAD SERVICE CLASSIFICATION | F102: CENTRE WELLINGTON HYDRO LTD._UNMETERED SCATTERED LOAD SERVICE CLASSIFICATION | G102: 90336 | H102: 0 | I102: 498805 | J102: 0 | K102: 0 | L102: 0 | M102: 0 | N102: 0 | O102: 0 | P102: 0 | Q102: 498805 | R102: 0 | S102: 589141 | T102: 0
A103: 2021 | B103: CHAPLEAU PUBLIC UTILITIES CORPORATION | C103: GENERAL SERVICE EQUAL TO OR GREATER THAN 50 KW | D103: GENERAL SERVICE 50 TO 4,999 KW | E103: CHAPLEAU PUBLIC UTILITIES CORPORATION_GENERAL SERVICE 50 TO 4,999 KW SERVICE CLASSIFICATION | F103: CHAPLEAU PUBLIC UTILITIES CORPORATION_GENERAL SERVICE 50 TO 4,999 KW SERVICE CLASSIFICATION | G103: 323940 | H103: 1284 | I103: 0 | J103: 0 | K103: 4378625 | L103: 12918 | M103: 0 | N103: 0 | O103: 0 | P103: 0 | Q103: 4378625 | R103: 12918 | S103: 4702565 | T103: 14202.4
A104: 2021 | B104: CHAPLEAU PUBLIC UTILITIES CORPORATION | C104: GENERAL SERVICE LESS THAN 50 KW | D104: GENERAL SERVICE LESS THAN 50 KW | E104: CHAPLEAU PUBLIC UTILITIES CORPORATION_GENERAL SERVICE LESS THAN 50 KW SERVICE CLASSIFICATION | F104: CHAPLEAU PUBLIC UTILITIES CORPORATION_GENERAL SERVICE LESS THAN 50 KW SERVICE CLASSIFICATION | G104: 376787 | H104: 0 | I104: 4043238 | J104: 0 | K104: 0 | L104: 0 | M104: 0 | N104: 0 | O104: 0 | P104: 0 | Q104: 4043238 | R104: 0 | S104: 4420025 | T104: 0
A105: 2021 | B105: CHAPLEAU PUBLIC UTILITIES CORPORATION | C105: NO RATE CLASS | D105: NO RATE CLASS | E105: CHAPLEAU PUBLIC UTILITIES CORPORATION_NO RATE CLASS SERVICE CLASSIFICATION | F105: CHAPLEAU PUBLIC UTILITIES CORPORATION_NO RATE CLASS SERVICE CLASSIFICATION | G105: 0 | H105: 0 | I105: 0 | J105: 0 | K105: 0 | L105: 0 | M105: 0 | N105: 0 | O105: 0 | P105: 0 | Q105: 0 | R105: 0 | S105: 0 | T105: 0
A106: 2021 | B106: CHAPLEAU PUBLIC UTILITIES CORPORATION | C106: RESIDENTIAL | D106: RESIDENTIAL | E106: CHAPLEAU PUBLIC UTILITIES CORPORATION_RESIDENTIAL SERVICE CLASSIFICATION | F106: CHAPLEAU PUBLIC UTILITIES CORPORATION_RESIDENTIAL SERVICE CLASSIFICATION | G106: 13707 | H106: 0 | I106: 14029698 | J106: 0 | K106: 0 | L106: 0 | M106: 0 | N106: 0 | O106: 0 | P106: 0 | Q106: 14029698 | R106: 0 | S106: 14043405 | T106: 0
A107: 2021 | B107: CHAPLEAU PUBLIC UTILITIES CORPORATION | C107: SENTINEL LIGHTING CONNECTIONS | D107: SENTINEL LIGHTING | E107: CHAPLEAU PUBLIC UTILITIES CORPORATION_SENTINEL LIGHTING SERVICE CLASSIFICATION | F107: CHAPLEAU PUBLIC UTILITIES CORPORATION_SENTINEL LIGHTING SERVICE CLASSIFICATION | G107: 0 | H107: 0 | I107: 19761 | J107: 55 | K107: 0 | L107: 0 | M107: 0 | N107: 0 | O107: 0 | P107: 0 | Q107: 19761 | R107: 55 | S107: 19761 | T107: 55
A108: 2021 | B108: CHAPLEAU PUBLIC UTILITIES CORPORATION | C108: STREET LIGHTING CONNECTIONS | D108: STREET LIGHTING | E108: CHAPLEAU PUBLIC UTILITIES CORPORATION_STREET LIGHTING SERVICE CLASSIFICATION | F108: CHAPLEAU PUBLIC UTILITIES CORPORATION_STREET LIGHTING SERVICE CLASSIFICATION | G108: 0 | H108: 0 | I108: 261112 | J108: 738 | K108: 0 | L108: 0 | M108: 0 | N108: 0 | O108: 0 | P108: 0 | Q108: 261112 | R108: 738 | S108: 261112 | T108: 738
A109: 2021 | B109: CHAPLEAU PUBLIC UTILITIES CORPORATION | C109: UNMETERED SCATTERED LOAD CONNECTIONS | D109: UNMETERED SCATTERED LOAD | E109: CHAPLEAU PUBLIC UTILITIES CORPORATION_UNMETERED SCATTERED LOAD SERVICE CLASSIFICATION | F109: CHAPLEAU PUBLIC UTILITIES CORPORATION_UNMETERED SCATTERED LOAD SERVICE CLASSIFICATION | G109: 0 | H109: 0 | I109: 2892 | J109: 0 | K109: 0 | L109: 0 | M109: 0 | N109: 0 | O109: 0 | P109: 0 | Q109: 2892 | R109: 0 | S109: 2892 | T109: 0
A110: 2021 | B110: COOPERATIVE HYDRO EMBRUN INC. | C110: GENERAL SERVICE EQUAL TO OR GREATER THAN 50 KW | D110: GENERAL SERVICE 50 TO 4,999 KW | E110: COOPERATIVE HYDRO EMBRUN INC._GENERAL SERVICE 50 TO 4,999 KW SERVICE CLASSIFICATION | F110: COOPERATIVE HYDRO EMBRUN INC._GENERAL SERVICE 50 TO 4,999 KW SERVICE CLASSIFICATION | G110: 29477 | H110: 0 | I110: 784878 | J110: 0 | K110: 2208090 | L110: 9472 | M110: 0 | N110: 0 | O110: 0 | P110: 0 | Q110: 2992968 | R110: 9472 | S110: 3022445 | T110: 9472
A111: 2021 | B111: COOPERATIVE HYDRO EMBRUN INC. | C111: GENERAL SERVICE LESS THAN 50 KW | D111: GENERAL SERVICE LESS THAN 50 KW | E111: COOPERATIVE HYDRO EMBRUN INC._GENERAL SERVICE LESS THAN 50 KW SERVICE CLASSIFICATION | F111: COOPERATIVE HYDRO EMBRUN INC._GENERAL SERVICE LESS THAN 50 KW SERVICE CLASSIFICATION | G111: 763380 | H111: 0 | I111: 3521987 | J111: 0 | K111: 0 | L111: 0 | M111: 0 | N111: 0 | O111: 0 | P111: 0 | Q111: 3521987 | R111: 0 | S111: 4285367 | T111: 0
A112: 2021 | B112: COOPERATIVE HYDRO EMBRUN INC. | C112: NO RATE CLASS | D112: NO RATE CLASS | E112: COOPERATIVE HYDRO EMBRUN INC._NO RATE CLASS SERVICE CLASSIFICATION | F112: COOPERATIVE HYDRO EMBRUN INC._NO RATE CLASS SERVICE CLASSIFICATION | G112: 0 | H112: 0 | I112: 0 | J112: 0 | K112: 0 | L112: 0 | M112: 0 | N112: 0 | O112: 0 | P112: 0 | Q112: 0 | R112: 0 | S112: 0 | T112: 0
A113: 2021 | B113: COOPERATIVE HYDRO EMBRUN INC. | C113: RESIDENTIAL | D113: RESIDENTIAL | E113: COOPERATIVE HYDRO EMBRUN INC._RESIDENTIAL SERVICE CLASSIFICATION | F113: COOPERATIVE HYDRO EMBRUN INC._RESIDENTIAL SERVICE CLASSIFICATION | G113: 166074 | H113: 0 | I113: 21136140 | J113: 0 | K113: 0 | L113: 0 | M113: 0 | N113: 0 | O113: 0 | P113: 0 | Q113: 21136140 | R113: 0 | S113: 21302214 | T113: 0
A114: 2021 | B114: COOPERATIVE HYDRO EMBRUN INC. | C114: STREET LIGHTING CONNECTIONS | D114: STREET LIGHTING | E114: COOPERATIVE HYDRO EMBRUN INC._STREET LIGHTING SERVICE CLASSIFICATION | F114: COOPERATIVE HYDRO EMBRUN INC._STREET LIGHTING SERVICE CLASSIFICATION | G114: 0 | H114: 0 | I114: 0 | J114: 0 | K114: 212836 | L114: 592 | M114: 0 | N114: 0 | O114: 0 | P114: 0 | Q114: 212836 | R114: 592 | S114: 212836 | T114: 592
A115: 2021 | B115: COOPERATIVE HYDRO EMBRUN INC. | C115: UNMETERED SCATTERED LOAD CONNECTIONS | D115: UNMETERED SCATTERED LOAD | E115: COOPERATIVE HYDRO EMBRUN INC._UNMETERED SCATTERED LOAD SERVICE CLASSIFICATION | F115: COOPERATIVE HYDRO EMBRUN INC._UNMETERED SCATTERED LOAD SERVICE CLASSIFICATION | G115: 0 | H115: 0 | I115: 93084 | J115: 0 | K115: 0 | L115: 0 | M115: 0 | N115: 0 | O115: 0 | P115: 0 | Q115: 93084 | R115: 0 | S115: 93084 | T115: 0
A116: 2021 | B116: CORNWALL STREET RAILWAY LIGHT AND POWER COMPANY LIMITED | C116: NO RATE CLASS | D116: NO RATE CLASS | E116: CORNWALL STREET RAILWAY LIGHT AND POWER COMPANY LIMITED_NO RATE CLASS SERVICE CLASSIFICATION | F116: CORNWALL STREET RAILWAY LIGHT AND POWER COMPANY LIMITED_NO RATE CLASS SERVICE CLASSIFICATION | G116: 0 | H116: 0 | I116: 0 | J116: 0 | K116: 0 | L116: 0 | M116: 0 | N116: 0 | Q116: 0 | R116: 0 | S116: 0 | T116: 0
A117: 2021 | B117: E.L.K. ENERGY INC. | C117: EMBEDDED DISTRIBUTOR(S) | D117: EMBEDDED DISTRIBUTOR | E117: E.L.K. ENERGY INC._EMBEDDED DISTRIBUTOR SERVICE CLASSIFICATION | F117: E.L.K. ENERGY INC._EMBEDDED DISTRIBUTOR SERVICE CLASSIFICATION | G117: 0 | H117: 0 | I117: 0 | J117: 0 | K117: 60666329 | L117: 139224 | M117: 0 | N117: 0 | O117: 0 | P117: 0 | Q117: 60666329 | R117: 139224 | S117: 60666329 | T117: 139224
A118: 2021 | B118: E.L.K. ENERGY INC. | C118: GENERAL SERVICE EQUAL TO OR GREATER THAN 50 KW | D118: GENERAL SERVICE 50 TO 4,999 KW | E118: E.L.K. ENERGY INC._GENERAL SERVICE 50 TO 4,999 KW SERVICE CLASSIFICATION | F118: E.L.K. ENERGY INC._GENERAL SERVICE 50 TO 4,999 KW SERVICE CLASSIFICATION | G118: 0 | H118: 0 | I118: 18683361 | J118: 5078 | K118: 33364288 | L118: 121871 | M118: 0 | N118: 0 | O118: 0 | P118: 0 | Q118: 52047649 | R118: 126949 | S118: 52047649 | T118: 126949
A119: 2021 | B119: E.L.K. ENERGY INC. | C119: GENERAL SERVICE LESS THAN 50 KW | D119: GENERAL SERVICE LESS THAN 50 KW | E119: E.L.K. ENERGY INC._GENERAL SERVICE LESS THAN 50 KW SERVICE CLASSIFICATION | F119: E.L.K. ENERGY INC._GENERAL SERVICE LESS THAN 50 KW SERVICE CLASSIFICATION | G119: 0 | H119: 0 | I119: 22976951 | J119: 0 | K119: 3433337 | L119: 0 | M119: 0 | N119: 0 | O119: 0 | P119: 0 | Q119: 26410288 | R119: 0 | S119: 26410288 | T119: 0
A120: 2021 | B120: E.L.K. ENERGY INC. | C120: NO RATE CLASS | D120: NO RATE CLASS | E120: E.L.K. ENERGY INC._NO RATE CLASS SERVICE CLASSIFICATION | F120: E.L.K. ENERGY INC._NO RATE CLASS SERVICE CLASSIFICATION | G120: 0 | H120: 0 | I120: 0 | J120: 0 | K120: 0 | L120: 0 | M120: 0 | N120: 0 | O120: 18907938 | P120: 63611.51953 | Q120: 0 | R120: 0 | S120: 0 | T120: 0
A121: 2021 | B121: E.L.K. ENERGY INC. | C121: RESIDENTIAL | D121: RESIDENTIAL | E121: E.L.K. ENERGY INC._RESIDENTIAL SERVICE CLASSIFICATION | F121: E.L.K. ENERGY INC._RESIDENTIAL SERVICE CLASSIFICATION | G121: 0 | H121: 0 | I121: 96339840 | J121: 0 | K121: 1966119 | L121: 0 | M121: 0 | N121: 0 | O121: 0 | P121: 0 | Q121: 98305959 | R121: 0 | S121: 98305959 | T121: 0
A122: 2021 | B122: E.L.K. ENERGY INC. | C122: SENTINEL LIGHTING CONNECTIONS | D122: SENTINEL LIGHTING | E122: E.L.K. ENERGY INC._SENTINEL LIGHTING SERVICE CLASSIFICATION | F122: E.L.K. ENERGY INC._SENTINEL LIGHTING SERVICE CLASSIFICATION | G122: 0 | H122: 0 | I122: 0 | J122: 0 | K122: 141998 | L122: 385 | M122: 0 | N122: 0 | O122: 0 | P122: 0 | Q122: 141998 | R122: 385 | S122: 141998 | T122: 385
A123: 2021 | B123: E.L.K. ENERGY INC. | C123: STREET LIGHTING CONNECTIONS | D123: STREET LIGHTING | E123: E.L.K. ENERGY INC._STREET LIGHTING SERVICE CLASSIFICATION | F123: E.L.K. ENERGY INC._STREET LIGHTING SERVICE CLASSIFICATION | G123: 0 | H123: 0 | I123: 0 | J123: 0 | K123: 1283668 | L123: 3927 | M123: 0 | N123: 0 | O123: 0 | P123: 0 | Q123: 1283668 | R123: 3927 | S123: 1283668 | T123: 3927
A124: 2021 | B124: E.L.K. ENERGY INC. | C124: UNMETERED SCATTERED LOAD CONNECTIONS | D124: UNMETERED SCATTERED LOAD | E124: E.L.K. ENERGY INC._UNMETERED SCATTERED LOAD SERVICE CLASSIFICATION | F124: E.L.K. ENERGY INC._UNMETERED SCATTERED LOAD SERVICE CLASSIFICATION | G124: 0 | H124: 0 | I124: 0 | J124: 0 | K124: 246885 | L124: 0 | M124: 0 | N124: 0 | O124: 0 | P124: 0 | Q124: 246885 | R124: 0 | S124: 246885 | T124: 0
A125: 2021 | B125: ELEXICON ENERGY INC. | C125: GENERAL SERVICE EQUAL TO OR GREATER THAN 50 KW | D125: GENERAL SERVICE 3,000 TO 4,999 KW - VERIDIAN | E125: ELEXICON ENERGY INC._GENERAL SERVICE 3,000 TO 4,999 KW - VERIDIAN SERVICE CLASSIFICATION | F125: ELEXICON ENERGY INC._GENERAL SERVICE 3,000 TO 4,999 KW - VERIDIAN SERVICE CLASSIFICATION | G125: 0 | H125: 0 | I125: 0 | J125: 0 | K125: 92205359 | L125: 204116 | M125: 0 | N125: 0 | O125: 0 | P125: 0 | Q125: 92205359 | R125: 204116 | S125: 92205359 | T125: 204116
A126: 2021 | B126: ELEXICON ENERGY INC. | C126: GENERAL SERVICE EQUAL TO OR GREATER THAN 50 KW | D126: GENERAL SERVICE 50 TO 2,999 KW - VERIDIAN | E126: ELEXICON ENERGY INC._GENERAL SERVICE 50 TO 2,999 KW - VERIDIAN SERVICE CLASSIFICATION | F126: ELEXICON ENERGY INC._GENERAL SERVICE 50 TO 2,999 KW - VERIDIAN SERVICE CLASSIFICATION | G126: 113082442 | H126: 298137 | I126: 93597983 | J126: 242112 | K126: 683432934 | L126: 1633061 | M126: 34521920 | N126: 62435 | O126: 0 | P126: 0 | Q126: 811552839 | R126: 1937608 | S126: 924635281 | T126: 2235745
A127: 2021 | B127: ELEXICON ENERGY INC. | C127: GENERAL SERVICE EQUAL TO OR GREATER THAN 50 KW | D127: GENERAL SERVICE 50 TO 4,999 KW - WHITBY | E127: ELEXICON ENERGY INC._GENERAL SERVICE 50 TO 4,999 KW - WHITBY SERVICE CLASSIFICATION | F127: ELEXICON ENERGY INC._GENERAL SERVICE 50 TO 4,999 KW - WHITBY SERVICE CLASSIFICATION | G127: 57167614 | H127: 144887 | I127: 42681661 | J127: 114006 | K127: 284310650 | L127: 660991 | M127: 4228894 | N127: 8344 | O127: 0 | P127: 0 | Q127: 331221205 | R127: 783341 | S127: 388388819 | T127: 928228
A128: 2021 | B128: ELEXICON ENERGY INC. | C128: GENERAL SERVICE LESS THAN 50 KW | D128: GENERAL SERVICE < 50 KW - VERIDIAN | E128: ELEXICON ENERGY INC._GENERAL SERVICE < 50 KW - VERIDIAN SERVICE CLASSIFICATION | F128: ELEXICON ENERGY INC._GENERAL SERVICE < 50 KW - VERIDIAN SERVICE CLASSIFICATION | G128: 47246818 | H128: 0 | I128: 224839956 | J128: 0 | K128: 276897 | L128: 0 | M128: 0 | N128: 0 | O128: 0 | P128: 0 | Q128: 225116853 | R128: 0 | S128: 272363671 | T128: 0
A129: 2021 | B129: ELEXICON ENERGY INC. | C129: GENERAL SERVICE LESS THAN 50 KW | D129: GENERAL SERVICE < 50 KW - WHITBY | E129: ELEXICON ENERGY INC._GENERAL SERVICE < 50 KW - WHITBY SERVICE CLASSIFICATION | F129: ELEXICON ENERGY INC._GENERAL SERVICE < 50 KW - WHITBY SERVICE CLASSIFICATION | G129: 13497062 | H129: 0 | I129: 68185328 | J129: 359 | K129: 0 | L129: 0 | M129: 0 | N129: 0 | O129: 0 | P129: 0 | Q129: 68185328 | R129: 359 | S129: 81682390 | T129: 359
A130: 2021 | B130: ELEXICON ENERGY INC. | C130: LARGE USER | D130: LARGE USE - VERIDIAN | E130: ELEXICON ENERGY INC._LARGE USE - VERIDIAN SERVICE CLASSIFICATION | F130: ELEXICON ENERGY INC._LARGE USE - VERIDIAN SERVICE CLASSIFICATION | G130: 0 | H130: 0 | I130: 0 | J130: 0 | K130: 261353050 | L130: 453257 | M130: 0 | N130: 0 | O130: 0 | P130: 0 | Q130: 261353050 | R130: 453257 | S130: 261353050 | T130: 453257
A131: 2021 | B131: ELEXICON ENERGY INC. | C131: NO RATE CLASS | D131: NO RATE CLASS | E131: ELEXICON ENERGY INC._NO RATE CLASS SERVICE CLASSIFICATION | F131: ELEXICON ENERGY INC._NO RATE CLASS SERVICE CLASSIFICATION | G131: 0 | H131: 0 | I131: 0 | J131: 0 | K131: 0 | L131: 0 | M131: 0 | N131: 0 | O131: 736462336 | P131: 1424447 | Q131: 0 | R131: 0 | S131: 0 | T131: 0
A132: 2021 | B132: ELEXICON ENERGY INC. | C132: RESIDENTIAL | D132: RESIDENTIAL - VERIDIAN | E132: ELEXICON ENERGY INC._RESIDENTIAL - VERIDIAN SERVICE CLASSIFICATION | F132: ELEXICON ENERGY INC._RESIDENTIAL - VERIDIAN SERVICE CLASSIFICATION | G132: 28319591 | H132: 0 | I132: 999299132 | J132: 0 | K132: 0 | L132: 0 | M132: 0 | N132: 0 | O132: 0 | P132: 0 | Q132: 999299132 | R132: 0 | S132: 1027618723 | T132: 0
A133: 2021 | B133: ELEXICON ENERGY INC. | C133: RESIDENTIAL | D133: RESIDENTIAL - WHITBY | E133: ELEXICON ENERGY INC._RESIDENTIAL - WHITBY SERVICE CLASSIFICATION | F133: ELEXICON ENERGY INC._RESIDENTIAL - WHITBY SERVICE CLASSIFICATION | G133: 5977829 | H133: 0 | I133: 387605490 | J133: 0 | K133: 0 | L133: 0 | M133: 0 | N133: 0 | O133: 0 | P133: 0 | Q133: 387605490 | R133: 0 | S133: 393583319 | T133: 0
A134: 2021 | B134: ELEXICON ENERGY INC. | C134: RESIDENTIAL | D134: RESIDENTIAL SEASONAL - VERIDIAN | E134: ELEXICON ENERGY INC._RESIDENTIAL SEASONAL - VERIDIAN SERVICE CLASSIFICATION | F134: ELEXICON ENERGY INC._RESIDENTIAL SEASONAL - VERIDIAN SERVICE CLASSIFICATION | G134: 59271 | H134: 0 | I134: 12142158 | J134: 0 | K134: 0 | L134: 0 | M134: 0 | N134: 0 | O134: 0 | P134: 0 | Q134: 12142158 | R134: 0 | S134: 12201429 | T134: 0
A135: 2021 | B135: ELEXICON ENERGY INC. | C135: SENTINEL LIGHTING CONNECTIONS | D135: SENTINEL LIGHTING - VERIDIAN | E135: ELEXICON ENERGY INC._SENTINEL LIGHTING - VERIDIAN SERVICE CLASSIFICATION | F135: ELEXICON ENERGY INC._SENTINEL LIGHTING - VERIDIAN SERVICE CLASSIFICATION | G135: 68389 | H135: 190 | I135: 141117 | J135: 392 | K135: 21440 | L135: 60 | M135: 0 | N135: 0 | O135: 0 | P135: 0 | Q135: 162557 | R135: 452 | S135: 230946 | T135: 642
A136: 2021 | B136: ELEXICON ENERGY INC. | C136: SENTINEL LIGHTING CONNECTIONS | D136: SENTINEL LIGHTING - WHITBY | E136: ELEXICON ENERGY INC._SENTINEL LIGHTING - WHITBY SERVICE CLASSIFICATION | F136: ELEXICON ENERGY INC._SENTINEL LIGHTING - WHITBY SERVICE CLASSIFICATION | G136: 756 | H136: 2 | I136: 25155 | J136: 12 | K136: 0 | L136: 0 | M136: 0 | N136: 0 | O136: 0 | P136: 0 | Q136: 25155 | R136: 12 | S136: 25911 | T136: 14
A137: 2021 | B137: ELEXICON ENERGY INC. | C137: STREET LIGHTING CONNECTIONS | D137: STREET LIGHTING - VERIDIAN | E137: ELEXICON ENERGY INC._STREET LIGHTING - VERIDIAN SERVICE CLASSIFICATION | F137: ELEXICON ENERGY INC._STREET LIGHTING - VERIDIAN SERVICE CLASSIFICATION | G137: 2511218 | H137: 6981 | I137: 0 | J137: 0 | K137: 8857022 | L137: 24660 | M137: 0 | N137: 0 | O137: 0 | P137: 0 | Q137: 8857022 | R137: 24660 | S137: 11368240 | T137: 31641
A138: 2021 | B138: ELEXICON ENERGY INC. | C138: STREET LIGHTING CONNECTIONS | D138: STREET LIGHTING - WHITBY | E138: ELEXICON ENERGY INC._STREET LIGHTING - WHITBY SERVICE CLASSIFICATION | F138: ELEXICON ENERGY INC._STREET LIGHTING - WHITBY SERVICE CLASSIFICATION | G138: 0 | H138: 0 | I138: 0 | J138: 0 | K138: 3017860 | L138: 9339 | M138: 0 | N138: 0 | O138: 0 | P138: 0 | Q138: 3017860 | R138: 9339 | S138: 3017860 | T138: 9339
A139: 2021 | B139: ELEXICON ENERGY INC. | C139: UNMETERED SCATTERED LOAD CONNECTIONS | D139: UNMETERED SCATTERED LOAD - VERIDIAN | E139: ELEXICON ENERGY INC._UNMETERED SCATTERED LOAD - VERIDIAN SERVICE CLASSIFICATION | F139: ELEXICON ENERGY INC._UNMETERED SCATTERED LOAD - VERIDIAN SERVICE CLASSIFICATION | G139: 223044 | H139: 0 | I139: 4388259 | J139: 0 | K139: 0 | L139: 0 | M139: 0 | N139: 0 | O139: 0 | P139: 0 | Q139: 4388259 | R139: 0 | S139: 4611303 | T139: 0
A140: 2021 | B140: ELEXICON ENERGY INC. | C140: UNMETERED SCATTERED LOAD CONNECTIONS | D140: UNMETERED SCATTERED LOAD - WHITBY | E140: ELEXICON ENERGY INC._UNMETERED SCATTERED LOAD - WHITBY SERVICE CLASSIFICATION | F140: ELEXICON ENERGY INC._UNMETERED SCATTERED LOAD - WHITBY SERVICE CLASSIFICATION | G140: 0 | H140: 0 | I140: 1782352 | J140: 0 | K140: 0 | L140: 0 | M140: 0 | N140: 0 | O140: 0 | P140: 0 | Q140: 1782352 | R140: 0 | S140: 1782352 | T140: 0
A141: 2021 | B141: ENERGY+ INC. | C141: EMBEDDED DISTRIBUTOR(S) | D141: EMBEDDED DISTRIBUTOR - HYDRO ONE #1 | E141: ENERGY+ INC._EMBEDDED DISTRIBUTOR - HYDRO ONE #1 SERVICE CLASSIFICATION | F141: ENERGY+ INC._EMBEDDED DISTRIBUTOR - HYDRO ONE #1 SERVICE CLASSIFICATION | G141: 0 | H141: 0 | I141: 0 | J141: 0 | K141: 13480201 | L141: 28259.23 | M141: 0 | N141: 0 | O141: 0 | P141: 0 | Q141: 13480201 | R141: 28259.23 | S141: 13480201 | T141: 28259.23
A142: 2021 | B142: ENERGY+ INC. | C142: EMBEDDED DISTRIBUTOR(S) | D142: EMBEDDED DISTRIBUTOR - HYDRO ONE #2 | E142: ENERGY+ INC._EMBEDDED DISTRIBUTOR - HYDRO ONE #2 SERVICE CLASSIFICATION | F142: ENERGY+ INC._EMBEDDED DISTRIBUTOR - HYDRO ONE #2 SERVICE CLASSIFICATION | G142: 0 | H142: 0 | I142: 0 | J142: 0 | K142: 57760152.5 | L142: 147984.5 | M142: 0 | N142: 0 | O142: 0 | P142: 0 | Q142: 57760152.5 | R142: 147984.5 | S142: 57760152.5 | T142: 147984.5
A143: 2021 | B143: ENERGY+ INC. | C143: EMBEDDED DISTRIBUTOR(S) | D143: EMBEDDED DISTRIBUTOR - BRANTFORD | E143: ENERGY+ INC._EMBEDDED DISTRIBUTOR - BRANTFORD SERVICE CLASSIFICATION | F143: ENERGY+ INC._EMBEDDED DISTRIBUTOR - BRANTFORD SERVICE CLASSIFICATION | G143: 0 | H143: 0 | I143: 0 | J143: 0 | K143: 259880.23 | L143: 850.21 | M143: 0 | N143: 0 | O143: 0 | P143: 0 | Q143: 259880.23 | R143: 850.21 | S143: 259880.23 | T143: 850.21
A144: 2021 | B144: ENERGY+ INC. | C144: EMBEDDED DISTRIBUTOR(S) | D144: EMBEDDED DISTRIBUTOR - HYDRO ONE CND | E144: ENERGY+ INC._EMBEDDED DISTRIBUTOR - HYDRO ONE CND SERVICE CLASSIFICATION | F144: ENERGY+ INC._EMBEDDED DISTRIBUTOR - HYDRO ONE CND SERVICE CLASSIFICATION | G144: 0 | H144: 0 | I144: 0 | J144: 0 | K144: 14009337.16 | L144: 28344.49 | M144: 0 | N144: 0 | O144: 0 | P144: 0 | Q144: 14009337.16 | R144: 28344.49 | S144: 14009337.16 | T144: 28344.49
A145: 2021 | B145: ENERGY+ INC. | C145: EMBEDDED DISTRIBUTOR(S) | D145: EMBEDDED DISTRIBUTOR - WATERLOO NORTH HYDRO | E145: ENERGY+ INC._EMBEDDED DISTRIBUTOR - WATERLOO NORTH HYDRO SERVICE CLASSIFICATION | F145: ENERGY+ INC._EMBEDDED DISTRIBUTOR - WATERLOO NORTH HYDRO SERVICE CLASSIFICATION | G145: 0 | H145: 0 | I145: 0 | J145: 0 | K145: 0 | L145: 0 | M145: 63043756 | N145: 119075.6875 | O145: 0 | P145: 0 | Q145: 63043756.13 | R145: 119075.69 | S145: 63043756.13 | T145: 119075.69
A146: 2021 | B146: ENERGY+ INC. | C146: GENERAL SERVICE EQUAL TO OR GREATER THAN 50 KW | D146: GENERAL SERVICE 1,000 TO 4,999 KW | E146: ENERGY+ INC._GENERAL SERVICE 1,000 TO 4,999 KW SERVICE CLASSIFICATION | F146: ENERGY+ INC._GENERAL SERVICE 1,000 TO 4,999 KW SERVICE CLASSIFICATION | G146: 60990454.55 | H146: 144443 | I146: 0 | J146: 0 | K146: 153188012.3 | L146: 376259.34 | M146: 26068998 | N146: 531807.5625 | O146: 0 | P146: 0 | Q146: 179257011.2 | R146: 908066.93 | S146: 240247465.7 | T146: 1052510.02
A147: 2021 | B147: ENERGY+ INC. | C147: GENERAL SERVICE EQUAL TO OR GREATER THAN 50 KW | D147: GENERAL SERVICE 50 TO 999 KW | E147: ENERGY+ INC._GENERAL SERVICE 50 TO 999 KW SERVICE CLASSIFICATION | F147: ENERGY+ INC._GENERAL SERVICE 50 TO 999 KW SERVICE CLASSIFICATION | G147: 78225456.56 | H147: 262798 | I147: 48835034.89 | J147: 171398.44 | K147: 312585072.1 | L147: 970990 | M147: 9230610 | N147: 283379.75 | O147: 0 | P147: 0 | Q147: 370650717.3 | R147: 1425768.19 | S147: 448876173.9 | T147: 1688566.79
A148: 2021 | B148: ENERGY+ INC. | C148: GENERAL SERVICE LESS THAN 50 KW | D148: GENERAL SERVICE LESS THAN 50 KW | E148: ENERGY+ INC._GENERAL SERVICE LESS THAN 50 KW SERVICE CLASSIFICATION | F148: ENERGY+ INC._GENERAL SERVICE LESS THAN 50 KW SERVICE CLASSIFICATION | G148: 25793618.29 | H148: 0 | I148: 170430770.4 | J148: 12.23 | K148: 85484.41 | L148: 4093.88 | M148: 0 | N148: 0 | O148: 0 | P148: 0 | Q148: 170516254.8 | R148: 4106.11 | S148: 196309873.1 | T148: 4106.11
A149: 2021 | B149: ENERGY+ INC. | C149: LARGE USER | D149: LARGE USER | E149: ENERGY+ INC._LARGE USER SERVICE CLASSIFICATION | F149: ENERGY+ INC._LARGE USER SERVICE CLASSIFICATION | G149: 0 | H149: 0 | I149: 0 | J149: 0 | K149: 143311258.6 | L149: 350604.49 | M149: 0 | N149: 0 | O149: 0 | P149: 0 | Q149: 143311258.6 | R149: 350604.49 | S149: 143311258.6 | T149: 350604.49
A150: 2021 | B150: ENERGY+ INC. | C150: NO RATE CLASS | D150: NO RATE CLASS | E150: ENERGY+ INC._NO RATE CLASS SERVICE CLASSIFICATION | F150: ENERGY+ INC._NO RATE CLASS SERVICE CLASSIFICATION | G150: 0 | H150: 0 | I150: 0 | J150: 0 | K150: 0 | L150: 0 | M150: 0 | N150: 0 | O150: 329931328 | P150: 837085.6875 | Q150: 0 | R150: 0 | S150: 0 | T150: 0
A151: 2021 | B151: ENERGY+ INC. | C151: RESIDENTIAL | D151: RESIDENTIAL | E151: ENERGY+ INC._RESIDENTIAL SERVICE CLASSIFICATION | F151: ENERGY+ INC._RESIDENTIAL SERVICE CLASSIFICATION | G151: 8134017.82 | H151: 0 | I151: 513172632.8 | J151: 0 | K151: 0 | L151: 0 | M151: 0 | N151: 0 | O151: 0 | P151: 0 | Q151: 513172632.8 | R151: 0 | S151: 521306650.6 | T151: 0
A152: 2021 | B152: ENERGY+ INC. | C152: SENTINEL LIGHTING CONNECTIONS | D152: SENTINEL LIGHTING | E152: ENERGY+ INC._SENTINEL LIGHTING SERVICE CLASSIFICATION | F152: ENERGY+ INC._SENTINEL LIGHTING SERVICE CLASSIFICATION | G152: 0 | H152: 0 | I152: 4361.4 | J152: 0 | K152: 0 | L152: 0 | M152: 0 | N152: 0 | O152: 0 | P152: 0 | Q152: 4361.4 | R152: 0 | S152: 4361.4 | T152: 0
A153: 2021 | B153: ENERGY+ INC. | C153: STREET LIGHTING CONNECTIONS | D153: STREET LIGHTING | E153: ENERGY+ INC._STREET LIGHTING SERVICE CLASSIFICATION | F153: ENERGY+ INC._STREET LIGHTING SERVICE CLASSIFICATION | G153: 701157.58 | H153: 1972 | I153: 471252.1 | J153: 1312.45 | K153: 4725907.04 | L153: 13161.04 | M153: 0 | N153: 0 | O153: 0 | P153: 0 | Q153: 5197159.14 | R153: 14473.49 | S153: 5898316.72 | T153: 16446.01
A154: 2021 | B154: ENERGY+ INC. | C154: UNMETERED SCATTERED LOAD CONNECTIONS | D154: UNMETERED SCATTERED LOAD | E154: ENERGY+ INC._UNMETERED SCATTERED LOAD SERVICE CLASSIFICATION | F154: ENERGY+ INC._UNMETERED SCATTERED LOAD SERVICE CLASSIFICATION | G154: 209748 | H154: 0 | I154: 1991248.31 | J154: 0 | K154: 0 | L154: 0 | M154: 0 | N154: 0 | O154: 0 | P154: 0 | Q154: 1991248.31 | R154: 0 | S154: 2200996.31 | T154: 0
A155: 2021 | B155: ENTEGRUS POWERLINES INC. | C155: EMBEDDED DISTRIBUTOR(S) | D155: EMBEDDED DISTRIBUTOR - MAIN | E155: ENTEGRUS POWERLINES INC._EMBEDDED DISTRIBUTOR - MAIN SERVICE CLASSIFICATION | F155: ENTEGRUS POWERLINES INC._EMBEDDED DISTRIBUTOR - MAIN SERVICE CLASSIFICATION | G155: 0 | H155: 0 | I155: 0 | J155: 0 | K155: 3559120 | L155: 11728 | M155: 0 | N155: 0 | O155: 0 | P155: 0 | Q155: 3559120 | R155: 11728 | S155: 3559120 | T155: 11728
A156: 2021 | B156: ENTEGRUS POWERLINES INC. | C156: GENERAL SERVICE EQUAL TO OR GREATER THAN 50 KW | D156: GENERAL SERVICE 50 TO 4,999 KW - MAIN | E156: ENTEGRUS POWERLINES INC._GENERAL SERVICE 50 TO 4,999 KW - MAIN SERVICE CLASSIFICATION | F156: ENTEGRUS POWERLINES INC._GENERAL SERVICE 50 TO 4,999 KW - MAIN SERVICE CLASSIFICATION | G156: 106244006 | H156: 267535 | I156: 27580556 | J156: 98060 | K156: 288554110 | L156: 781854 | M156: 6542298 | N156: 18369 | O156: 0 | P156: 0 | Q156: 322676964 | R156: 898283 | S156: 428920970 | T156: 1165818
A157: 2021 | B157: ENTEGRUS POWERLINES INC. | C157: GENERAL SERVICE EQUAL TO OR GREATER THAN 50 KW | D157: GENERAL SERVICE 50 TO 4,999 KW - ST. THOMAS ENERGY | E157: ENTEGRUS POWERLINES INC._GENERAL SERVICE 50 TO 4,999 KW - ST. THOMAS ENERGY SERVICE CLASSIFICATION | F157: ENTEGRUS POWERLINES INC._GENERAL SERVICE 50 TO 4,999 KW - ST. THOMAS ENERGY SERVICE CLASSIFICATION | G157: 29318471 | H157: 71323 | I157: 8472026 | J157: 30358 | K157: 73170373 | L157: 208132 | M157: 3449045 | N157: 6494 | O157: 0 | P157: 0 | Q157: 85091444 | R157: 244984 | S157: 114409915 | T157: 316307
A158: 2021 | B158: ENTEGRUS POWERLINES INC. | C158: GENERAL SERVICE LESS THAN 50 KW | D158: GENERAL SERVICE LESS THAN 50 KW - MAIN | E158: ENTEGRUS POWERLINES INC._GENERAL SERVICE LESS THAN 50 KW - MAIN SERVICE CLASSIFICATION | F158: ENTEGRUS POWERLINES INC._GENERAL SERVICE LESS THAN 50 KW - MAIN SERVICE CLASSIFICATION | G158: 19249070 | H158: 0 | I158: 86659464 | J158: 0 | K158: 0 | L158: 0 | M158: 0 | N158: 0 | O158: 0 | P158: 0 | Q158: 86659464 | R158: 0 | S158: 105908534 | T158: 0
A159: 2021 | B159: ENTEGRUS POWERLINES INC. | C159: GENERAL SERVICE LESS THAN 50 KW | D159: GENERAL SERVICE LESS THAN 50 KW - ST. THOMAS ENERGY | E159: ENTEGRUS POWERLINES INC._GENERAL SERVICE LESS THAN 50 KW - ST. THOMAS ENERGY SERVICE CLASSIFICATION | F159: ENTEGRUS POWERLINES INC._GENERAL SERVICE LESS THAN 50 KW - ST. THOMAS ENERGY SERVICE CLASSIFICATION | G159: 7338168 | H159: 0 | I159: 30297286 | J159: 0 | K159: 0 | L159: 0 | M159: 0 | N159: 0 | O159: 0 | P159: 0 | Q159: 30297286 | R159: 0 | S159: 37635454 | T159: 0
A160: 2021 | B160: ENTEGRUS POWERLINES INC. | C160: LARGE USER | D160: LARGE USE - MAIN | E160: ENTEGRUS POWERLINES INC._LARGE USE - MAIN SERVICE CLASSIFICATION | F160: ENTEGRUS POWERLINES INC._LARGE USE - MAIN SERVICE CLASSIFICATION | G160: 0 | H160: 0 | I160: 0 | J160: 0 | K160: 37618741 | L160: 109366 | M160: 0 | N160: 0 | O160: 0 | P160: 0 | Q160: 37618741 | R160: 109366 | S160: 37618741 | T160: 109366
A161: 2021 | B161: ENTEGRUS POWERLINES INC. | C161: NO RATE CLASS | D161: NO RATE CLASS | E161: ENTEGRUS POWERLINES INC._NO RATE CLASS SERVICE CLASSIFICATION | F161: ENTEGRUS POWERLINES INC._NO RATE CLASS SERVICE CLASSIFICATION | G161: 0 | H161: 0 | I161: 0 | J161: 0 | K161: 0 | L161: 0 | M161: 0 | N161: 0 | O161: 256610384 | P161: 583352 | Q161: 0 | R161: 0 | S161: 0 | T161: 0
A162: 2021 | B162: ENTEGRUS POWERLINES INC. | C162: RESIDENTIAL | D162: RESIDENTIAL - MAIN | E162: ENTEGRUS POWERLINES INC._RESIDENTIAL - MAIN SERVICE CLASSIFICATION | F162: ENTEGRUS POWERLINES INC._RESIDENTIAL - MAIN SERVICE CLASSIFICATION | G162: 8657781 | H162: 0 | I162: 298221481 | J162: 0 | K162: 0 | L162: 0 | M162: 0 | N162: 0 | O162: 0 | P162: 0 | Q162: 298221481 | R162: 0 | S162: 306879262 | T162: 0
A163: 2021 | B163: ENTEGRUS POWERLINES INC. | C163: RESIDENTIAL | D163: RESIDENTIAL - ST. THOMAS ENERGY | E163: ENTEGRUS POWERLINES INC._RESIDENTIAL - ST. THOMAS ENERGY SERVICE CLASSIFICATION | F163: ENTEGRUS POWERLINES INC._RESIDENTIAL - ST. THOMAS ENERGY SERVICE CLASSIFICATION | G163: 6652390 | H163: 0 | I163: 125636709 | J163: 0 | K163: 0 | L163: 0 | M163: 0 | N163: 0 | O163: 0 | P163: 0 | Q163: 125636709 | R163: 0 | S163: 132289099 | T163: 0
A164: 2021 | B164: ENTEGRUS POWERLINES INC. | C164: SENTINEL LIGHTING CONNECTIONS | D164: SENTINEL LIGHTING - MAIN | E164: ENTEGRUS POWERLINES INC._SENTINEL LIGHTING - MAIN SERVICE CLASSIFICATION | F164: ENTEGRUS POWERLINES INC._SENTINEL LIGHTING - MAIN SERVICE CLASSIFICATION | G164: 59225 | H164: 169 | I164: 236734 | J164: 658 | K164: 67877 | L164: 189 | M164: 0 | N164: 0 | O164: 0 | P164: 0 | Q164: 304611 | R164: 847 | S164: 363836 | T164: 1016
A165: 2021 | B165: ENTEGRUS POWERLINES INC. | C165: SENTINEL LIGHTING CONNECTIONS | D165: SENTINEL LIGHTING - ST. THOMAS ENERGY | E165: ENTEGRUS POWERLINES INC._SENTINEL LIGHTING - ST. THOMAS ENERGY SERVICE CLASSIFICATION | F165: ENTEGRUS POWERLINES INC._SENTINEL LIGHTING - ST. THOMAS ENERGY SERVICE CLASSIFICATION | G165: 2457 | H165: 7 | I165: 95305 | J165: 0 | K165: 0 | L165: 0 | M165: 0 | N165: 0 | O165: 0 | P165: 0 | Q165: 95305 | R165: 0 | S165: 97762 | T165: 7
A166: 2021 | B166: ENTEGRUS POWERLINES INC. | C166: STREET LIGHTING CONNECTIONS | D166: STREET LIGHTING - MAIN | E166: ENTEGRUS POWERLINES INC._STREET LIGHTING - MAIN SERVICE CLASSIFICATION | F166: ENTEGRUS POWERLINES INC._STREET LIGHTING - MAIN SERVICE CLASSIFICATION | G166: 0 | H166: 0 | I166: 0 | J166: 0 | K166: 3540950 | L166: 10447 | M166: 0 | N166: 0 | O166: 0 | P166: 0 | Q166: 3540950 | R166: 10447 | S166: 3540950 | T166: 10447
A167: 2021 | B167: ENTEGRUS POWERLINES INC. | C167: STREET LIGHTING CONNECTIONS | D167: STREET LIGHTING - ST. THOMAS ENERGY | E167: ENTEGRUS POWERLINES INC._STREET LIGHTING - ST. THOMAS ENERGY SERVICE CLASSIFICATION | F167: ENTEGRUS POWERLINES INC._STREET LIGHTING - ST. THOMAS ENERGY SERVICE CLASSIFICATION | G167: 0 | H167: 0 | I167: 0 | J167: 0 | K167: 1796871 | L167: 4991 | M167: 0 | N167: 0 | O167: 0 | P167: 0 | Q167: 1796871 | R167: 4991 | S167: 1796871 | T167: 4991
A168: 2021 | B168: ENTEGRUS POWERLINES INC. | C168: UNMETERED SCATTERED LOAD CONNECTIONS | D168: UNMETERED SCATTERED LOAD - MAIN | E168: ENTEGRUS POWERLINES INC._UNMETERED SCATTERED LOAD - MAIN SERVICE CLASSIFICATION | F168: ENTEGRUS POWERLINES INC._UNMETERED SCATTERED LOAD - MAIN SERVICE CLASSIFICATION | G168: 737241 | H168: 0 | I168: 535178 | J168: 0 | K168: 0 | L168: 0 | M168: 0 | N168: 0 | O168: 0 | P168: 0 | Q168: 535178 | R168: 0 | S168: 1272419 | T168: 0
A169: 2021 | B169: ENWIN UTILITIES LTD. | C169: GENERAL SERVICE EQUAL TO OR GREATER THAN 50 KW | D169: GENERAL SERVICE 3,000 TO 4,999 KW - INTERMEDIATE USE | E169: ENWIN UTILITIES LTD._GENERAL SERVICE 3,000 TO 4,999 KW - INTERMEDIATE USE SERVICE CLASSIFICATION | F169: ENWIN UTILITIES LTD._GENERAL SERVICE 3,000 TO 4,999 KW - INTERMEDIATE USE SERVICE CLASSIFICATION | G169: 0 | H169: 0 | I169: 0 | J169: 0 | K169: 0 | L169: 0 | M169: 0 | N169: 0 | O169: 0 | P169: 0 | Q169: 0 | R169: 0 | S169: 0 | T169: 0
A170: 2021 | B170: ENWIN UTILITIES LTD. | C170: GENERAL SERVICE EQUAL TO OR GREATER THAN 50 KW | D170: GENERAL SERVICE 50 TO 4,999 KW | E170: ENWIN UTILITIES LTD._GENERAL SERVICE 50 TO 4,999 KW SERVICE CLASSIFICATION | F170: ENWIN UTILITIES LTD._GENERAL SERVICE 50 TO 4,999 KW SERVICE CLASSIFICATION | G170: 101486002.4 | H170: 269988 | I170: 159223650.8 | J170: 397894.64 | K170: 585117337.9 | L170: 1512885.51 | M170: 10501675 | N170: 19508.41016 | O170: 0 | P170: 0 | Q170: 754842663.5 | R170: 1930288.56 | S170: 856328666 | T170: 2200276.69
A171: 2021 | B171: ENWIN UTILITIES LTD. | C171: GENERAL SERVICE LESS THAN 50 KW | D171: GENERAL SERVICE LESS THAN 50 KW | E171: ENWIN UTILITIES LTD._GENERAL SERVICE LESS THAN 50 KW SERVICE CLASSIFICATION | F171: ENWIN UTILITIES LTD._GENERAL SERVICE LESS THAN 50 KW SERVICE CLASSIFICATION | G171: 25417684.65 | H171: 0 | I171: 164139109 | J171: 0 | K171: 0 | L171: 0 | M171: 0 | N171: 0 | O171: 0 | P171: 0 | Q171: 164139109 | R171: 0 | S171: 189556793.6 | T171: 0
A172: 2021 | B172: ENWIN UTILITIES LTD. | C172: LARGE USER | D172: LARGE USE - 3TS | E172: ENWIN UTILITIES LTD._LARGE USE - 3TS SERVICE CLASSIFICATION | F172: ENWIN UTILITIES LTD._LARGE USE - 3TS SERVICE CLASSIFICATION | G172: 0 | H172: 0 | I172: 0 | J172: 0 | K172: 135458379.5 | L172: 282378.99 | M172: 83265920 | N172: 152036.2969 | O172: 0 | P172: 0 | Q172: 218724298.2 | R172: 434415.29 | S172: 218724298.2 | T172: 434415.29
A173: 2021 | B173: ENWIN UTILITIES LTD. | C173: LARGE USER | D173: LARGE USE - FORD ANNEX | E173: ENWIN UTILITIES LTD._LARGE USE - FORD ANNEX SERVICE CLASSIFICATION | F173: ENWIN UTILITIES LTD._LARGE USE - FORD ANNEX SERVICE CLASSIFICATION | G173: 0 | H173: 0 | I173: 0 | J173: 0 | K173: 0 | L173: 0 | M173: 0 | N173: 0 | O173: 0 | P173: 0 | Q173: 0 | R173: 0 | S173: 0 | T173: 0
A174: 2021 | B174: ENWIN UTILITIES LTD. | C174: LARGE USER | D174: LARGE USE - REGULAR | E174: ENWIN UTILITIES LTD._LARGE USE - REGULAR SERVICE CLASSIFICATION | F174: ENWIN UTILITIES LTD._LARGE USE - REGULAR SERVICE CLASSIFICATION | G174: 0 | H174: 0 | I174: 0 | J174: 0 | K174: 132446720.4 | L174: 316384.18 | M174: 91604872 | N174: 165044.7969 | O174: 0 | P174: 0 | Q174: 224051591.8 | R174: 481428.98 | S174: 224051591.8 | T174: 481428.98
A175: 2021 | B175: ENWIN UTILITIES LTD. | C175: NO RATE CLASS | D175: NO RATE CLASS | E175: ENWIN UTILITIES LTD._NO RATE CLASS SERVICE CLASSIFICATION | F175: ENWIN UTILITIES LTD._NO RATE CLASS SERVICE CLASSIFICATION | G175: 0 | H175: 0 | I175: 0 | J175: 0 | K175: 0 | L175: 0 | M175: 0 | N175: 0 | O175: 504101760 | P175: 1160873 | Q175: 0 | R175: 0 | S175: 0 | T175: 0
A176: 2021 | B176: ENWIN UTILITIES LTD. | C176: RESIDENTIAL | D176: RESIDENTIAL | E176: ENWIN UTILITIES LTD._RESIDENTIAL SERVICE CLASSIFICATION | F176: ENWIN UTILITIES LTD._RESIDENTIAL SERVICE CLASSIFICATION | G176: 13089822.65 | H176: 0 | I176: 642608761.1 | J176: 0 | K176: 0 | L176: 0 | M176: 0 | N176: 0 | O176: 0 | P176: 0 | Q176: 642608761.1 | R176: 0 | S176: 655698583.7 | T176: 0
A177: 2021 | B177: ENWIN UTILITIES LTD. | C177: SENTINEL LIGHTING CONNECTIONS | D177: SENTINEL LIGHTING | E177: ENWIN UTILITIES LTD._SENTINEL LIGHTING SERVICE CLASSIFICATION | F177: ENWIN UTILITIES LTD._SENTINEL LIGHTING SERVICE CLASSIFICATION | G177: 59939.24 | H177: 167 | I177: 664291.4 | J177: 1854.36 | K177: 0 | L177: 0 | M177: 0 | N177: 0 | O177: 0 | P177: 0 | Q177: 664291.4 | R177: 1854.36 | S177: 724230.64 | T177: 2021.84
A178: 2021 | B178: ENWIN UTILITIES LTD. | C178: STREET LIGHTING CONNECTIONS | D178: STREET LIGHTING | E178: ENWIN UTILITIES LTD._STREET LIGHTING SERVICE CLASSIFICATION | F178: ENWIN UTILITIES LTD._STREET LIGHTING SERVICE CLASSIFICATION | G178: 0 | H178: 0 | I178: 18438.04 | J178: 53.04 | K178: 6583177.88 | L178: 18920.38 | M178: 0 | N178: 0 | O178: 0 | P178: 0 | Q178: 6601615.92 | R178: 18973.42 | S178: 6601615.92 | T178: 18973.42
A179: 2021 | B179: ENWIN UTILITIES LTD. | C179: UNMETERED SCATTERED LOAD CONNECTIONS | D179: UNMETERED SCATTERED LOAD | E179: ENWIN UTILITIES LTD._UNMETERED SCATTERED LOAD SERVICE CLASSIFICATION | F179: ENWIN UTILITIES LTD._UNMETERED SCATTERED LOAD SERVICE CLASSIFICATION | G179: 0 | H179: 0 | I179: 93291.36 | J179: 0 | K179: 2168405.75 | L179: 0 | M179: 0 | N179: 0 | O179: 0 | P179: 0 | Q179: 2261697.11 | R179: 0 | S179: 2261697.11 | T179: 0
A180: 2021 | B180: EPCOR ELECTRICITY DISTRIBUTION ONTARIO INC. | C180: GENERAL SERVICE EQUAL TO OR GREATER THAN 50 KW | D180: GENERAL SERVICE 50 TO 4,999 KW | E180: EPCOR ELECTRICITY DISTRIBUTION ONTARIO INC._GENERAL SERVICE 50 TO 4,999 KW SERVICE CLASSIFICATION | F180: EPCOR ELECTRICITY DISTRIBUTION ONTARIO INC._GENERAL SERVICE 50 TO 4,999 KW SERVICE CLASSIFICATION | G180: 20763733.33 | H180: 48565 | I180: 8290364.3 | J180: 22742.91 | K180: 86779971 | L180: 212241.44 | M180: 2539213 | N180: 4917.27002 | O180: 0 | P180: 0 | Q180: 97609548.32 | R180: 239901.62 | S180: 118373281.7 | T180: 288467.51
A181: 2021 | B181: EPCOR ELECTRICITY DISTRIBUTION ONTARIO INC. | C181: GENERAL SERVICE LESS THAN 50 KW | D181: GENERAL SERVICE LESS THAN 50 KW | E181: EPCOR ELECTRICITY DISTRIBUTION ONTARIO INC._GENERAL SERVICE LESS THAN 50 KW SERVICE CLASSIFICATION | F181: EPCOR ELECTRICITY DISTRIBUTION ONTARIO INC._GENERAL SERVICE LESS THAN 50 KW SERVICE CLASSIFICATION | G181: 6289005.45 | H181: 0 | I181: 35880838.4 | J181: 0 | K181: 363730.26 | L181: 0 | M181: 0 | N181: 0 | O181: 0 | P181: 0 | Q181: 36244568.66 | R181: 0 | S181: 42533574.11 | T181: 0
A182: 2021 | B182: EPCOR ELECTRICITY DISTRIBUTION ONTARIO INC. | C182: NO RATE CLASS | D182: NO RATE CLASS | E182: EPCOR ELECTRICITY DISTRIBUTION ONTARIO INC._NO RATE CLASS SERVICE CLASSIFICATION | F182: EPCOR ELECTRICITY DISTRIBUTION ONTARIO INC._NO RATE CLASS SERVICE CLASSIFICATION | G182: 0 | H182: 0 | I182: 0 | J182: 0 | K182: 0 | L182: 0 | M182: 0 | N182: 0 | O182: 48385448 | P182: 106918.8516 | Q182: 0 | R182: 0 | S182: 0 | T182: 0
A183: 2021 | B183: EPCOR ELECTRICITY DISTRIBUTION ONTARIO INC. | C183: RESIDENTIAL | D183: RESIDENTIAL | E183: EPCOR ELECTRICITY DISTRIBUTION ONTARIO INC._RESIDENTIAL SERVICE CLASSIFICATION | F183: EPCOR ELECTRICITY DISTRIBUTION ONTARIO INC._RESIDENTIAL SERVICE CLASSIFICATION | G183: 2685384.24 | H183: 0 | I183: 132092167.6 | J183: 0 | K183: 0 | L183: 0 | M183: 0 | N183: 0 | O183: 0 | P183: 0 | Q183: 132092167.6 | R183: 0 | S183: 134777551.8 | T183: 0
A184: 2021 | B184: EPCOR ELECTRICITY DISTRIBUTION ONTARIO INC. | C184: STREET LIGHTING CONNECTIONS | D184: STREET LIGHTING | E184: EPCOR ELECTRICITY DISTRIBUTION ONTARIO INC._STREET LIGHTING SERVICE CLASSIFICATION | F184: EPCOR ELECTRICITY DISTRIBUTION ONTARIO INC._STREET LIGHTING SERVICE CLASSIFICATION | G184: 0 | H184: 0 | I184: 0 | J184: 0 | K184: 1224244.72 | L184: 3430.2 | M184: 0 | N184: 0 | O184: 0 | P184: 0 | Q184: 1224244.72 | R184: 3430.2 | S184: 1224244.72 | T184: 3430.2
A185: 2021 | B185: EPCOR ELECTRICITY DISTRIBUTION ONTARIO INC. | C185: UNMETERED SCATTERED LOAD CONNECTIONS | D185: UNMETERED SCATTERED LOAD | E185: EPCOR ELECTRICITY DISTRIBUTION ONTARIO INC._UNMETERED SCATTERED LOAD SERVICE CLASSIFICATION | F185: EPCOR ELECTRICITY DISTRIBUTION ONTARIO INC._UNMETERED SCATTERED LOAD SERVICE CLASSIFICATION | G185: 5394 | H185: 0 | I185: 390839.27 | J185: 0 | K185: 0 | L185: 0 | M185: 0 | N185: 0 | O185: 0 | P185: 0 | Q185: 390839.27 | R185: 0 | S185: 396233.27 | T185: 0
A186: 2021 | B186: ERTH POWER CORPORATION | C186: EMBEDDED DISTRIBUTOR(S) | D186: EMBEDDED DISTRIBUTOR - MAIN | E186: ERTH POWER CORPORATION_EMBEDDED DISTRIBUTOR - MAIN SERVICE CLASSIFICATION | F186: ERTH POWER CORPORATION_EMBEDDED DISTRIBUTOR - MAIN SERVICE CLASSIFICATION | G186: 0 | H186: 0 | I186: 0 | J186: 0 | K186: 16786736 | L186: 37381 | M186: 0 | N186: 0 | O186: 0 | P186: 0 | Q186: 16786736 | R186: 37381 | S186: 16786736 | T186: 37381
A187: 2021 | B187: ERTH POWER CORPORATION | C187: GENERAL SERVICE EQUAL TO OR GREATER THAN 50 KW | D187: GENERAL SERVICE 1,000 TO 4,999 KW - MAIN | E187: ERTH POWER CORPORATION_GENERAL SERVICE 1,000 TO 4,999 KW - MAIN SERVICE CLASSIFICATION | F187: ERTH POWER CORPORATION_GENERAL SERVICE 1,000 TO 4,999 KW - MAIN SERVICE CLASSIFICATION | G187: 12680413 | H187: 26902 | I187: 0 | J187: 0 | K187: 64699476 | L187: 141229 | M187: 0 | N187: 0 | O187: 0 | P187: 0 | Q187: 64699476 | R187: 141229 | S187: 77379889 | T187: 168131
A188: 2021 | B188: ERTH POWER CORPORATION | C188: GENERAL SERVICE EQUAL TO OR GREATER THAN 50 KW | D188: GENERAL SERVICE 50 TO 499 KW - GODERICH | E188: ERTH POWER CORPORATION_GENERAL SERVICE 50 TO 499 KW - GODERICH SERVICE CLASSIFICATION | F188: ERTH POWER CORPORATION_GENERAL SERVICE 50 TO 499 KW - GODERICH SERVICE CLASSIFICATION | G188: 4994746 | H188: 12537 | I188: 3288945 | J188: 0 | K188: 10750517 | L188: 29238 | M188: 0 | N188: 0 | O188: 0 | P188: 0 | Q188: 14039462 | R188: 29238 | S188: 19034208 | T188: 41775
A189: 2021 | B189: ERTH POWER CORPORATION | C189: GENERAL SERVICE EQUAL TO OR GREATER THAN 50 KW | D189: GENERAL SERVICE 50 TO 999 KW - MAIN | E189: ERTH POWER CORPORATION_GENERAL SERVICE 50 TO 999 KW - MAIN SERVICE CLASSIFICATION | F189: ERTH POWER CORPORATION_GENERAL SERVICE 50 TO 999 KW - MAIN SERVICE CLASSIFICATION | G189: 24316753 | H189: 72088 | I189: 5543145 | J189: 21323 | K189: 52203185 | L189: 148076 | M189: 2543704 | N189: 25676 | O189: 0 | P189: 0 | Q189: 60290034 | R189: 195075 | S189: 84606787 | T189: 267163
A190: 2021 | B190: ERTH POWER CORPORATION | C190: GENERAL SERVICE EQUAL TO OR GREATER THAN 50 KW | D190: GENERAL SERVICE 500 TO 4,999 KW - GODERICH | E190: ERTH POWER CORPORATION_GENERAL SERVICE 500 TO 4,999 KW - GODERICH SERVICE CLASSIFICATION | F190: ERTH POWER CORPORATION_GENERAL SERVICE 500 TO 4,999 KW - GODERICH SERVICE CLASSIFICATION | G190: 7993287 | H190: 14900 | I190: 0 | J190: 0 | K190: 12689021 | L190: 33567 | M190: 0 | N190: 0 | O190: 0 | P190: 0 | Q190: 12689021 | R190: 33567 | S190: 20682308 | T190: 48467
A191: 2021 | B191: ERTH POWER CORPORATION | C191: GENERAL SERVICE LESS THAN 50 KW | D191: GENERAL SERVICE LESS THAN 50 KW - GODERICH | E191: ERTH POWER CORPORATION_GENERAL SERVICE LESS THAN 50 KW - GODERICH SERVICE CLASSIFICATION | F191: ERTH POWER CORPORATION_GENERAL SERVICE LESS THAN 50 KW - GODERICH SERVICE CLASSIFICATION | G191: 2606139 | H191: 0 | I191: 10432876 | J191: 9043 | K191: 0 | L191: 0 | M191: 0 | N191: 0 | O191: 0 | P191: 0 | Q191: 10432876 | R191: 9043 | S191: 13039015 | T191: 9043
A192: 2021 | B192: ERTH POWER CORPORATION | C192: GENERAL SERVICE LESS THAN 50 KW | D192: GENERAL SERVICE LESS THAN 50 KW - MAIN | E192: ERTH POWER CORPORATION_GENERAL SERVICE LESS THAN 50 KW - MAIN SERVICE CLASSIFICATION | F192: ERTH POWER CORPORATION_GENERAL SERVICE LESS THAN 50 KW - MAIN SERVICE CLASSIFICATION | G192: 9080441 | H192: 0 | I192: 38824687 | J192: 0 | K192: 149107 | L192: 0 | M192: 0 | N192: 0 | O192: 0 | P192: 0 | Q192: 38973794 | R192: 0 | S192: 48054235 | T192: 0
A193: 2021 | B193: ERTH POWER CORPORATION | C193: LARGE USER | D193: LARGE USE - GODERICH | E193: ERTH POWER CORPORATION_LARGE USE - GODERICH SERVICE CLASSIFICATION | F193: ERTH POWER CORPORATION_LARGE USE - GODERICH SERVICE CLASSIFICATION | G193: 0 | H193: 0 | I193: 0 | J193: 0 | K193: 0 | L193: 0 | M193: 0 | N193: 0 | O193: 0 | P193: 0 | Q193: 0 | R193: 0 | S193: 0 | T193: 0
A194: 2021 | B194: ERTH POWER CORPORATION | C194: LARGE USER | D194: LARGE USE- MAIN | E194: ERTH POWER CORPORATION_LARGE USE- MAIN SERVICE CLASSIFICATION | F194: ERTH POWER CORPORATION_LARGE USE- MAIN SERVICE CLASSIFICATION | G194: 0 | H194: 0 | I194: 0 | J194: 0 | K194: 118380051 | L194: 219868 | M194: 72019856 | N194: 172097 | O194: 0 | P194: 0 | Q194: 190399909 | R194: 391965 | S194: 190399909 | T194: 391965
A195: 2021 | B195: ERTH POWER CORPORATION | C195: NO RATE CLASS | D195: NO RATE CLASS | E195: ERTH POWER CORPORATION_NO RATE CLASS SERVICE CLASSIFICATION | F195: ERTH POWER CORPORATION_NO RATE CLASS SERVICE CLASSIFICATION | G195: 0 | H195: 0 | I195: 0 | J195: 0 | K195: 0 | L195: 0 | M195: 0 | N195: 0 | O195: 216950288 | P195: 429387.75 | Q195: 0 | R195: 0 | S195: 0 | T195: 0
A196: 2021 | B196: ERTH POWER CORPORATION | C196: RESIDENTIAL | D196: RESIDENTIAL - GODERICH | E196: ERTH POWER CORPORATION_RESIDENTIAL - GODERICH SERVICE CLASSIFICATION | F196: ERTH POWER CORPORATION_RESIDENTIAL - GODERICH SERVICE CLASSIFICATION | G196: 609635 | H196: 0 | I196: 25814517 | J196: 0 | K196: 0 | L196: 0 | M196: 0 | N196: 0 | O196: 0 | P196: 0 | Q196: 25814517 | R196: 0 | S196: 26424152 | T196: 0
A197: 2021 | B197: ERTH POWER CORPORATION | C197: RESIDENTIAL | D197: RESIDENTIAL - MAIN | E197: ERTH POWER CORPORATION_RESIDENTIAL - MAIN SERVICE CLASSIFICATION | F197: ERTH POWER CORPORATION_RESIDENTIAL - MAIN SERVICE CLASSIFICATION | G197: 5013173 | H197: 0 | I197: 146161514 | J197: 0 | K197: 0 | L197: 0 | M197: 0 | N197: 0 | O197: 0 | P197: 0 | Q197: 146161514 | R197: 0 | S197: 151174687 | T197: 0
A198: 2021 | B198: ERTH POWER CORPORATION | C198: SENTINEL LIGHTING CONNECTIONS | D198: SENTINEL LIGHTING - GODERICH | E198: ERTH POWER CORPORATION_SENTINEL LIGHTING - GODERICH SERVICE CLASSIFICATION | F198: ERTH POWER CORPORATION_SENTINEL LIGHTING - GODERICH SERVICE CLASSIFICATION | G198: 0 | H198: 0 | I198: 1932 | J198: 0 | K198: 0 | L198: 0 | M198: 0 | N198: 0 | O198: 0 | P198: 0 | Q198: 1932 | R198: 0 | S198: 1932 | T198: 0
A199: 2021 | B199: ERTH POWER CORPORATION | C199: SENTINEL LIGHTING CONNECTIONS | D199: SENTINEL LIGHTING - MAIN | E199: ERTH POWER CORPORATION_SENTINEL LIGHTING - MAIN SERVICE CLASSIFICATION | F199: ERTH POWER CORPORATION_SENTINEL LIGHTING - MAIN SERVICE CLASSIFICATION | G199: 27997 | H199: 0 | I199: 16914 | J199: 0 | K199: 0 | L199: 0 | M199: 0 | N199: 0 | O199: 0 | P199: 0 | Q199: 16914 | R199: 0 | S199: 44911 | T199: 0
A200: 2021 | B200: ERTH POWER CORPORATION | C200: STREET LIGHTING CONNECTIONS | D200: STREET LIGHTING - GODERICH | E200: ERTH POWER CORPORATION_STREET LIGHTING - GODERICH SERVICE CLASSIFICATION | F200: ERTH POWER CORPORATION_STREET LIGHTING - GODERICH SERVICE CLASSIFICATION | G200: 314857 | H200: 784 | I200: 77588 | J200: 8 | K200: 0 | L200: 0 | M200: 0 | N200: 0 | O200: 0 | P200: 0 | Q200: 77588 | R200: 8 | S200: 392445 | T200: 792
A201: 2021 | B201: ERTH POWER CORPORATION | C201: STREET LIGHTING CONNECTIONS | D201: STREET LIGHTING - MAIN | E201: ERTH POWER CORPORATION_STREET LIGHTING - MAIN SERVICE CLASSIFICATION | F201: ERTH POWER CORPORATION_STREET LIGHTING - MAIN SERVICE CLASSIFICATION | G201: 322348 | H201: 414 | I201: 665891 | J201: 1800 | K201: 829977 | L201: 2243 | M201: 0 | N201: 0 | O201: 0 | P201: 0 | Q201: 1495868 | R201: 4043 | S201: 1818216 | T201: 4457
... 355 more rows

Sheet hidden1 (hidden)
A1: =IF('DELETE 3. Rate Classes'!L17=1, 'DELETE 3. Rate Classes'!#REF!, "") ->  | B1: 1
A2: =IF('DELETE 3. Rate Classes'!L18=1, 'DELETE 3. Rate Classes'!#REF!, "") ->  | B2: 2
A3: =IF('DELETE 3. Rate Classes'!L19=1, 'DELETE 3. Rate Classes'!#REF!, "") ->  | B3: 3
A4: =IF('DELETE 3. Rate Classes'!L20=1, 'DELETE 3. Rate Classes'!#REF!, "") ->  | B4: 4
A5: =IF('DELETE 3. Rate Classes'!L21=1, 'DELETE 3. Rate Classes'!#REF!, "") ->  | B5: 5
A6: =IF('DELETE 3. Rate Classes'!L22=1, 'DELETE 3. Rate Classes'!#REF!, "") ->  | B6: 6
A7: =IF('DELETE 3. Rate Classes'!L23=1, 'DELETE 3. Rate Classes'!#REF!, "") ->  | B7: 7
A8: =IF('DELETE 3. Rate Classes'!L24=1, 'DELETE 3. Rate Classes'!#REF!, "") ->  | B8: 8
A9: =IF('DELETE 3. Rate Classes'!L25=1, 'DELETE 3. Rate Classes'!#REF!, "") ->  | B9: 9
A10: =IF('DELETE 3. Rate Classes'!L26=1, 'DELETE 3. Rate Classes'!#REF!, "") ->  | B10: 10
A11: =IF('DELETE 3. Rate Classes'!L27=1, 'DELETE 3. Rate Classes'!#REF!, "") ->  | B11: 11
A12: =IF('DELETE 3. Rate Classes'!L28=1, 'DELETE 3. Rate Classes'!#REF!, "") ->  | B12: 12
A13: =IF('DELETE 3. Rate Classes'!L29=1, 'DELETE 3. Rate Classes'!#REF!, "") ->  | B13: 13
A14: =IF('DELETE 3. Rate Classes'!L30=1, 'DELETE 3. Rate Classes'!#REF!, "") ->  | B14: 14
A15: =IF('DELETE 3. Rate Classes'!L31=1, 'DELETE 3. Rate Classes'!#REF!, "") ->  | B15: 15
A16: =IF('DELETE 3. Rate Classes'!L32=1, 'DELETE 3. Rate Classes'!#REF!, "") ->  | B16: 16
A17: =IF('DELETE 3. Rate Classes'!L33=1, 'DELETE 3. Rate Classes'!#REF!, "") ->  | B17: 17
A18: =IF('DELETE 3. Rate Classes'!L34=1, 'DELETE 3. Rate Classes'!#REF!, "") ->  | B18: 18
A19: =IF('DELETE 3. Rate Classes'!L35=1, 'DELETE 3. Rate Classes'!#REF!, "") ->  | B19: 19
A20: =IF('DELETE 3. Rate Classes'!L36=1, 'DELETE 3. Rate Classes'!#REF!, "") ->  | B20: 20
A21: =IF('DELETE 3. Rate Classes'!L37=1, 'DELETE 3. Rate Classes'!#REF!, "") ->  | B21: 21
A22: =IF('DELETE 3. Rate Classes'!L38=1, 'DELETE 3. Rate Classes'!#REF!, "") ->  | B22: 22
